BODY NAME,,SERVICE AREA,EXPENSES TYPE,EXPENSE CODE,DATE,TRANSACTION NO.,AMOUNT, SUPPLIER NAME,SUPPLIER ID
EFDC,HI122,HIGHWAYS,TREE  MAINTENANCE,1070,30-Sep-20,178856,2400.00,D F CLARK CONTRACTORS LTD,DFC001
EFDC,HI122,HIGHWAYS,TREE  MAINTENANCE,1070,30-Sep-20,178856,2400.00,D F CLARK CONTRACTORS LTD,DFC001
EFDC,35500,CONTRACT & TECH SUPPORT SERVIC,VEHICLE HIRE,2620,30-Sep-20,178859,2880.00,ERNEST DOE & SONS LTD,ERN001
EFDC,36500,HRA SUPPORT SERVICES,SUBSCRIPTIONS,3730,30-Sep-20,178875,2500.00,EXPERIAN LTD,EXP002
EFDC,RE100,ELECTIONS,PRINTING - EXTERNAL,3390,30-Sep-20,179619,3504.66,CIVICA ELECTION SERVICES LIMITED,ELE013
EFDC,RE100,ELECTIONS,PRINTING - EXTERNAL,3390,30-Sep-20,179620,844.06,CIVICA ELECTION SERVICES LIMITED,ELE013
EFDC,RE100,ELECTIONS,POSTAGE,3510,30-Sep-20,179619,13465.01,CIVICA ELECTION SERVICES LIMITED,ELE013
EFDC,RE100,ELECTIONS,POSTAGE,3510,30-Sep-20,179620,2273.72,CIVICA ELECTION SERVICES LIMITED,ELE013
EFDC,TI170,LAND & PROPERTY,PREMISES,1030,30-Sep-20,179297,1091.04,GENERATED POWER SERVICES LTD,GEN002
EFDC,TI170,LAND & PROPERTY,PREMISES,1030,30-Sep-20,179297,75.06,GENERATED POWER SERVICES LTD,GEN002
EFDC,OS101,PARKS & GROUNDS,TREE  MAINTENANCE,1070,30-Sep-20,178165,602.26,GRISTWOOD & TOMS LTD,GRI001
EFDC,HI122,HIGHWAYS,TREE  MAINTENANCE,1070,30-Sep-20,178165,3735.72,GRISTWOOD & TOMS LTD,GRI001
EFDC,YB400,SUPERVISION/MANAGEMENT SPECIAL,TREE  MAINTENANCE,1070,30-Sep-20,178165,5167.99,GRISTWOOD & TOMS LTD,GRI001
EFDC,33060,OTHER ACTIVITIES,AGENCY STAFF,0120,30-Sep-20,178903,2360.00,HAYS SPECIALIST RECRUITMENT LTD,HAY011
EFDC,33060,OTHER ACTIVITIES,AGENCY STAFF,0120,30-Sep-20,179324,1161.00,HAYS SPECIALIST RECRUITMENT LTD,HAY011
EFDC,36650,HRA SUPPORT SERVICES,AGENCY STAFF,0120,30-Sep-20,178502,2500.00,HAYS SPECIALIST RECRUITMENT LTD,HAY011
EFDC,35400,CONTRACT & TECH SUPPORT SERVIC,AGENCY STAFF,0120,30-Sep-20,178508,700.16,HAYS SPECIALIST RECRUITMENT LTD,HAY011
EFDC,35400,CONTRACT & TECH SUPPORT SERVIC,AGENCY STAFF,0120,30-Sep-20,178499,566.80,HAYS SPECIALIST RECRUITMENT LTD,HAY011
EFDC,33080,OTHER ACTIVITIES,AGENCY STAFF,0120,30-Sep-20,178506,1246.04,HAYS SPECIALIST RECRUITMENT LTD,HAY011
EFDC,33060,OTHER ACTIVITIES,AGENCY STAFF,0120,30-Sep-20,178507,1563.30,HAYS SPECIALIST RECRUITMENT LTD,HAY011
EFDC,78001,HRA SUPPORT SERVICES,REFUSE REMOVAL,1640,30-Sep-20,179639,825.00,HEATHERLAND LTD T/A LUNNON PLANT & WASTE SERV,HEA001
EFDC,78001,HRA SUPPORT SERVICES,REFUSE REMOVAL,1640,30-Sep-20,179641,1288.00,HEATHERLAND LTD T/A LUNNON PLANT & WASTE SERV,HEA001
EFDC,78001,HRA SUPPORT SERVICES,REFUSE REMOVAL,1640,30-Sep-20,179642,550.00,HEATHERLAND LTD T/A LUNNON PLANT & WASTE SERV,HEA001
EFDC,32060,OTHER SUPPORT SERVICES,AGENCY STAFF,0120,30-Sep-20,179338,1628.00,LAW ABSOLUTE LIMITED,LAW009
EFDC,RM100,RESPONSIVE & VOID REPAIRS,BUILDING MAINTENANCE,1010,30-Sep-20,179588,645.00,ABBEY DRAINS LTD,ABB009
EFDC,RM100,RESPONSIVE & VOID REPAIRS,BUILDING MAINTENANCE,1010,30-Sep-20,179589,645.00,ABBEY DRAINS LTD,ABB009
EFDC,RE100,ELECTIONS,EQUIPMENT - HIRED,3020,30-Sep-20,179682,1610.60,QUADIENT FINANCE UK LIMITED,NEO002
EFDC,RE100,ELECTIONS,EQUIPMENT - HIRED,3020,30-Sep-20,179683,1610.60,QUADIENT FINANCE UK LIMITED,NEO002
EFDC,33080,OTHER ACTIVITIES,ANNUAL SUPPORT /  LICENSES,3872,30-Sep-20,178573,1236.57,PHOENIX SOFTWARE LTD,PHO002
EFDC,BC100,PLANNING REGULATORY SERVICES,CONSULTANTS FEES,3490,30-Sep-20,179700,665.00,R.C.A STRUCTURES LTD,RCA001
EFDC,51150,OTHER SUPPORT SERVICES,POSTAGE,3510,30-Sep-20,179584,178.85,ROYAL MAIL GROUP PLC,ROY015
EFDC,33055,OTHER ACTIVITIES,POSTAGE,3510,30-Sep-20,179584,236.95,ROYAL MAIL GROUP PLC,ROY015
EFDC,33075,OTHER ACTIVITIES,POSTAGE,3510,30-Sep-20,179584,3217.08,ROYAL MAIL GROUP PLC,ROY015
EFDC,RE100,ELECTIONS,POSTAGE,3510,30-Sep-20,179584,515.55,ROYAL MAIL GROUP PLC,ROY015
EFDC,TO100,LAND & PROPERTY,VEHICLE PARTS / REPAIRS,2210,30-Sep-20,179751,645.87,P TUCKWELL LTD,TUC002
EFDC,RS301,NORTH WEALD CENTRE,OTHER MAINTENANCE,1050,30-Sep-20,179721,400.00,C.Q SURFACING LTD,SUR008
EFDC,RS301,NORTH WEALD CENTRE,OTHER MAINTENANCE,1050,30-Sep-20,179721,880.00,C.Q SURFACING LTD,SUR008
EFDC,78001,HRA SUPPORT SERVICES,MATERIALS,3080,30-Sep-20,179730,1490.00,TRAVIS PERKINS TRADING COMPANY LTD,TRA001
EFDC,78001,HRA SUPPORT SERVICES,MATERIALS,3080,30-Sep-20,179735,11342.87,TRAVIS PERKINS TRADING COMPANY LTD,TRA001
EFDC,78001,HRA SUPPORT SERVICES,PROTECTIVE CLOTHING,3210,30-Sep-20,179739,351.00,TRAVIS PERKINS TRADING COMPANY LTD,TRA001
EFDC,78001,HRA SUPPORT SERVICES,PROTECTIVE CLOTHING,3210,30-Sep-20,179739,221.50,TRAVIS PERKINS TRADING COMPANY LTD,TRA001
EFDC,78001,HRA SUPPORT SERVICES,PROTECTIVE CLOTHING,3210,30-Sep-20,179739,337.50,TRAVIS PERKINS TRADING COMPANY LTD,TRA001
EFDC,78001,HRA SUPPORT SERVICES,PROTECTIVE CLOTHING,3210,30-Sep-20,179739,70.00,TRAVIS PERKINS TRADING COMPANY LTD,TRA001
EFDC,78001,HRA SUPPORT SERVICES,MATERIALS,3080,30-Sep-20,179737,730.50,TRAVIS PERKINS TRADING COMPANY LTD,TRA001
EFDC,78001,HRA SUPPORT SERVICES,PROTECTIVE CLOTHING,3210,30-Sep-20,179739,14.79,TRAVIS PERKINS TRADING COMPANY LTD,TRA001
EFDC,32115,OTHER SUPPORT SERVICES,CONSULTANTS FEES,3490,30-Sep-20,178609,2100.00,TRAINING & COACHING SOLUTIONS LTD,TRA029
EFDC,CAPHR,HRA CAPITAL,WORKS,A040,30-Sep-20,179755,9800.00,VSN ENTERPRISES LTD,VSN001
EFDC,CAPHR,HRA CAPITAL,WORKS,A040,30-Sep-20,179755,15162.98,VSN ENTERPRISES LTD,VSN001
EFDC,32120,OTHER SUPPORT SERVICES,TRAINING EXPENSES,0310,30-Sep-20,178614,693.00,THE WHITE PAPER CONFERENCE COMPANY LTD,WHI003
EFDC,25300,INTERNAL INSURANCE FUND,PROFESSIONAL FEES,3420,30-Sep-20,179561,3000.66,ZURICH INSURANCE PLC,ZUR006
EFDC,25300,INTERNAL INSURANCE FUND,PROFESSIONAL FEES,3420,30-Sep-20,179565,5028.28,ZURICH INSURANCE PLC,ZUR006
EFDC,25300,INTERNAL INSURANCE FUND,PROFESSIONAL FEES,3420,30-Sep-20,179579,1305.19,ZURICH INSURANCE PLC,ZUR006
EFDC,25300,INTERNAL INSURANCE FUND,PROFESSIONAL FEES,3420,30-Sep-20,179577,1840.18,ZURICH INSURANCE PLC,ZUR006
EFDC,25300,INTERNAL INSURANCE FUND,PROFESSIONAL FEES,3420,30-Sep-20,179576,546.69,ZURICH INSURANCE PLC,ZUR006
EFDC,25300,INTERNAL INSURANCE FUND,PROFESSIONAL FEES,3420,30-Sep-20,179569,2698.75,ZURICH INSURANCE PLC,ZUR006
EFDC,25300,INTERNAL INSURANCE FUND,PROFESSIONAL FEES,3420,30-Sep-20,179568,5224.83,ZURICH INSURANCE PLC,ZUR006
EFDC,25300,INTERNAL INSURANCE FUND,PROFESSIONAL FEES,3420,30-Sep-20,179559,29304.53,ZURICH INSURANCE PLC,ZUR006
EFDC,25300,INTERNAL INSURANCE FUND,PROFESSIONAL FEES,3420,30-Sep-20,179566,6090.68,ZURICH INSURANCE PLC,ZUR006
EFDC,25300,INTERNAL INSURANCE FUND,PROFESSIONAL FEES,3420,30-Sep-20,179555,686025.13,ZURICH INSURANCE PLC,ZUR006
EFDC,25300,INTERNAL INSURANCE FUND,PROFESSIONAL FEES,3420,30-Sep-20,179564,1862.82,ZURICH INSURANCE PLC,ZUR006
EFDC,25300,INTERNAL INSURANCE FUND,PROFESSIONAL FEES,3420,30-Sep-20,179562,11436.64,ZURICH INSURANCE PLC,ZUR006
EFDC,25300,INTERNAL INSURANCE FUND,PROFESSIONAL FEES,3420,30-Sep-20,179560,7490.74,ZURICH INSURANCE PLC,ZUR006
EFDC,25300,INTERNAL INSURANCE FUND,PROFESSIONAL FEES,3420,30-Sep-20,179558,20532.88,ZURICH INSURANCE PLC,ZUR006
EFDC,25300,INTERNAL INSURANCE FUND,PROFESSIONAL FEES,3420,30-Sep-20,179557,25343.12,ZURICH INSURANCE PLC,ZUR006
EFDC,25300,INTERNAL INSURANCE FUND,PROFESSIONAL FEES,3420,30-Sep-20,179556,17775.96,ZURICH INSURANCE PLC,ZUR006
EFDC,25300,INTERNAL INSURANCE FUND,PROFESSIONAL FEES,3420,30-Sep-20,179567,880.02,ZURICH INSURANCE PLC,ZUR006
EFDC,CAPHR,HRA CAPITAL,WORKS,A040,30-Sep-20,179578,752.50,GRACELANDS COMPLETE MAINTENANCE SERVICES LTD,GRA007
EFDC,CAPHR,HRA CAPITAL,WORKS,A040,30-Sep-20,179585,1757.70,GRACELANDS COMPLETE MAINTENANCE SERVICES LTD,GRA007
EFDC,CAPHR,HRA CAPITAL,WORKS,A040,30-Sep-20,179586,2258.37,GRACELANDS COMPLETE MAINTENANCE SERVICES LTD,GRA007
EFDC,RM100,RESPONSIVE & VOID REPAIRS,BUILDING MAINTENANCE,1010,30-Sep-20,179554,774.25,GRACELANDS COMPLETE MAINTENANCE SERVICES LTD,GRA007
EFDC,RM100,RESPONSIVE & VOID REPAIRS,BUILDING MAINTENANCE,1010,30-Sep-20,179572,1086.13,GRACELANDS COMPLETE MAINTENANCE SERVICES LTD,GRA007
EFDC,RM100,RESPONSIVE & VOID REPAIRS,BUILDING MAINTENANCE,1010,30-Sep-20,179571,1147.21,GRACELANDS COMPLETE MAINTENANCE SERVICES LTD,GRA007
EFDC,RM100,RESPONSIVE & VOID REPAIRS,BUILDING MAINTENANCE,1010,30-Sep-20,179570,1079.77,GRACELANDS COMPLETE MAINTENANCE SERVICES LTD,GRA007
EFDC,78001,HRA SUPPORT SERVICES,MATERIALS,3080,30-Sep-20,179634,93.71,GRACELANDS COMPLETE MAINTENANCE SERVICES LTD,GRA007
EFDC,78001,HRA SUPPORT SERVICES,MATERIALS,3080,30-Sep-20,179634,123.73,GRACELANDS COMPLETE MAINTENANCE SERVICES LTD,GRA007
EFDC,78001,HRA SUPPORT SERVICES,MATERIALS,3080,30-Sep-20,179634,78.32,GRACELANDS COMPLETE MAINTENANCE SERVICES LTD,GRA007
EFDC,78001,HRA SUPPORT SERVICES,MATERIALS,3080,30-Sep-20,179634,32.66,GRACELANDS COMPLETE MAINTENANCE SERVICES LTD,GRA007
EFDC,78001,HRA SUPPORT SERVICES,MATERIALS,3080,30-Sep-20,179634,29.00,GRACELANDS COMPLETE MAINTENANCE SERVICES LTD,GRA007
EFDC,78001,HRA SUPPORT SERVICES,MATERIALS,3080,30-Sep-20,179634,177.14,GRACELANDS COMPLETE MAINTENANCE SERVICES LTD,GRA007
EFDC,78001,HRA SUPPORT SERVICES,MATERIALS,3080,30-Sep-20,179634,41.00,GRACELANDS COMPLETE MAINTENANCE SERVICES LTD,GRA007
EFDC,78001,HRA SUPPORT SERVICES,MATERIALS,3080,30-Sep-20,179634,34.45,GRACELANDS COMPLETE MAINTENANCE SERVICES LTD,GRA007
EFDC,78001,HRA SUPPORT SERVICES,MATERIALS,3080,30-Sep-20,179634,77.21,GRACELANDS COMPLETE MAINTENANCE SERVICES LTD,GRA007
EFDC,78001,HRA SUPPORT SERVICES,MATERIALS,3080,30-Sep-20,179634,114.00,GRACELANDS COMPLETE MAINTENANCE SERVICES LTD,GRA007
EFDC,FD100,LAND DRAINAGE/SEWERAGE,HIGHWAYS CONTRACTORS,4310,30-Sep-20,179654,770.80,HUGH PEARL (LAND DRAINAGE) LTD,HUG001
EFDC,36500,HRA SUPPORT SERVICES,AGENCY STAFF,0120,30-Sep-20,179681,974.16,MORGAN HUNT UK LTD,MOR001
EFDC,33075,OTHER ACTIVITIES,AGENCY STAFF,0120,30-Sep-20,179680,962.00,MORGAN HUNT UK LTD,MOR001
EFDC,33075,OTHER ACTIVITIES,AGENCY STAFF,0120,30-Sep-20,179679,962.00,MORGAN HUNT UK LTD,MOR001
EFDC,35400,CONTRACT & TECH SUPPORT SERVIC,AGENCY STAFF,0120,30-Sep-20,179596,539.70,BERRY RECRUITMENT LTD,BER001
EFDC,36900,HRA SUPPORT SERVICES,AGENCY STAFF,0120,30-Sep-20,179659,587.25,JAMES ANDREWS RECRUITMENT SOLUTIONS LTD,JAM001
EFDC,36900,HRA SUPPORT SERVICES,AGENCY STAFF,0120,30-Sep-20,179661,1080.00,JAMES ANDREWS RECRUITMENT SOLUTIONS LTD,JAM001
EFDC,36900,HRA SUPPORT SERVICES,AGENCY STAFF,0120,30-Sep-20,179660,1102.00,JAMES ANDREWS RECRUITMENT SOLUTIONS LTD,JAM001
EFDC,36500,HRA SUPPORT SERVICES,AGENCY STAFF,0120,30-Sep-20,179658,792.00,JAMES ANDREWS RECRUITMENT SOLUTIONS LTD,JAM001
EFDC,32060,OTHER SUPPORT SERVICES,CONSULTANTS FEES,3490,30-Sep-20,179368,3618.00,SHARPE PRITCHARD LLP,SHA004
EFDC,YA100,SUPERVISION/MANAGEMENT GENERAL,SUBSCRIPTIONS,3730,30-Sep-20,179651,16381.04,HOUSING OMBUDSMAN SERVICE,HOU006
EFDC,RS301,NORTH WEALD CENTRE,CLEANING,1630,30-Sep-20,179678,617.49,MONTHIND CLEAN LLP,MON004
EFDC,WC100,WASTE MANAGEMENT,CLEANSING CONTRACTORS,4320,30-Sep-20,179553,11464.49,BIFFA MUNICIPAL LTD,BIF001
EFDC,WC100,WASTE MANAGEMENT,CLEANSING CONTRACTORS,4320,30-Sep-20,179553,3502.75,BIFFA MUNICIPAL LTD,BIF001
EFDC,WC100,WASTE MANAGEMENT,CLEANSING CONTRACTORS,4320,30-Sep-20,179553,314.64,BIFFA MUNICIPAL LTD,BIF001
EFDC,SC100,WASTE MANAGEMENT,CLEANSING CONTRACTORS,4320,30-Sep-20,179553,366.58,BIFFA MUNICIPAL LTD,BIF001
EFDC,WC102,WASTE MANAGEMENT,CLEANSING CONTRACTORS,4320,30-Sep-20,179553,909.95,BIFFA MUNICIPAL LTD,BIF001
EFDC,WC200,WASTE MANAGEMENT,CLEANSING CONTRACTORS,4320,30-Sep-20,179553,28272.66,BIFFA MUNICIPAL LTD,BIF001
EFDC,WC200,WASTE MANAGEMENT,CLEANSING CONTRACTORS,4320,30-Sep-20,179553,36880.00,BIFFA MUNICIPAL LTD,BIF001
EFDC,WC200,WASTE MANAGEMENT,CLEANSING CONTRACTORS,4320,30-Sep-20,179553,3502.76,BIFFA MUNICIPAL LTD,BIF001
EFDC,RS301,NORTH WEALD CENTRE,RENTS,9410,30-Sep-20,179553,-600.00,BIFFA MUNICIPAL LTD,BIF001
EFDC,23140,ACCOMMODATION,REFUSE REMOVAL,1640,30-Sep-20,179553,22.86,BIFFA MUNICIPAL LTD,BIF001
EFDC,FD100,LAND DRAINAGE/SEWERAGE,PROFESSIONAL FEES,3420,30-Sep-20,179553,9.12,BIFFA MUNICIPAL LTD,BIF001
EFDC,WC100,WASTE MANAGEMENT,EQUIPMENT - NEW,3010,30-Sep-20,179553,752.20,BIFFA MUNICIPAL LTD,BIF001
EFDC,WC100,WASTE MANAGEMENT,EQUIPMENT - NEW,3010,30-Sep-20,179553,12690.50,BIFFA MUNICIPAL LTD,BIF001
EFDC,23110,ACCOMMODATION,REFUSE REMOVAL,1640,30-Sep-20,179553,25.23,BIFFA MUNICIPAL LTD,BIF001
EFDC,HI124,HIGHWAYS,CLEANSING CONTRACTORS,4320,30-Sep-20,179553,27.90,BIFFA MUNICIPAL LTD,BIF001
EFDC,YB400,SUPERVISION/MANAGEMENT SPECIAL,REFUSE REMOVAL,1640,30-Sep-20,179553,768.12,BIFFA MUNICIPAL LTD,BIF001
EFDC,27110,ACCOMMODATION,REFUSE REMOVAL,1640,30-Sep-20,179553,11.43,BIFFA MUNICIPAL LTD,BIF001
EFDC,27050,ACCOMMODATION,REFUSE REMOVAL,1640,30-Sep-20,179553,697.23,BIFFA MUNICIPAL LTD,BIF001
EFDC,YB620,SUPERVISION/MANAGEMENT SPECIAL,REFUSE REMOVAL,1640,30-Sep-20,179553,11.43,BIFFA MUNICIPAL LTD,BIF001
EFDC,GD190,VOLUNTARY SECTOR SUPPORT,GROUNDS MAINTENANCE,1040,30-Sep-20,179553,76.92,BIFFA MUNICIPAL LTD,BIF001
EFDC,YB400,SUPERVISION/MANAGEMENT SPECIAL,CLEANSING CONTRACTORS,4320,30-Sep-20,179553,497.53,BIFFA MUNICIPAL LTD,BIF001
EFDC,OS100,PARKS & GROUNDS,GROUNDS MAINTENANCE,1040,30-Sep-20,179553,27.36,BIFFA MUNICIPAL LTD,BIF001
EFDC,YB400,SUPERVISION/MANAGEMENT SPECIAL,CLEANSING CONTRACTORS,4320,30-Sep-20,179553,794.37,BIFFA MUNICIPAL LTD,BIF001
EFDC,OS110,PARKS & GROUNDS,GROUNDS MAINTENANCE,1040,30-Sep-20,179553,27.36,BIFFA MUNICIPAL LTD,BIF001
EFDC,OS110,PARKS & GROUNDS,GROUNDS MAINTENANCE,1040,30-Sep-20,179553,57.63,BIFFA MUNICIPAL LTD,BIF001
EFDC,WC300,WASTE MANAGEMENT,CLEANSING CONTRACTORS,4320,30-Sep-20,179553,930.10,BIFFA MUNICIPAL LTD,BIF001
EFDC,WC300,WASTE MANAGEMENT,CLEANSING CONTRACTORS,4320,30-Sep-20,179553,371.82,BIFFA MUNICIPAL LTD,BIF001
EFDC,35500,CONTRACT & TECH SUPPORT SERVIC,AGENCY STAFF,0120,30-Sep-20,179644,780.30,HL SERVICES (LONDON) LTD,HLS001
EFDC,35500,CONTRACT & TECH SUPPORT SERVIC,AGENCY STAFF,0120,30-Sep-20,179645,566.10,HL SERVICES (LONDON) LTD,HLS001
EFDC,36900,HRA SUPPORT SERVICES,PRINTING - EXTERNAL,3390,30-Sep-20,179690,755.00,NSP (NORMANTON SCREEN PRINT),NSP001
EFDC,36900,HRA SUPPORT SERVICES,PRINTING - EXTERNAL,3390,30-Sep-20,179690,9.95,NSP (NORMANTON SCREEN PRINT),NSP001
EFDC,36900,HRA SUPPORT SERVICES,PRINTING - EXTERNAL,3390,30-Sep-20,179690,448.00,NSP (NORMANTON SCREEN PRINT),NSP001
EFDC,36900,HRA SUPPORT SERVICES,PRINTING - EXTERNAL,3390,30-Sep-20,179690,662.00,NSP (NORMANTON SCREEN PRINT),NSP001
EFDC,36900,HRA SUPPORT SERVICES,PRINTING - EXTERNAL,3390,30-Sep-20,179690,15.00,NSP (NORMANTON SCREEN PRINT),NSP001
EFDC,32220,OTHER SUPPORT SERVICES,AGENCY STAFF,0120,30-Sep-20,179602,4990.41,CAPSTONE PROPERTY RECRUITMENT LTD,CAP001
EFDC,CAPGF,GENERAL FUND CAPITAL,WORKS,J040,30-Sep-20,179757,1231.00,WYG MANAGEMENT SERVICES LTD,WYG002
EFDC,33080,OTHER ACTIVITIES,EQUIPMENT - HIRED,3020,30-Sep-20,179758,4076.54,XEROX FINANCE LTD,XER001
EFDC,PS100,CAR PARKING,OTHER MAINTENANCE,1050,30-Sep-20,179609,550.00,W H CONSTRUCTION LTD,CON014
EFDC,35004,CONTRACT & TECH SUPPORT SERVIC,AGENCY STAFF,0120,30-Sep-20,179709,575.00,STEWART HARRIS AGNEW PARTNERSHIP,STE004
EFDC,GT100,LOCAL PLAN IMPLEMENTATION,PROFESSIONAL FEES,3420,30-Sep-20,179351,6650.00,PHIL JONES ASSOCIATES LTD,PHI025
EFDC,GT100,LOCAL PLAN IMPLEMENTATION,CONSULTANTS FEES,3490,30-Sep-20,178572,2396.00,PHIL JONES ASSOCIATES LTD,PHI025
EFDC,GT100,LOCAL PLAN IMPLEMENTATION,CONSULTANTS FEES,3490,30-Sep-20,178411,4720.75,CUSHMAN & WAKEFIELD DEBENHAM TIE LEUNG LTD,CUS022
EFDC,GT100,LOCAL PLAN IMPLEMENTATION,CONSULTANTS FEES,3490,30-Sep-20,179345,6000.00,NEWINGTON COMMUNICATIONS LTD,NEW025
EFDC,36500,HRA SUPPORT SERVICES,AGENCY STAFF,0120,30-Sep-20,178891,1660.50,G2 RECRUITMENT SOLUTIONS,G2R001
EFDC,37600,PLANNING SUPPORT SERVICES,AGENCY STAFF,0120,30-Sep-20,178468,1440.00,G2 RECRUITMENT SOLUTIONS,G2R001
EFDC,GT100,LOCAL PLAN IMPLEMENTATION,PROFESSIONAL FEES,3420,30-Sep-20,179599,12500.00,BLOOM PROCUREMENT SERVICES LTD,BLO001
EFDC,34160,HOUSING PROP SUPPORT SERVICES,PUBLICITY,3360,30-Sep-20,178839,3375.00,CL COMMUNICATIONS,CLC001
EFDC,26200,OTHER SUPPORT SERVICES,BUILDING MAINTENANCE,1010,30-Sep-20,179614,35.00,DDM FIRE SAFETY,DDM001
EFDC,26200,OTHER SUPPORT SERVICES,BUILDING MAINTENANCE,1010,30-Sep-20,179614,52.50,DDM FIRE SAFETY,DDM001
EFDC,26200,OTHER SUPPORT SERVICES,BUILDING MAINTENANCE,1010,30-Sep-20,179614,55.00,DDM FIRE SAFETY,DDM001
EFDC,26200,OTHER SUPPORT SERVICES,BUILDING MAINTENANCE,1010,30-Sep-20,179614,121.00,DDM FIRE SAFETY,DDM001
EFDC,RM400,PLANNED & CYCLICAL MAINTENANCE,BUILDING MAINTENANCE,1010,30-Sep-20,179614,1264.00,DDM FIRE SAFETY,DDM001
EFDC,26200,OTHER SUPPORT SERVICES,BUILDING MAINTENANCE,1010,30-Sep-20,179614,72.00,DDM FIRE SAFETY,DDM001
EFDC,26200,OTHER SUPPORT SERVICES,BUILDING MAINTENANCE,1010,30-Sep-20,179614,60.00,DDM FIRE SAFETY,DDM001
EFDC,26200,OTHER SUPPORT SERVICES,FIXED PLANT MAINTENANCE,1020,30-Sep-20,179614,290.00,DDM FIRE SAFETY,DDM001
EFDC,26200,OTHER SUPPORT SERVICES,BUILDING MAINTENANCE,1010,30-Sep-20,179614,112.50,DDM FIRE SAFETY,DDM001
EFDC,26200,OTHER SUPPORT SERVICES,BUILDING MAINTENANCE,1010,30-Sep-20,179614,35.00,DDM FIRE SAFETY,DDM001
EFDC,26200,OTHER SUPPORT SERVICES,BUILDING MAINTENANCE,1010,30-Sep-20,179614,34.50,DDM FIRE SAFETY,DDM001
EFDC,57100,HRA SUPPORT SERVICES,AGENCY STAFF,0120,30-Sep-20,178492,3550.00,GREENACRE RECRUITMENT LTD,GRE029
EFDC,78001,HRA SUPPORT SERVICES,AGENCY STAFF,0120,30-Sep-20,179719,1003.95,STRATUS RECRUITMENT (CONTRACTORS) LTD,STR023
EFDC,78001,HRA SUPPORT SERVICES,AGENCY STAFF,0120,30-Sep-20,179717,889.20,STRATUS RECRUITMENT (CONTRACTORS) LTD,STR023
EFDC,78001,HRA SUPPORT SERVICES,AGENCY STAFF,0120,30-Sep-20,179718,1015.88,STRATUS RECRUITMENT (CONTRACTORS) LTD,STR023
EFDC,27050,ACCOMMODATION,SECURITY,1650,30-Sep-20,178919,5288.40,MANPOWER DIRECT UK LTD,MAN025
EFDC,CAPGF,GENERAL FUND CAPITAL,WORKS,B040,30-Sep-20,178917,641.06,MANPOWER DIRECT UK LTD,MAN025
EFDC,CAPGF,GENERAL FUND CAPITAL,WORKS,B040,30-Sep-20,178920,628.41,MANPOWER DIRECT UK LTD,MAN025
EFDC,CM103,OTHER ACTIVITIES,LEGAL EXPENSES,3680,30-Sep-20,179697,67540.00,PENNINGTONS MANCHES COOPER LLP,PEN023
EFDC,RM400,PLANNED & CYCLICAL MAINTENANCE,BUILDING MAINTENANCE,1010,30-Sep-20,178960,879.87,PH WATER TECHNOLOGIES LTD,PHW003
EFDC,26200,OTHER SUPPORT SERVICES,BUILDING MAINTENANCE,1010,30-Sep-20,178960,78.33,PH WATER TECHNOLOGIES LTD,PHW003
EFDC,26200,OTHER SUPPORT SERVICES,BUILDING MAINTENANCE,1010,30-Sep-20,178960,81.67,PH WATER TECHNOLOGIES LTD,PHW003
EFDC,26200,OTHER SUPPORT SERVICES,BUILDING MAINTENANCE,1010,30-Sep-20,178960,78.33,PH WATER TECHNOLOGIES LTD,PHW003
EFDC,26200,OTHER SUPPORT SERVICES,BUILDING MAINTENANCE,1010,30-Sep-20,178960,81.67,PH WATER TECHNOLOGIES LTD,PHW003
EFDC,CH110,"MUSEUM, HERITAGE & CULTURE",MATERIALS,3080,30-Sep-20,178510,975.00,HG MUSEUM CONSULTANCY,HGM001
EFDC,TO100,LAND & PROPERTY,VEHICLE PARTS / REPAIRS,2210,30-Sep-20,179667,2100.00,JUST TRANSIT SPARES LTD,JUS005
EFDC,HI121,HIGHWAYS,TRAINING EXPENSES,0310,30-Sep-20,179214,555.00,CITRUS TRAINING LIMITED,CIT006
EFDC,TO100,LAND & PROPERTY,VEHICLE HIRE,2620,30-Sep-20,179621,639.67,ENTERPRISE RENT-A-CAR UK LIMITED,ENT031
EFDC,32115,OTHER SUPPORT SERVICES,TRAINING EXPENSES,0310,30-Sep-20,179243,300.00,EVERYKIND,EVE003
EFDC,32115,OTHER SUPPORT SERVICES,TRAINING EXPENSES,0310,30-Sep-20,179243,2500.00,EVERYKIND,EVE003
EFDC,CAPGF,GENERAL FUND CAPITAL,CONSULTANCY FEES,B200,30-Sep-20,179337,10327.50,LA FOSSE ASSOCIATES LIMITED,LAF001
EFDC,PS100,CAR PARKING,OTHER MAINTENANCE,1050,30-Sep-20,178567,1740.00,PARKING ASSOCIATES LTD,PAR014
EFDC,CAPGF,GENERAL FUND CAPITAL,CONSULTANCY FEES,B200,30-Sep-20,178163,10075.00,GARDINER & THEOBALD LLP,GAR004
EFDC,CAPGF,GENERAL FUND CAPITAL,WORKS,B040,30-Sep-20,178962,1031.31,PORTAKABIN LIMITED,POR006
EFDC,PH100,PRIVATE SECTOR HOUSING,GRANTS GENERAL,3720,29-Sep-20,37925,1533.10,JEWEL PROPERTY MAINTENANCE LTD,JEW022
EFDC,05240,LEASEHOLDERS,CASH RECEIPTS,7790,29-Sep-20,37917,2556.64,MRS E J BOOTON,7361P
EFDC,PH100,PRIVATE SECTOR HOUSING,GRANTS GENERAL,3720,29-Sep-20,37924,5250.00,J H CONTRACTORS (ESSEX) LIMITED,JHC001
EFDC,05240,LEASEHOLDERS,CASH RECEIPTS,7790,29-Sep-20,37915,658.27,DARYL BRADFORD,10053P
EFDC,BAL01,EFDC BALANCE SHEET,DEPOSITS - PAID,Z223,29-Sep-20,37926,495.00,DARREN BUTLER & GEORGINA BUTLER,10057P
EFDC,BAL01,EFDC BALANCE SHEET,SUNDRY DEBTORS (OTHER),Z208,29-Sep-20,37926,660.00,DARREN BUTLER & GEORGINA BUTLER,10057P
EFDC,YB200,SUPERVISION/MANAGEMENT SPECIAL,REMOVAL EXPENSES,3830,29-Sep-20,37930,1350.67,ROYDON MARINA VILLAGE,10060P
EFDC,EH150,REGULATORY SERVICES,LICENSING INCOME,9370,29-Sep-20,37929,1039.50,MR M ALI,10059P
EFDC,LT140,LOCAL TAXATION,GRANTS GENERAL,3720,29-Sep-20,37912,10000.00,MR M J JARVIS,10050P
EFDC,BAL01,EFDC BALANCE SHEET,SUNDRY DEBTORS (OTHER),Z208,29-Sep-20,37927,500.00,MR LEE STIMPSON,10032P
EFDC,BAL01,EFDC BALANCE SHEET,DEPOSITS - PAID,Z223,29-Sep-20,37927,350.00,MR LEE STIMPSON,10032P
EFDC,BAL01,EFDC BALANCE SHEET,DEPOSITS - PAID,Z223,24-Sep-20,37657,1000.00,BARRINGTONS CLIENTS ACCOUNT,10012P
EFDC,BAL01,EFDC BALANCE SHEET,SUNDRY DEBTORS (OTHER),Z208,24-Sep-20,37657,1000.00,BARRINGTONS CLIENTS ACCOUNT,10012P
EFDC,YB110,SUPERVISION/MANAGEMENT SPECIAL,ELECTRICITY,1120,23-Sep-20,179181,22.87,BRITISH GAS,BRI040
EFDC,YB110,SUPERVISION/MANAGEMENT SPECIAL,ELECTRICITY,1120,23-Sep-20,179181,34.81,BRITISH GAS,BRI040
EFDC,YB110,SUPERVISION/MANAGEMENT SPECIAL,ELECTRICITY,1120,23-Sep-20,179181,15.83,BRITISH GAS,BRI040
EFDC,YB110,SUPERVISION/MANAGEMENT SPECIAL,ELECTRICITY,1120,23-Sep-20,179181,27.53,BRITISH GAS,BRI040
EFDC,YB110,SUPERVISION/MANAGEMENT SPECIAL,ELECTRICITY,1120,23-Sep-20,179181,15.32,BRITISH GAS,BRI040
EFDC,YB110,SUPERVISION/MANAGEMENT SPECIAL,ELECTRICITY,1120,23-Sep-20,179181,12.16,BRITISH GAS,BRI040
EFDC,YB110,SUPERVISION/MANAGEMENT SPECIAL,ELECTRICITY,1120,23-Sep-20,179181,16.60,BRITISH GAS,BRI040
EFDC,YB110,SUPERVISION/MANAGEMENT SPECIAL,ELECTRICITY,1120,23-Sep-20,179181,9.45,BRITISH GAS,BRI040
EFDC,YB110,SUPERVISION/MANAGEMENT SPECIAL,ELECTRICITY,1120,23-Sep-20,179181,8.66,BRITISH GAS,BRI040
EFDC,YB110,SUPERVISION/MANAGEMENT SPECIAL,ELECTRICITY,1120,23-Sep-20,179181,22.43,BRITISH GAS,BRI040
EFDC,YB110,SUPERVISION/MANAGEMENT SPECIAL,ELECTRICITY,1120,23-Sep-20,179181,11.63,BRITISH GAS,BRI040
EFDC,YB110,SUPERVISION/MANAGEMENT SPECIAL,ELECTRICITY,1120,23-Sep-20,179181,13.65,BRITISH GAS,BRI040
EFDC,YB110,SUPERVISION/MANAGEMENT SPECIAL,ELECTRICITY,1120,23-Sep-20,179181,34.80,BRITISH GAS,BRI040
EFDC,YB110,SUPERVISION/MANAGEMENT SPECIAL,ELECTRICITY,1120,23-Sep-20,179181,22.79,BRITISH GAS,BRI040
EFDC,YB110,SUPERVISION/MANAGEMENT SPECIAL,ELECTRICITY,1120,23-Sep-20,179181,12.95,BRITISH GAS,BRI040
EFDC,YB110,SUPERVISION/MANAGEMENT SPECIAL,ELECTRICITY,1120,23-Sep-20,179181,10.13,BRITISH GAS,BRI040
EFDC,YB110,SUPERVISION/MANAGEMENT SPECIAL,ELECTRICITY,1120,23-Sep-20,179181,10.52,BRITISH GAS,BRI040
EFDC,YB110,SUPERVISION/MANAGEMENT SPECIAL,ELECTRICITY,1120,23-Sep-20,179181,15.67,BRITISH GAS,BRI040
EFDC,YB110,SUPERVISION/MANAGEMENT SPECIAL,ELECTRICITY,1120,23-Sep-20,179181,8.01,BRITISH GAS,BRI040
EFDC,YB110,SUPERVISION/MANAGEMENT SPECIAL,ELECTRICITY,1120,23-Sep-20,179181,19.60,BRITISH GAS,BRI040
EFDC,YB110,SUPERVISION/MANAGEMENT SPECIAL,ELECTRICITY,1120,23-Sep-20,179181,41.82,BRITISH GAS,BRI040
EFDC,YB110,SUPERVISION/MANAGEMENT SPECIAL,ELECTRICITY,1120,23-Sep-20,179181,82.39,BRITISH GAS,BRI040
EFDC,YB110,SUPERVISION/MANAGEMENT SPECIAL,ELECTRICITY,1120,23-Sep-20,179181,31.62,BRITISH GAS,BRI040
EFDC,YB110,SUPERVISION/MANAGEMENT SPECIAL,ELECTRICITY,1120,23-Sep-20,179181,31.61,BRITISH GAS,BRI040
EFDC,YB110,SUPERVISION/MANAGEMENT SPECIAL,ELECTRICITY,1120,23-Sep-20,179181,244.30,BRITISH GAS,BRI040
EFDC,YB110,SUPERVISION/MANAGEMENT SPECIAL,ELECTRICITY,1120,23-Sep-20,179181,16.78,BRITISH GAS,BRI040
EFDC,YB110,SUPERVISION/MANAGEMENT SPECIAL,ELECTRICITY,1120,23-Sep-20,179181,56.84,BRITISH GAS,BRI040
EFDC,YB110,SUPERVISION/MANAGEMENT SPECIAL,ELECTRICITY,1120,23-Sep-20,179181,21.66,BRITISH GAS,BRI040
EFDC,YB110,SUPERVISION/MANAGEMENT SPECIAL,ELECTRICITY,1120,23-Sep-20,179181,14.70,BRITISH GAS,BRI040
EFDC,YB110,SUPERVISION/MANAGEMENT SPECIAL,ELECTRICITY,1120,23-Sep-20,179181,28.42,BRITISH GAS,BRI040
EFDC,YB110,SUPERVISION/MANAGEMENT SPECIAL,ELECTRICITY,1120,23-Sep-20,179181,12.40,BRITISH GAS,BRI040
EFDC,YB110,SUPERVISION/MANAGEMENT SPECIAL,ELECTRICITY,1120,23-Sep-20,179181,21.91,BRITISH GAS,BRI040
EFDC,YB110,SUPERVISION/MANAGEMENT SPECIAL,ELECTRICITY,1120,23-Sep-20,179181,447.40,BRITISH GAS,BRI040
EFDC,YB110,SUPERVISION/MANAGEMENT SPECIAL,ELECTRICITY,1120,23-Sep-20,179181,100.04,BRITISH GAS,BRI040
EFDC,YB110,SUPERVISION/MANAGEMENT SPECIAL,ELECTRICITY,1120,23-Sep-20,179181,20.90,BRITISH GAS,BRI040
EFDC,YB110,SUPERVISION/MANAGEMENT SPECIAL,ELECTRICITY,1120,23-Sep-20,179181,15.27,BRITISH GAS,BRI040
EFDC,YB110,SUPERVISION/MANAGEMENT SPECIAL,ELECTRICITY,1120,23-Sep-20,179181,14.53,BRITISH GAS,BRI040
EFDC,YB110,SUPERVISION/MANAGEMENT SPECIAL,ELECTRICITY,1120,23-Sep-20,179181,15.65,BRITISH GAS,BRI040
EFDC,YB110,SUPERVISION/MANAGEMENT SPECIAL,ELECTRICITY,1120,23-Sep-20,179181,28.42,BRITISH GAS,BRI040
EFDC,YB110,SUPERVISION/MANAGEMENT SPECIAL,ELECTRICITY,1120,23-Sep-20,179181,12.00,BRITISH GAS,BRI040
EFDC,YB110,SUPERVISION/MANAGEMENT SPECIAL,ELECTRICITY,1120,23-Sep-20,179181,11.08,BRITISH GAS,BRI040
EFDC,YB110,SUPERVISION/MANAGEMENT SPECIAL,ELECTRICITY,1120,23-Sep-20,179181,12.73,BRITISH GAS,BRI040
EFDC,YB110,SUPERVISION/MANAGEMENT SPECIAL,ELECTRICITY,1120,23-Sep-20,179181,43.01,BRITISH GAS,BRI040
EFDC,YB110,SUPERVISION/MANAGEMENT SPECIAL,ELECTRICITY,1120,23-Sep-20,179181,16.79,BRITISH GAS,BRI040
EFDC,YB110,SUPERVISION/MANAGEMENT SPECIAL,ELECTRICITY,1120,23-Sep-20,179181,17.16,BRITISH GAS,BRI040
EFDC,YB110,SUPERVISION/MANAGEMENT SPECIAL,ELECTRICITY,1120,23-Sep-20,179181,18.50,BRITISH GAS,BRI040
EFDC,YB110,SUPERVISION/MANAGEMENT SPECIAL,ELECTRICITY,1120,23-Sep-20,179181,33.66,BRITISH GAS,BRI040
EFDC,YB110,SUPERVISION/MANAGEMENT SPECIAL,ELECTRICITY,1120,23-Sep-20,179181,10.64,BRITISH GAS,BRI040
EFDC,YB110,SUPERVISION/MANAGEMENT SPECIAL,ELECTRICITY,1120,23-Sep-20,179181,10.08,BRITISH GAS,BRI040
EFDC,YB110,SUPERVISION/MANAGEMENT SPECIAL,ELECTRICITY,1120,23-Sep-20,179181,14.55,BRITISH GAS,BRI040
EFDC,YB110,SUPERVISION/MANAGEMENT SPECIAL,ELECTRICITY,1120,23-Sep-20,179181,17.65,BRITISH GAS,BRI040
EFDC,YB110,SUPERVISION/MANAGEMENT SPECIAL,ELECTRICITY,1120,23-Sep-20,179181,12.15,BRITISH GAS,BRI040
EFDC,YB110,SUPERVISION/MANAGEMENT SPECIAL,ELECTRICITY,1120,23-Sep-20,179181,13.03,BRITISH GAS,BRI040
EFDC,YB110,SUPERVISION/MANAGEMENT SPECIAL,ELECTRICITY,1120,23-Sep-20,179181,8.26,BRITISH GAS,BRI040
EFDC,YB110,SUPERVISION/MANAGEMENT SPECIAL,ELECTRICITY,1120,23-Sep-20,179181,8.89,BRITISH GAS,BRI040
EFDC,YB110,SUPERVISION/MANAGEMENT SPECIAL,ELECTRICITY,1120,23-Sep-20,179181,13.01,BRITISH GAS,BRI040
EFDC,YB110,SUPERVISION/MANAGEMENT SPECIAL,ELECTRICITY,1120,23-Sep-20,179181,11.39,BRITISH GAS,BRI040
EFDC,YB110,SUPERVISION/MANAGEMENT SPECIAL,ELECTRICITY,1120,23-Sep-20,179181,15.37,BRITISH GAS,BRI040
EFDC,YB110,SUPERVISION/MANAGEMENT SPECIAL,ELECTRICITY,1120,23-Sep-20,179181,10.90,BRITISH GAS,BRI040
EFDC,YB110,SUPERVISION/MANAGEMENT SPECIAL,ELECTRICITY,1120,23-Sep-20,179181,14.90,BRITISH GAS,BRI040
EFDC,YB110,SUPERVISION/MANAGEMENT SPECIAL,ELECTRICITY,1120,23-Sep-20,179181,10.77,BRITISH GAS,BRI040
EFDC,YB110,SUPERVISION/MANAGEMENT SPECIAL,ELECTRICITY,1120,23-Sep-20,179181,9.76,BRITISH GAS,BRI040
EFDC,YB110,SUPERVISION/MANAGEMENT SPECIAL,ELECTRICITY,1120,23-Sep-20,179181,8.13,BRITISH GAS,BRI040
EFDC,YB110,SUPERVISION/MANAGEMENT SPECIAL,ELECTRICITY,1120,23-Sep-20,179181,11.14,BRITISH GAS,BRI040
EFDC,YB110,SUPERVISION/MANAGEMENT SPECIAL,ELECTRICITY,1120,23-Sep-20,179181,8.14,BRITISH GAS,BRI040
EFDC,YB110,SUPERVISION/MANAGEMENT SPECIAL,ELECTRICITY,1120,23-Sep-20,179181,15.65,BRITISH GAS,BRI040
EFDC,YB110,SUPERVISION/MANAGEMENT SPECIAL,ELECTRICITY,1120,23-Sep-20,179181,14.50,BRITISH GAS,BRI040
EFDC,YB110,SUPERVISION/MANAGEMENT SPECIAL,ELECTRICITY,1120,23-Sep-20,179181,8.77,BRITISH GAS,BRI040
EFDC,YB110,SUPERVISION/MANAGEMENT SPECIAL,ELECTRICITY,1120,23-Sep-20,179181,16.83,BRITISH GAS,BRI040
EFDC,YB110,SUPERVISION/MANAGEMENT SPECIAL,ELECTRICITY,1120,23-Sep-20,179181,38.95,BRITISH GAS,BRI040
EFDC,YB110,SUPERVISION/MANAGEMENT SPECIAL,ELECTRICITY,1120,23-Sep-20,179181,13.27,BRITISH GAS,BRI040
EFDC,YB110,SUPERVISION/MANAGEMENT SPECIAL,ELECTRICITY,1120,23-Sep-20,179181,7.64,BRITISH GAS,BRI040
EFDC,YB110,SUPERVISION/MANAGEMENT SPECIAL,ELECTRICITY,1120,23-Sep-20,179181,17.71,BRITISH GAS,BRI040
EFDC,YB110,SUPERVISION/MANAGEMENT SPECIAL,ELECTRICITY,1120,23-Sep-20,179181,16.14,BRITISH GAS,BRI040
EFDC,YB110,SUPERVISION/MANAGEMENT SPECIAL,ELECTRICITY,1120,23-Sep-20,179181,16.69,BRITISH GAS,BRI040
EFDC,YB110,SUPERVISION/MANAGEMENT SPECIAL,ELECTRICITY,1120,23-Sep-20,179181,16.43,BRITISH GAS,BRI040
EFDC,YB110,SUPERVISION/MANAGEMENT SPECIAL,ELECTRICITY,1120,23-Sep-20,179181,9.01,BRITISH GAS,BRI040
EFDC,YB110,SUPERVISION/MANAGEMENT SPECIAL,ELECTRICITY,1120,23-Sep-20,179181,10.39,BRITISH GAS,BRI040
EFDC,YB110,SUPERVISION/MANAGEMENT SPECIAL,ELECTRICITY,1120,23-Sep-20,179181,-47.65,BRITISH GAS,BRI040
EFDC,YB110,SUPERVISION/MANAGEMENT SPECIAL,ELECTRICITY,1120,23-Sep-20,179181,-14.87,BRITISH GAS,BRI040
EFDC,YB110,SUPERVISION/MANAGEMENT SPECIAL,ELECTRICITY,1120,23-Sep-20,179181,-15.59,BRITISH GAS,BRI040
EFDC,YB110,SUPERVISION/MANAGEMENT SPECIAL,ELECTRICITY,1120,23-Sep-20,179181,-10.49,BRITISH GAS,BRI040
EFDC,YB110,SUPERVISION/MANAGEMENT SPECIAL,ELECTRICITY,1120,23-Sep-20,179181,-12.77,BRITISH GAS,BRI040
EFDC,YB110,SUPERVISION/MANAGEMENT SPECIAL,ELECTRICITY,1120,23-Sep-20,179181,-13.01,BRITISH GAS,BRI040
EFDC,YB110,SUPERVISION/MANAGEMENT SPECIAL,ELECTRICITY,1120,23-Sep-20,179181,-28.74,BRITISH GAS,BRI040
EFDC,YB110,SUPERVISION/MANAGEMENT SPECIAL,ELECTRICITY,1120,23-Sep-20,179181,-46.37,BRITISH GAS,BRI040
EFDC,YB110,SUPERVISION/MANAGEMENT SPECIAL,ELECTRICITY,1120,23-Sep-20,179181,-17.44,BRITISH GAS,BRI040
EFDC,YB110,SUPERVISION/MANAGEMENT SPECIAL,ELECTRICITY,1120,23-Sep-20,179181,-41.47,BRITISH GAS,BRI040
EFDC,YB110,SUPERVISION/MANAGEMENT SPECIAL,ELECTRICITY,1120,23-Sep-20,179181,-24.79,BRITISH GAS,BRI040
EFDC,YB110,SUPERVISION/MANAGEMENT SPECIAL,ELECTRICITY,1120,23-Sep-20,179181,-22.59,BRITISH GAS,BRI040
EFDC,YB110,SUPERVISION/MANAGEMENT SPECIAL,ELECTRICITY,1120,23-Sep-20,179181,-28.20,BRITISH GAS,BRI040
EFDC,YB110,SUPERVISION/MANAGEMENT SPECIAL,ELECTRICITY,1120,23-Sep-20,179181,-29.01,BRITISH GAS,BRI040
EFDC,YB110,SUPERVISION/MANAGEMENT SPECIAL,ELECTRICITY,1120,23-Sep-20,179181,-37.51,BRITISH GAS,BRI040
EFDC,YB110,SUPERVISION/MANAGEMENT SPECIAL,ELECTRICITY,1120,23-Sep-20,179181,-20.34,BRITISH GAS,BRI040
EFDC,YB110,SUPERVISION/MANAGEMENT SPECIAL,ELECTRICITY,1120,23-Sep-20,179181,-26.75,BRITISH GAS,BRI040
EFDC,YB110,SUPERVISION/MANAGEMENT SPECIAL,ELECTRICITY,1120,23-Sep-20,179181,25.66,BRITISH GAS,BRI040
EFDC,YB110,SUPERVISION/MANAGEMENT SPECIAL,ELECTRICITY,1120,23-Sep-20,179181,-55.75,BRITISH GAS,BRI040
EFDC,YB110,SUPERVISION/MANAGEMENT SPECIAL,ELECTRICITY,1120,23-Sep-20,179181,-124.81,BRITISH GAS,BRI040
EFDC,YB110,SUPERVISION/MANAGEMENT SPECIAL,ELECTRICITY,1120,23-Sep-20,179181,-9.89,BRITISH GAS,BRI040
EFDC,YB110,SUPERVISION/MANAGEMENT SPECIAL,ELECTRICITY,1120,23-Sep-20,179181,-10.14,BRITISH GAS,BRI040
EFDC,YB110,SUPERVISION/MANAGEMENT SPECIAL,ELECTRICITY,1120,23-Sep-20,179181,-14.86,BRITISH GAS,BRI040
EFDC,YB110,SUPERVISION/MANAGEMENT SPECIAL,ELECTRICITY,1120,23-Sep-20,179181,-15.25,BRITISH GAS,BRI040
EFDC,YB110,SUPERVISION/MANAGEMENT SPECIAL,ELECTRICITY,1120,23-Sep-20,179181,-16.29,BRITISH GAS,BRI040
EFDC,YB110,SUPERVISION/MANAGEMENT SPECIAL,ELECTRICITY,1120,23-Sep-20,179181,-21.17,BRITISH GAS,BRI040
EFDC,YB110,SUPERVISION/MANAGEMENT SPECIAL,ELECTRICITY,1120,23-Sep-20,179181,-1313.21,BRITISH GAS,BRI040
EFDC,YB110,SUPERVISION/MANAGEMENT SPECIAL,ELECTRICITY,1120,23-Sep-20,179181,-26.49,BRITISH GAS,BRI040
EFDC,YB110,SUPERVISION/MANAGEMENT SPECIAL,ELECTRICITY,1120,23-Sep-20,179181,-664.84,BRITISH GAS,BRI040
EFDC,YB110,SUPERVISION/MANAGEMENT SPECIAL,ELECTRICITY,1120,23-Sep-20,179181,-24.71,BRITISH GAS,BRI040
EFDC,YB110,SUPERVISION/MANAGEMENT SPECIAL,ELECTRICITY,1120,23-Sep-20,179181,-403.08,BRITISH GAS,BRI040
EFDC,YB110,SUPERVISION/MANAGEMENT SPECIAL,ELECTRICITY,1120,23-Sep-20,179181,-209.01,BRITISH GAS,BRI040
EFDC,YB110,SUPERVISION/MANAGEMENT SPECIAL,ELECTRICITY,1120,23-Sep-20,179181,-34.53,BRITISH GAS,BRI040
EFDC,YB110,SUPERVISION/MANAGEMENT SPECIAL,ELECTRICITY,1120,23-Sep-20,179181,-34.05,BRITISH GAS,BRI040
EFDC,YB110,SUPERVISION/MANAGEMENT SPECIAL,ELECTRICITY,1120,23-Sep-20,179181,-30.54,BRITISH GAS,BRI040
EFDC,YB110,SUPERVISION/MANAGEMENT SPECIAL,ELECTRICITY,1120,23-Sep-20,179181,-31.17,BRITISH GAS,BRI040
EFDC,YB110,SUPERVISION/MANAGEMENT SPECIAL,ELECTRICITY,1120,23-Sep-20,179181,-17.91,BRITISH GAS,BRI040
EFDC,YB110,SUPERVISION/MANAGEMENT SPECIAL,ELECTRICITY,1120,23-Sep-20,179181,-13.59,BRITISH GAS,BRI040
EFDC,YB110,SUPERVISION/MANAGEMENT SPECIAL,ELECTRICITY,1120,23-Sep-20,179181,-548.98,BRITISH GAS,BRI040
EFDC,YB110,SUPERVISION/MANAGEMENT SPECIAL,ELECTRICITY,1120,23-Sep-20,179181,6.80,BRITISH GAS,BRI040
EFDC,YB110,SUPERVISION/MANAGEMENT SPECIAL,ELECTRICITY,1120,23-Sep-20,179181,107.62,BRITISH GAS,BRI040
EFDC,YB110,SUPERVISION/MANAGEMENT SPECIAL,ELECTRICITY,1120,23-Sep-20,179181,16.42,BRITISH GAS,BRI040
EFDC,YB110,SUPERVISION/MANAGEMENT SPECIAL,ELECTRICITY,1120,23-Sep-20,179181,23.38,BRITISH GAS,BRI040
EFDC,YB110,SUPERVISION/MANAGEMENT SPECIAL,ELECTRICITY,1120,23-Sep-20,179181,33.92,BRITISH GAS,BRI040
EFDC,YB110,SUPERVISION/MANAGEMENT SPECIAL,ELECTRICITY,1120,23-Sep-20,179181,31.05,BRITISH GAS,BRI040
EFDC,YB110,SUPERVISION/MANAGEMENT SPECIAL,ELECTRICITY,1120,23-Sep-20,179181,7.64,BRITISH GAS,BRI040
EFDC,YB110,SUPERVISION/MANAGEMENT SPECIAL,ELECTRICITY,1120,23-Sep-20,179181,7.63,BRITISH GAS,BRI040
EFDC,YB110,SUPERVISION/MANAGEMENT SPECIAL,ELECTRICITY,1120,23-Sep-20,179181,-27.62,BRITISH GAS,BRI040
EFDC,YB110,SUPERVISION/MANAGEMENT SPECIAL,ELECTRICITY,1120,23-Sep-20,179181,16.78,BRITISH GAS,BRI040
EFDC,YB110,SUPERVISION/MANAGEMENT SPECIAL,ELECTRICITY,1120,23-Sep-20,179181,14.51,BRITISH GAS,BRI040
EFDC,YB110,SUPERVISION/MANAGEMENT SPECIAL,ELECTRICITY,1120,23-Sep-20,179181,7.63,BRITISH GAS,BRI040
EFDC,YB110,SUPERVISION/MANAGEMENT SPECIAL,ELECTRICITY,1120,23-Sep-20,179181,16.36,BRITISH GAS,BRI040
EFDC,YB110,SUPERVISION/MANAGEMENT SPECIAL,ELECTRICITY,1120,23-Sep-20,179181,7.64,BRITISH GAS,BRI040
EFDC,YB110,SUPERVISION/MANAGEMENT SPECIAL,ELECTRICITY,1120,23-Sep-20,179181,15.40,BRITISH GAS,BRI040
EFDC,YB110,SUPERVISION/MANAGEMENT SPECIAL,ELECTRICITY,1120,23-Sep-20,179181,64.70,BRITISH GAS,BRI040
EFDC,YB110,SUPERVISION/MANAGEMENT SPECIAL,ELECTRICITY,1120,23-Sep-20,179181,11.98,BRITISH GAS,BRI040
EFDC,YB110,SUPERVISION/MANAGEMENT SPECIAL,ELECTRICITY,1120,23-Sep-20,179181,7.63,BRITISH GAS,BRI040
EFDC,YB110,SUPERVISION/MANAGEMENT SPECIAL,ELECTRICITY,1120,23-Sep-20,179181,51.52,BRITISH GAS,BRI040
EFDC,YB110,SUPERVISION/MANAGEMENT SPECIAL,ELECTRICITY,1120,23-Sep-20,179181,34.90,BRITISH GAS,BRI040
EFDC,YB110,SUPERVISION/MANAGEMENT SPECIAL,ELECTRICITY,1120,23-Sep-20,179181,-10.95,BRITISH GAS,BRI040
EFDC,YB110,SUPERVISION/MANAGEMENT SPECIAL,ELECTRICITY,1120,23-Sep-20,179181,-45.41,BRITISH GAS,BRI040
EFDC,YB110,SUPERVISION/MANAGEMENT SPECIAL,ELECTRICITY,1120,23-Sep-20,179181,-16.11,BRITISH GAS,BRI040
EFDC,YB110,SUPERVISION/MANAGEMENT SPECIAL,ELECTRICITY,1120,23-Sep-20,179181,59.31,BRITISH GAS,BRI040
EFDC,YB110,SUPERVISION/MANAGEMENT SPECIAL,ELECTRICITY,1120,23-Sep-20,179181,45.63,BRITISH GAS,BRI040
EFDC,YB110,SUPERVISION/MANAGEMENT SPECIAL,ELECTRICITY,1120,23-Sep-20,179181,54.75,BRITISH GAS,BRI040
EFDC,YB110,SUPERVISION/MANAGEMENT SPECIAL,ELECTRICITY,1120,23-Sep-20,179181,56.76,BRITISH GAS,BRI040
EFDC,YB110,SUPERVISION/MANAGEMENT SPECIAL,ELECTRICITY,1120,23-Sep-20,179181,16.20,BRITISH GAS,BRI040
EFDC,YB110,SUPERVISION/MANAGEMENT SPECIAL,ELECTRICITY,1120,23-Sep-20,179181,35.00,BRITISH GAS,BRI040
EFDC,YB110,SUPERVISION/MANAGEMENT SPECIAL,ELECTRICITY,1120,23-Sep-20,179181,13.52,BRITISH GAS,BRI040
EFDC,YB110,SUPERVISION/MANAGEMENT SPECIAL,ELECTRICITY,1120,23-Sep-20,179181,37.60,BRITISH GAS,BRI040
EFDC,YB110,SUPERVISION/MANAGEMENT SPECIAL,ELECTRICITY,1120,23-Sep-20,179181,32.48,BRITISH GAS,BRI040
EFDC,YB110,SUPERVISION/MANAGEMENT SPECIAL,ELECTRICITY,1120,23-Sep-20,179181,21.37,BRITISH GAS,BRI040
EFDC,YB110,SUPERVISION/MANAGEMENT SPECIAL,ELECTRICITY,1120,23-Sep-20,179181,15.42,BRITISH GAS,BRI040
EFDC,YB110,SUPERVISION/MANAGEMENT SPECIAL,ELECTRICITY,1120,23-Sep-20,179181,73.78,BRITISH GAS,BRI040
EFDC,YB110,SUPERVISION/MANAGEMENT SPECIAL,ELECTRICITY,1120,23-Sep-20,179181,6.87,BRITISH GAS,BRI040
EFDC,YB110,SUPERVISION/MANAGEMENT SPECIAL,ELECTRICITY,1120,23-Sep-20,179181,12.99,BRITISH GAS,BRI040
EFDC,YB110,SUPERVISION/MANAGEMENT SPECIAL,ELECTRICITY,1120,23-Sep-20,179181,15.96,BRITISH GAS,BRI040
EFDC,YB110,SUPERVISION/MANAGEMENT SPECIAL,ELECTRICITY,1120,23-Sep-20,179181,98.54,BRITISH GAS,BRI040
EFDC,YB110,SUPERVISION/MANAGEMENT SPECIAL,ELECTRICITY,1120,23-Sep-20,179181,12.77,BRITISH GAS,BRI040
EFDC,YB110,SUPERVISION/MANAGEMENT SPECIAL,ELECTRICITY,1120,23-Sep-20,179181,4.65,BRITISH GAS,BRI040
EFDC,YB110,SUPERVISION/MANAGEMENT SPECIAL,ELECTRICITY,1120,23-Sep-20,179181,17.15,BRITISH GAS,BRI040
EFDC,YB110,SUPERVISION/MANAGEMENT SPECIAL,ELECTRICITY,1120,23-Sep-20,179181,15.64,BRITISH GAS,BRI040
EFDC,YB110,SUPERVISION/MANAGEMENT SPECIAL,ELECTRICITY,1120,23-Sep-20,179181,16.03,BRITISH GAS,BRI040
EFDC,YB110,SUPERVISION/MANAGEMENT SPECIAL,ELECTRICITY,1120,23-Sep-20,179181,20.03,BRITISH GAS,BRI040
EFDC,YB110,SUPERVISION/MANAGEMENT SPECIAL,ELECTRICITY,1120,23-Sep-20,179181,19.52,BRITISH GAS,BRI040
EFDC,YB110,SUPERVISION/MANAGEMENT SPECIAL,ELECTRICITY,1120,23-Sep-20,179181,14.26,BRITISH GAS,BRI040
EFDC,YB110,SUPERVISION/MANAGEMENT SPECIAL,ELECTRICITY,1120,23-Sep-20,179181,17.89,BRITISH GAS,BRI040
EFDC,YB110,SUPERVISION/MANAGEMENT SPECIAL,ELECTRICITY,1120,23-Sep-20,179181,7.64,BRITISH GAS,BRI040
EFDC,YB110,SUPERVISION/MANAGEMENT SPECIAL,ELECTRICITY,1120,23-Sep-20,179181,3.50,BRITISH GAS,BRI040
EFDC,YB110,SUPERVISION/MANAGEMENT SPECIAL,ELECTRICITY,1120,23-Sep-20,179181,13.39,BRITISH GAS,BRI040
EFDC,YB110,SUPERVISION/MANAGEMENT SPECIAL,ELECTRICITY,1120,23-Sep-20,179181,2.95,BRITISH GAS,BRI040
EFDC,YB110,SUPERVISION/MANAGEMENT SPECIAL,ELECTRICITY,1120,23-Sep-20,179181,3.92,BRITISH GAS,BRI040
EFDC,YB110,SUPERVISION/MANAGEMENT SPECIAL,ELECTRICITY,1120,23-Sep-20,179181,7.98,BRITISH GAS,BRI040
EFDC,YB110,SUPERVISION/MANAGEMENT SPECIAL,ELECTRICITY,1120,23-Sep-20,179181,10.57,BRITISH GAS,BRI040
EFDC,YB110,SUPERVISION/MANAGEMENT SPECIAL,ELECTRICITY,1120,23-Sep-20,179181,26.78,BRITISH GAS,BRI040
EFDC,YB110,SUPERVISION/MANAGEMENT SPECIAL,ELECTRICITY,1120,23-Sep-20,179181,6.87,BRITISH GAS,BRI040
EFDC,YB110,SUPERVISION/MANAGEMENT SPECIAL,ELECTRICITY,1120,23-Sep-20,179181,12.65,BRITISH GAS,BRI040
EFDC,YB110,SUPERVISION/MANAGEMENT SPECIAL,ELECTRICITY,1120,23-Sep-20,179181,15.28,BRITISH GAS,BRI040
EFDC,YB110,SUPERVISION/MANAGEMENT SPECIAL,ELECTRICITY,1120,23-Sep-20,179181,53.09,BRITISH GAS,BRI040
EFDC,YB110,SUPERVISION/MANAGEMENT SPECIAL,ELECTRICITY,1120,23-Sep-20,179181,22.54,BRITISH GAS,BRI040
EFDC,YB110,SUPERVISION/MANAGEMENT SPECIAL,ELECTRICITY,1120,23-Sep-20,179181,65.44,BRITISH GAS,BRI040
EFDC,YB110,SUPERVISION/MANAGEMENT SPECIAL,ELECTRICITY,1120,23-Sep-20,179181,14.40,BRITISH GAS,BRI040
EFDC,YB110,SUPERVISION/MANAGEMENT SPECIAL,ELECTRICITY,1120,23-Sep-20,179181,11.14,BRITISH GAS,BRI040
EFDC,YB110,SUPERVISION/MANAGEMENT SPECIAL,ELECTRICITY,1120,23-Sep-20,179181,14.15,BRITISH GAS,BRI040
EFDC,YB110,SUPERVISION/MANAGEMENT SPECIAL,ELECTRICITY,1120,23-Sep-20,179181,13.40,BRITISH GAS,BRI040
EFDC,YB110,SUPERVISION/MANAGEMENT SPECIAL,ELECTRICITY,1120,23-Sep-20,179181,21.92,BRITISH GAS,BRI040
EFDC,YB110,SUPERVISION/MANAGEMENT SPECIAL,ELECTRICITY,1120,23-Sep-20,179181,21.04,BRITISH GAS,BRI040
EFDC,YB110,SUPERVISION/MANAGEMENT SPECIAL,ELECTRICITY,1120,23-Sep-20,179181,14.15,BRITISH GAS,BRI040
EFDC,YB110,SUPERVISION/MANAGEMENT SPECIAL,ELECTRICITY,1120,23-Sep-20,179181,15.15,BRITISH GAS,BRI040
EFDC,YB110,SUPERVISION/MANAGEMENT SPECIAL,ELECTRICITY,1120,23-Sep-20,179181,27.42,BRITISH GAS,BRI040
EFDC,YB110,SUPERVISION/MANAGEMENT SPECIAL,ELECTRICITY,1120,23-Sep-20,179181,15.90,BRITISH GAS,BRI040
EFDC,YB110,SUPERVISION/MANAGEMENT SPECIAL,ELECTRICITY,1120,23-Sep-20,179181,14.77,BRITISH GAS,BRI040
EFDC,YB110,SUPERVISION/MANAGEMENT SPECIAL,ELECTRICITY,1120,23-Sep-20,179181,7.01,BRITISH GAS,BRI040
EFDC,YB110,SUPERVISION/MANAGEMENT SPECIAL,ELECTRICITY,1120,23-Sep-20,179181,15.65,BRITISH GAS,BRI040
EFDC,YB110,SUPERVISION/MANAGEMENT SPECIAL,ELECTRICITY,1120,23-Sep-20,179181,6.87,BRITISH GAS,BRI040
EFDC,YB110,SUPERVISION/MANAGEMENT SPECIAL,ELECTRICITY,1120,23-Sep-20,179181,50.78,BRITISH GAS,BRI040
EFDC,YB110,SUPERVISION/MANAGEMENT SPECIAL,ELECTRICITY,1120,23-Sep-20,179181,6.87,BRITISH GAS,BRI040
EFDC,YB110,SUPERVISION/MANAGEMENT SPECIAL,ELECTRICITY,1120,23-Sep-20,179181,10.80,BRITISH GAS,BRI040
EFDC,YB110,SUPERVISION/MANAGEMENT SPECIAL,ELECTRICITY,1120,23-Sep-20,179181,13.25,BRITISH GAS,BRI040
EFDC,YB110,SUPERVISION/MANAGEMENT SPECIAL,ELECTRICITY,1120,23-Sep-20,179181,12.94,BRITISH GAS,BRI040
EFDC,YB110,SUPERVISION/MANAGEMENT SPECIAL,ELECTRICITY,1120,23-Sep-20,179181,11.10,BRITISH GAS,BRI040
EFDC,YB110,SUPERVISION/MANAGEMENT SPECIAL,ELECTRICITY,1120,23-Sep-20,179181,13.27,BRITISH GAS,BRI040
EFDC,YB140,SUPERVISION/MANAGEMENT SPECIAL,ELECTRICITY,1120,23-Sep-20,179181,20.19,BRITISH GAS,BRI040
EFDC,YB140,SUPERVISION/MANAGEMENT SPECIAL,ELECTRICITY,1120,23-Sep-20,179181,21.51,BRITISH GAS,BRI040
EFDC,YB140,SUPERVISION/MANAGEMENT SPECIAL,ELECTRICITY,1120,23-Sep-20,179181,21.63,BRITISH GAS,BRI040
EFDC,YB140,SUPERVISION/MANAGEMENT SPECIAL,ELECTRICITY,1120,23-Sep-20,179181,25.70,BRITISH GAS,BRI040
EFDC,YB140,SUPERVISION/MANAGEMENT SPECIAL,ELECTRICITY,1120,23-Sep-20,179181,25.04,BRITISH GAS,BRI040
EFDC,YB140,SUPERVISION/MANAGEMENT SPECIAL,ELECTRICITY,1120,23-Sep-20,179181,20.98,BRITISH GAS,BRI040
EFDC,YB140,SUPERVISION/MANAGEMENT SPECIAL,ELECTRICITY,1120,23-Sep-20,179181,21.68,BRITISH GAS,BRI040
EFDC,YB140,SUPERVISION/MANAGEMENT SPECIAL,ELECTRICITY,1120,23-Sep-20,179181,10.36,BRITISH GAS,BRI040
EFDC,YB140,SUPERVISION/MANAGEMENT SPECIAL,ELECTRICITY,1120,23-Sep-20,179181,13.42,BRITISH GAS,BRI040
EFDC,YB140,SUPERVISION/MANAGEMENT SPECIAL,ELECTRICITY,1120,23-Sep-20,179181,24.14,BRITISH GAS,BRI040
EFDC,YB140,SUPERVISION/MANAGEMENT SPECIAL,ELECTRICITY,1120,23-Sep-20,179181,17.96,BRITISH GAS,BRI040
EFDC,YB140,SUPERVISION/MANAGEMENT SPECIAL,ELECTRICITY,1120,23-Sep-20,179181,13.11,BRITISH GAS,BRI040
EFDC,YB140,SUPERVISION/MANAGEMENT SPECIAL,ELECTRICITY,1120,23-Sep-20,179181,28.45,BRITISH GAS,BRI040
EFDC,YB140,SUPERVISION/MANAGEMENT SPECIAL,ELECTRICITY,1120,23-Sep-20,179181,24.23,BRITISH GAS,BRI040
EFDC,YB140,SUPERVISION/MANAGEMENT SPECIAL,ELECTRICITY,1120,23-Sep-20,179181,21.66,BRITISH GAS,BRI040
EFDC,YB200,SUPERVISION/MANAGEMENT SPECIAL,ELECTRICITY,1120,23-Sep-20,179181,8.63,BRITISH GAS,BRI040
EFDC,YB300,SUPERVISION/MANAGEMENT SPECIAL,ELECTRICITY,1120,23-Sep-20,179181,28.84,BRITISH GAS,BRI040
EFDC,YB110,SUPERVISION/MANAGEMENT SPECIAL,ELECTRICITY,1120,23-Sep-20,179181,-9.27,BRITISH GAS,BRI040
EFDC,YB500,SUPERVISION/MANAGEMENT SPECIAL,ELECTRICITY,1120,23-Sep-20,179181,259.93,BRITISH GAS,BRI040
EFDC,YB110,SUPERVISION/MANAGEMENT SPECIAL,ELECTRICITY,1120,23-Sep-20,179181,39.72,BRITISH GAS,BRI040
EFDC,YB500,SUPERVISION/MANAGEMENT SPECIAL,ELECTRICITY,1120,23-Sep-20,179181,149.77,BRITISH GAS,BRI040
EFDC,YB500,SUPERVISION/MANAGEMENT SPECIAL,ELECTRICITY,1120,23-Sep-20,179181,273.77,BRITISH GAS,BRI040
EFDC,YB500,SUPERVISION/MANAGEMENT SPECIAL,ELECTRICITY,1120,23-Sep-20,179181,7.52,BRITISH GAS,BRI040
EFDC,YB500,SUPERVISION/MANAGEMENT SPECIAL,ELECTRICITY,1120,23-Sep-20,179181,15.26,BRITISH GAS,BRI040
EFDC,YB500,SUPERVISION/MANAGEMENT SPECIAL,ELECTRICITY,1120,23-Sep-20,179181,7.89,BRITISH GAS,BRI040
EFDC,YB500,SUPERVISION/MANAGEMENT SPECIAL,ELECTRICITY,1120,23-Sep-20,179181,10.61,BRITISH GAS,BRI040
EFDC,YB500,SUPERVISION/MANAGEMENT SPECIAL,ELECTRICITY,1120,23-Sep-20,179181,45.57,BRITISH GAS,BRI040
EFDC,YB500,SUPERVISION/MANAGEMENT SPECIAL,ELECTRICITY,1120,23-Sep-20,179181,9.67,BRITISH GAS,BRI040
EFDC,YB500,SUPERVISION/MANAGEMENT SPECIAL,ELECTRICITY,1120,23-Sep-20,179181,32.29,BRITISH GAS,BRI040
EFDC,YB110,SUPERVISION/MANAGEMENT SPECIAL,ELECTRICITY,1120,23-Sep-20,179181,13.65,BRITISH GAS,BRI040
EFDC,YB110,SUPERVISION/MANAGEMENT SPECIAL,ELECTRICITY,1120,23-Sep-20,179181,71.46,BRITISH GAS,BRI040
EFDC,YB110,SUPERVISION/MANAGEMENT SPECIAL,ELECTRICITY,1120,23-Sep-20,179181,37.69,BRITISH GAS,BRI040
EFDC,YB110,SUPERVISION/MANAGEMENT SPECIAL,ELECTRICITY,1120,23-Sep-20,179181,64.08,BRITISH GAS,BRI040
EFDC,YB110,SUPERVISION/MANAGEMENT SPECIAL,ELECTRICITY,1120,23-Sep-20,179181,19.54,BRITISH GAS,BRI040
EFDC,YB110,SUPERVISION/MANAGEMENT SPECIAL,ELECTRICITY,1120,23-Sep-20,179181,9.17,BRITISH GAS,BRI040
EFDC,YB110,SUPERVISION/MANAGEMENT SPECIAL,ELECTRICITY,1120,23-Sep-20,179181,9.16,BRITISH GAS,BRI040
EFDC,YB110,SUPERVISION/MANAGEMENT SPECIAL,ELECTRICITY,1120,23-Sep-20,179181,16.28,BRITISH GAS,BRI040
EFDC,YB110,SUPERVISION/MANAGEMENT SPECIAL,ELECTRICITY,1120,23-Sep-20,179181,15.50,BRITISH GAS,BRI040
EFDC,YB110,SUPERVISION/MANAGEMENT SPECIAL,ELECTRICITY,1120,23-Sep-20,179181,13.80,BRITISH GAS,BRI040
EFDC,YB110,SUPERVISION/MANAGEMENT SPECIAL,ELECTRICITY,1120,23-Sep-20,179181,10.80,BRITISH GAS,BRI040
EFDC,YB110,SUPERVISION/MANAGEMENT SPECIAL,ELECTRICITY,1120,23-Sep-20,179181,14.40,BRITISH GAS,BRI040
EFDC,YB110,SUPERVISION/MANAGEMENT SPECIAL,ELECTRICITY,1120,23-Sep-20,179181,10.55,BRITISH GAS,BRI040
EFDC,YB110,SUPERVISION/MANAGEMENT SPECIAL,ELECTRICITY,1120,23-Sep-20,179181,51.47,BRITISH GAS,BRI040
EFDC,YB110,SUPERVISION/MANAGEMENT SPECIAL,ELECTRICITY,1120,23-Sep-20,179181,7.64,BRITISH GAS,BRI040
EFDC,YB110,SUPERVISION/MANAGEMENT SPECIAL,ELECTRICITY,1120,23-Sep-20,179181,8.45,BRITISH GAS,BRI040
EFDC,YB110,SUPERVISION/MANAGEMENT SPECIAL,ELECTRICITY,1120,23-Sep-20,179181,9.38,BRITISH GAS,BRI040
EFDC,YB110,SUPERVISION/MANAGEMENT SPECIAL,ELECTRICITY,1120,23-Sep-20,179181,18.03,BRITISH GAS,BRI040
EFDC,YB110,SUPERVISION/MANAGEMENT SPECIAL,ELECTRICITY,1120,23-Sep-20,179181,7.64,BRITISH GAS,BRI040
EFDC,YB110,SUPERVISION/MANAGEMENT SPECIAL,ELECTRICITY,1120,23-Sep-20,179181,15.65,BRITISH GAS,BRI040
EFDC,YB110,SUPERVISION/MANAGEMENT SPECIAL,ELECTRICITY,1120,23-Sep-20,179181,40.61,BRITISH GAS,BRI040
EFDC,YB110,SUPERVISION/MANAGEMENT SPECIAL,ELECTRICITY,1120,23-Sep-20,179181,8.12,BRITISH GAS,BRI040
EFDC,YB110,SUPERVISION/MANAGEMENT SPECIAL,ELECTRICITY,1120,23-Sep-20,179181,12.82,BRITISH GAS,BRI040
EFDC,YB110,SUPERVISION/MANAGEMENT SPECIAL,ELECTRICITY,1120,23-Sep-20,179181,7.89,BRITISH GAS,BRI040
EFDC,YB110,SUPERVISION/MANAGEMENT SPECIAL,ELECTRICITY,1120,23-Sep-20,179181,7.38,BRITISH GAS,BRI040
EFDC,YB110,SUPERVISION/MANAGEMENT SPECIAL,ELECTRICITY,1120,23-Sep-20,179181,10.77,BRITISH GAS,BRI040
EFDC,YB110,SUPERVISION/MANAGEMENT SPECIAL,ELECTRICITY,1120,23-Sep-20,179181,15.03,BRITISH GAS,BRI040
EFDC,YB110,SUPERVISION/MANAGEMENT SPECIAL,ELECTRICITY,1120,23-Sep-20,179181,18.28,BRITISH GAS,BRI040
EFDC,YB110,SUPERVISION/MANAGEMENT SPECIAL,ELECTRICITY,1120,23-Sep-20,179181,13.78,BRITISH GAS,BRI040
EFDC,YB110,SUPERVISION/MANAGEMENT SPECIAL,ELECTRICITY,1120,23-Sep-20,179181,15.52,BRITISH GAS,BRI040
EFDC,YB110,SUPERVISION/MANAGEMENT SPECIAL,ELECTRICITY,1120,23-Sep-20,179181,14.40,BRITISH GAS,BRI040
EFDC,YB520,SUPERVISION/MANAGEMENT SPECIAL,ELECTRICITY,1120,23-Sep-20,179181,316.70,BRITISH GAS,BRI040
EFDC,YB520,SUPERVISION/MANAGEMENT SPECIAL,ELECTRICITY,1120,23-Sep-20,179181,329.86,BRITISH GAS,BRI040
EFDC,YB110,SUPERVISION/MANAGEMENT SPECIAL,ELECTRICITY,1120,23-Sep-20,179181,39.85,BRITISH GAS,BRI040
EFDC,YB110,SUPERVISION/MANAGEMENT SPECIAL,ELECTRICITY,1120,23-Sep-20,179181,14.14,BRITISH GAS,BRI040
EFDC,YB110,SUPERVISION/MANAGEMENT SPECIAL,ELECTRICITY,1120,23-Sep-20,179181,15.64,BRITISH GAS,BRI040
EFDC,YB110,SUPERVISION/MANAGEMENT SPECIAL,ELECTRICITY,1120,23-Sep-20,179181,7.38,BRITISH GAS,BRI040
EFDC,YB110,SUPERVISION/MANAGEMENT SPECIAL,ELECTRICITY,1120,23-Sep-20,179181,13.63,BRITISH GAS,BRI040
EFDC,YB110,SUPERVISION/MANAGEMENT SPECIAL,ELECTRICITY,1120,23-Sep-20,179181,24.96,BRITISH GAS,BRI040
EFDC,YB110,SUPERVISION/MANAGEMENT SPECIAL,ELECTRICITY,1120,23-Sep-20,179181,6.87,BRITISH GAS,BRI040
EFDC,YB110,SUPERVISION/MANAGEMENT SPECIAL,ELECTRICITY,1120,23-Sep-20,179181,75.38,BRITISH GAS,BRI040
EFDC,YB110,SUPERVISION/MANAGEMENT SPECIAL,ELECTRICITY,1120,23-Sep-20,179181,49.21,BRITISH GAS,BRI040
EFDC,YB110,SUPERVISION/MANAGEMENT SPECIAL,ELECTRICITY,1120,23-Sep-20,179181,11.04,BRITISH GAS,BRI040
EFDC,YB110,SUPERVISION/MANAGEMENT SPECIAL,ELECTRICITY,1120,23-Sep-20,179181,12.94,BRITISH GAS,BRI040
EFDC,YB110,SUPERVISION/MANAGEMENT SPECIAL,ELECTRICITY,1120,23-Sep-20,179181,12.62,BRITISH GAS,BRI040
EFDC,YB110,SUPERVISION/MANAGEMENT SPECIAL,ELECTRICITY,1120,23-Sep-20,179181,12.53,BRITISH GAS,BRI040
EFDC,YB110,SUPERVISION/MANAGEMENT SPECIAL,ELECTRICITY,1120,23-Sep-20,179181,51.18,BRITISH GAS,BRI040
EFDC,YB110,SUPERVISION/MANAGEMENT SPECIAL,ELECTRICITY,1120,23-Sep-20,179181,10.90,BRITISH GAS,BRI040
EFDC,YB110,SUPERVISION/MANAGEMENT SPECIAL,ELECTRICITY,1120,23-Sep-20,179181,7.75,BRITISH GAS,BRI040
EFDC,YB110,SUPERVISION/MANAGEMENT SPECIAL,ELECTRICITY,1120,23-Sep-20,179181,47.16,BRITISH GAS,BRI040
EFDC,YB110,SUPERVISION/MANAGEMENT SPECIAL,ELECTRICITY,1120,23-Sep-20,179181,6.87,BRITISH GAS,BRI040
EFDC,YB110,SUPERVISION/MANAGEMENT SPECIAL,ELECTRICITY,1120,23-Sep-20,179181,13.27,BRITISH GAS,BRI040
EFDC,YB110,SUPERVISION/MANAGEMENT SPECIAL,ELECTRICITY,1120,23-Sep-20,179181,13.65,BRITISH GAS,BRI040
EFDC,YB500,SUPERVISION/MANAGEMENT SPECIAL,ELECTRICITY,1120,23-Sep-20,179181,498.18,BRITISH GAS,BRI040
EFDC,YB110,SUPERVISION/MANAGEMENT SPECIAL,ELECTRICITY,1120,23-Sep-20,179181,34.12,BRITISH GAS,BRI040
EFDC,TI190,LAND & PROPERTY,ELECTRICITY,1120,23-Sep-20,179181,-43.58,BRITISH GAS,BRI040
EFDC,FD100,LAND DRAINAGE/SEWERAGE,ELECTRICITY,1120,23-Sep-20,179181,21.11,BRITISH GAS,BRI040
EFDC,RS301,NORTH WEALD CENTRE,ELECTRICITY,1120,23-Sep-20,179181,13.10,BRITISH GAS,BRI040
EFDC,RS302,NORTH WEALD CENTRE,ELECTRICITY,1120,23-Sep-20,179181,8.12,BRITISH GAS,BRI040
EFDC,TI190,LAND & PROPERTY,ELECTRICITY,1120,23-Sep-20,179181,39.87,BRITISH GAS,BRI040
EFDC,YB500,SUPERVISION/MANAGEMENT SPECIAL,ELECTRICITY,1120,23-Sep-20,179181,54.27,BRITISH GAS,BRI040
EFDC,UO130,LAND & PROPERTY,ELECTRICITY,1120,23-Sep-20,179181,29.67,BRITISH GAS,BRI040
EFDC,UO130,LAND & PROPERTY,ELECTRICITY,1120,23-Sep-20,179181,21.27,BRITISH GAS,BRI040
EFDC,UO130,LAND & PROPERTY,ELECTRICITY,1120,23-Sep-20,179181,20.91,BRITISH GAS,BRI040
EFDC,UO130,LAND & PROPERTY,ELECTRICITY,1120,23-Sep-20,179181,3.10,BRITISH GAS,BRI040
EFDC,TI190,LAND & PROPERTY,ELECTRICITY,1120,23-Sep-20,179181,-58.90,BRITISH GAS,BRI040
EFDC,TI190,LAND & PROPERTY,ELECTRICITY,1120,23-Sep-20,179181,-33.44,BRITISH GAS,BRI040
EFDC,TI190,LAND & PROPERTY,ELECTRICITY,1120,23-Sep-20,179181,33.18,BRITISH GAS,BRI040
EFDC,TI190,LAND & PROPERTY,ELECTRICITY,1120,23-Sep-20,179181,30.68,BRITISH GAS,BRI040
EFDC,TI190,LAND & PROPERTY,ELECTRICITY,1120,23-Sep-20,179181,32.68,BRITISH GAS,BRI040
EFDC,TI190,LAND & PROPERTY,ELECTRICITY,1120,23-Sep-20,179181,18.65,BRITISH GAS,BRI040
EFDC,TI190,LAND & PROPERTY,ELECTRICITY,1120,23-Sep-20,179181,-44.96,BRITISH GAS,BRI040
EFDC,EH160,OTHER ACTIVITIES,ELECTRICITY,1120,23-Sep-20,179181,-13.27,BRITISH GAS,BRI040
EFDC,YB110,SUPERVISION/MANAGEMENT SPECIAL,ELECTRICITY,1120,23-Sep-20,179181,-10.83,BRITISH GAS,BRI040
EFDC,CH110,"MUSEUM, HERITAGE & CULTURE",ELECTRICITY,1120,23-Sep-20,179181,333.33,BRITISH GAS,BRI040
EFDC,EH112,LAND DRAINAGE/SEWERAGE,ELECTRICITY,1120,23-Sep-20,179181,98.17,BRITISH GAS,BRI040
EFDC,EH160,OTHER ACTIVITIES,ELECTRICITY,1120,23-Sep-20,179181,7.89,BRITISH GAS,BRI040
EFDC,EH160,OTHER ACTIVITIES,ELECTRICITY,1120,23-Sep-20,179181,7.64,BRITISH GAS,BRI040
EFDC,EH160,OTHER ACTIVITIES,ELECTRICITY,1120,23-Sep-20,179181,7.64,BRITISH GAS,BRI040
EFDC,EH160,OTHER ACTIVITIES,ELECTRICITY,1120,23-Sep-20,179181,7.13,BRITISH GAS,BRI040
EFDC,EH160,OTHER ACTIVITIES,ELECTRICITY,1120,23-Sep-20,179181,-15.07,BRITISH GAS,BRI040
EFDC,EH160,OTHER ACTIVITIES,ELECTRICITY,1120,23-Sep-20,179181,80.76,BRITISH GAS,BRI040
EFDC,EH160,OTHER ACTIVITIES,ELECTRICITY,1120,23-Sep-20,179181,22.29,BRITISH GAS,BRI040
EFDC,EH160,OTHER ACTIVITIES,ELECTRICITY,1120,23-Sep-20,179181,-14.28,BRITISH GAS,BRI040
EFDC,EH160,OTHER ACTIVITIES,ELECTRICITY,1120,23-Sep-20,179181,43.27,BRITISH GAS,BRI040
EFDC,EH160,OTHER ACTIVITIES,ELECTRICITY,1120,23-Sep-20,179181,-12.90,BRITISH GAS,BRI040
EFDC,EH160,OTHER ACTIVITIES,ELECTRICITY,1120,23-Sep-20,179181,16.77,BRITISH GAS,BRI040
EFDC,EH160,OTHER ACTIVITIES,ELECTRICITY,1120,23-Sep-20,179181,32.45,BRITISH GAS,BRI040
EFDC,EH160,OTHER ACTIVITIES,ELECTRICITY,1120,23-Sep-20,179181,7.87,BRITISH GAS,BRI040
EFDC,EH160,OTHER ACTIVITIES,ELECTRICITY,1120,23-Sep-20,179181,-80.65,BRITISH GAS,BRI040
EFDC,EH160,OTHER ACTIVITIES,ELECTRICITY,1120,23-Sep-20,179181,-114.36,BRITISH GAS,BRI040
EFDC,EH160,OTHER ACTIVITIES,ELECTRICITY,1120,23-Sep-20,179181,27.01,BRITISH GAS,BRI040
EFDC,YB500,SUPERVISION/MANAGEMENT SPECIAL,ELECTRICITY,1120,23-Sep-20,179181,15.65,BRITISH GAS,BRI040
EFDC,UO130,LAND & PROPERTY,ELECTRICITY,1120,23-Sep-20,179181,13.74,BRITISH GAS,BRI040
EFDC,27110,ACCOMMODATION,ELECTRICITY,1120,23-Sep-20,179181,59.36,BRITISH GAS,BRI040
EFDC,27150,"COMMUNITY, HEALTH & WELLBEING",ELECTRICITY,1120,23-Sep-20,179181,417.32,BRITISH GAS,BRI040
EFDC,YB620,SUPERVISION/MANAGEMENT SPECIAL,ELECTRICITY,1120,23-Sep-20,179181,1191.31,BRITISH GAS,BRI040
EFDC,27110,ACCOMMODATION,ELECTRICITY,1120,23-Sep-20,179181,62.11,BRITISH GAS,BRI040
EFDC,YB500,SUPERVISION/MANAGEMENT SPECIAL,ELECTRICITY,1120,23-Sep-20,179181,48.82,BRITISH GAS,BRI040
EFDC,YB500,SUPERVISION/MANAGEMENT SPECIAL,ELECTRICITY,1120,23-Sep-20,179181,7.89,BRITISH GAS,BRI040
EFDC,YB500,SUPERVISION/MANAGEMENT SPECIAL,ELECTRICITY,1120,23-Sep-20,179181,515.70,BRITISH GAS,BRI040
EFDC,YB500,SUPERVISION/MANAGEMENT SPECIAL,ELECTRICITY,1120,23-Sep-20,179181,296.07,BRITISH GAS,BRI040
EFDC,YB500,SUPERVISION/MANAGEMENT SPECIAL,ELECTRICITY,1120,23-Sep-20,179181,13.66,BRITISH GAS,BRI040
EFDC,YB500,SUPERVISION/MANAGEMENT SPECIAL,ELECTRICITY,1120,23-Sep-20,179181,8.12,BRITISH GAS,BRI040
EFDC,YB500,SUPERVISION/MANAGEMENT SPECIAL,ELECTRICITY,1120,23-Sep-20,179181,187.89,BRITISH GAS,BRI040
EFDC,YB500,SUPERVISION/MANAGEMENT SPECIAL,ELECTRICITY,1120,23-Sep-20,179181,15.78,BRITISH GAS,BRI040
EFDC,YB500,SUPERVISION/MANAGEMENT SPECIAL,ELECTRICITY,1120,23-Sep-20,179181,44.44,BRITISH GAS,BRI040
EFDC,YB500,SUPERVISION/MANAGEMENT SPECIAL,ELECTRICITY,1120,23-Sep-20,179181,33.31,BRITISH GAS,BRI040
EFDC,YB500,SUPERVISION/MANAGEMENT SPECIAL,ELECTRICITY,1120,23-Sep-20,179181,7.38,BRITISH GAS,BRI040
EFDC,YB500,SUPERVISION/MANAGEMENT SPECIAL,ELECTRICITY,1120,23-Sep-20,179181,9.64,BRITISH GAS,BRI040
EFDC,YB500,SUPERVISION/MANAGEMENT SPECIAL,ELECTRICITY,1120,23-Sep-20,179181,14.72,BRITISH GAS,BRI040
EFDC,YB500,SUPERVISION/MANAGEMENT SPECIAL,ELECTRICITY,1120,23-Sep-20,179181,30.82,BRITISH GAS,BRI040
EFDC,23130,ACCOMMODATION,ELECTRICITY,1120,23-Sep-20,179181,267.18,BRITISH GAS,BRI040
EFDC,23130,ACCOMMODATION,ELECTRICITY,1120,23-Sep-20,179181,-774.17,BRITISH GAS,BRI040
EFDC,23130,ACCOMMODATION,ELECTRICITY,1120,23-Sep-20,179181,-543.84,BRITISH GAS,BRI040
EFDC,23130,ACCOMMODATION,ELECTRICITY,1120,23-Sep-20,179181,-238.17,BRITISH GAS,BRI040
EFDC,23130,ACCOMMODATION,ELECTRICITY,1120,23-Sep-20,179181,-462.18,BRITISH GAS,BRI040
EFDC,23130,ACCOMMODATION,ELECTRICITY,1120,23-Sep-20,179181,-329.25,BRITISH GAS,BRI040
EFDC,27110,ACCOMMODATION,ELECTRICITY,1120,23-Sep-20,179181,35.31,BRITISH GAS,BRI040
EFDC,23140,ACCOMMODATION,ELECTRICITY,1120,23-Sep-20,179181,192.25,BRITISH GAS,BRI040
EFDC,27050,ACCOMMODATION,ELECTRICITY,1120,23-Sep-20,179181,68.01,BRITISH GAS,BRI040
EFDC,23130,ACCOMMODATION,ELECTRICITY,1120,23-Sep-20,179181,136.58,BRITISH GAS,BRI040
EFDC,23140,ACCOMMODATION,ELECTRICITY,1120,23-Sep-20,179181,322.19,BRITISH GAS,BRI040
EFDC,23130,ACCOMMODATION,ELECTRICITY,1120,23-Sep-20,179181,284.75,BRITISH GAS,BRI040
EFDC,23130,ACCOMMODATION,ELECTRICITY,1120,23-Sep-20,179181,774.17,BRITISH GAS,BRI040
EFDC,23130,ACCOMMODATION,ELECTRICITY,1120,23-Sep-20,179181,298.31,BRITISH GAS,BRI040
EFDC,23130,ACCOMMODATION,ELECTRICITY,1120,23-Sep-20,179181,293.91,BRITISH GAS,BRI040
EFDC,YB110,SUPERVISION/MANAGEMENT SPECIAL,ELECTRICITY,1120,23-Sep-20,179181,13.02,BRITISH GAS,BRI040
EFDC,YB110,SUPERVISION/MANAGEMENT SPECIAL,ELECTRICITY,1120,23-Sep-20,179181,105.27,BRITISH GAS,BRI040
EFDC,YB110,SUPERVISION/MANAGEMENT SPECIAL,ELECTRICITY,1120,23-Sep-20,179181,9.86,BRITISH GAS,BRI040
EFDC,YB110,SUPERVISION/MANAGEMENT SPECIAL,ELECTRICITY,1120,23-Sep-20,179181,82.05,BRITISH GAS,BRI040
EFDC,YB110,SUPERVISION/MANAGEMENT SPECIAL,ELECTRICITY,1120,23-Sep-20,179181,13.73,BRITISH GAS,BRI040
EFDC,YB110,SUPERVISION/MANAGEMENT SPECIAL,ELECTRICITY,1120,23-Sep-20,179181,14.52,BRITISH GAS,BRI040
EFDC,YB110,SUPERVISION/MANAGEMENT SPECIAL,ELECTRICITY,1120,23-Sep-20,179181,15.39,BRITISH GAS,BRI040
EFDC,YB110,SUPERVISION/MANAGEMENT SPECIAL,ELECTRICITY,1120,23-Sep-20,179181,15.50,BRITISH GAS,BRI040
EFDC,YB110,SUPERVISION/MANAGEMENT SPECIAL,ELECTRICITY,1120,23-Sep-20,179181,13.24,BRITISH GAS,BRI040
EFDC,YB110,SUPERVISION/MANAGEMENT SPECIAL,ELECTRICITY,1120,23-Sep-20,179181,17.63,BRITISH GAS,BRI040
EFDC,YB110,SUPERVISION/MANAGEMENT SPECIAL,ELECTRICITY,1120,23-Sep-20,179181,14.42,BRITISH GAS,BRI040
EFDC,YB110,SUPERVISION/MANAGEMENT SPECIAL,ELECTRICITY,1120,23-Sep-20,179181,60.26,BRITISH GAS,BRI040
EFDC,YB110,SUPERVISION/MANAGEMENT SPECIAL,ELECTRICITY,1120,23-Sep-20,179181,40.32,BRITISH GAS,BRI040
EFDC,YB110,SUPERVISION/MANAGEMENT SPECIAL,ELECTRICITY,1120,23-Sep-20,179181,16.65,BRITISH GAS,BRI040
EFDC,YB110,SUPERVISION/MANAGEMENT SPECIAL,ELECTRICITY,1120,23-Sep-20,179181,74.31,BRITISH GAS,BRI040
EFDC,YB110,SUPERVISION/MANAGEMENT SPECIAL,ELECTRICITY,1120,23-Sep-20,179181,22.53,BRITISH GAS,BRI040
EFDC,YB110,SUPERVISION/MANAGEMENT SPECIAL,ELECTRICITY,1120,23-Sep-20,179181,21.66,BRITISH GAS,BRI040
EFDC,YB110,SUPERVISION/MANAGEMENT SPECIAL,ELECTRICITY,1120,23-Sep-20,179181,7.52,BRITISH GAS,BRI040
EFDC,YB110,SUPERVISION/MANAGEMENT SPECIAL,ELECTRICITY,1120,23-Sep-20,179181,19.79,BRITISH GAS,BRI040
EFDC,YB110,SUPERVISION/MANAGEMENT SPECIAL,ELECTRICITY,1120,23-Sep-20,179181,37.32,BRITISH GAS,BRI040
EFDC,YB110,SUPERVISION/MANAGEMENT SPECIAL,ELECTRICITY,1120,23-Sep-20,179181,20.25,BRITISH GAS,BRI040
EFDC,YB110,SUPERVISION/MANAGEMENT SPECIAL,ELECTRICITY,1120,23-Sep-20,179181,26.66,BRITISH GAS,BRI040
EFDC,YB110,SUPERVISION/MANAGEMENT SPECIAL,ELECTRICITY,1120,23-Sep-20,179181,81.12,BRITISH GAS,BRI040
EFDC,YB110,SUPERVISION/MANAGEMENT SPECIAL,ELECTRICITY,1120,23-Sep-20,179181,28.06,BRITISH GAS,BRI040
EFDC,YB110,SUPERVISION/MANAGEMENT SPECIAL,ELECTRICITY,1120,23-Sep-20,179181,92.87,BRITISH GAS,BRI040
EFDC,YB110,SUPERVISION/MANAGEMENT SPECIAL,ELECTRICITY,1120,23-Sep-20,179181,21.87,BRITISH GAS,BRI040
EFDC,YB110,SUPERVISION/MANAGEMENT SPECIAL,ELECTRICITY,1120,23-Sep-20,179181,28.57,BRITISH GAS,BRI040
EFDC,YB110,SUPERVISION/MANAGEMENT SPECIAL,ELECTRICITY,1120,23-Sep-20,179181,22.70,BRITISH GAS,BRI040
EFDC,YB110,SUPERVISION/MANAGEMENT SPECIAL,ELECTRICITY,1120,23-Sep-20,179181,155.37,BRITISH GAS,BRI040
EFDC,YB110,SUPERVISION/MANAGEMENT SPECIAL,ELECTRICITY,1120,23-Sep-20,179181,102.33,BRITISH GAS,BRI040
EFDC,YB110,SUPERVISION/MANAGEMENT SPECIAL,ELECTRICITY,1120,23-Sep-20,179181,25.20,BRITISH GAS,BRI040
EFDC,YB110,SUPERVISION/MANAGEMENT SPECIAL,ELECTRICITY,1120,23-Sep-20,179181,27.53,BRITISH GAS,BRI040
EFDC,YB110,SUPERVISION/MANAGEMENT SPECIAL,ELECTRICITY,1120,23-Sep-20,179181,17.22,BRITISH GAS,BRI040
EFDC,YB110,SUPERVISION/MANAGEMENT SPECIAL,ELECTRICITY,1120,23-Sep-20,179181,9.07,BRITISH GAS,BRI040
EFDC,YB110,SUPERVISION/MANAGEMENT SPECIAL,ELECTRICITY,1120,23-Sep-20,179181,10.50,BRITISH GAS,BRI040
EFDC,YB110,SUPERVISION/MANAGEMENT SPECIAL,ELECTRICITY,1120,23-Sep-20,179181,35.01,BRITISH GAS,BRI040
EFDC,YB110,SUPERVISION/MANAGEMENT SPECIAL,ELECTRICITY,1120,23-Sep-20,179181,25.86,BRITISH GAS,BRI040
EFDC,YB110,SUPERVISION/MANAGEMENT SPECIAL,ELECTRICITY,1120,23-Sep-20,179181,12.83,BRITISH GAS,BRI040
EFDC,YB110,SUPERVISION/MANAGEMENT SPECIAL,ELECTRICITY,1120,23-Sep-20,179181,15.17,BRITISH GAS,BRI040
EFDC,YB110,SUPERVISION/MANAGEMENT SPECIAL,ELECTRICITY,1120,23-Sep-20,179181,10.44,BRITISH GAS,BRI040
EFDC,YB110,SUPERVISION/MANAGEMENT SPECIAL,ELECTRICITY,1120,23-Sep-20,179181,12.60,BRITISH GAS,BRI040
EFDC,YB110,SUPERVISION/MANAGEMENT SPECIAL,ELECTRICITY,1120,23-Sep-20,179181,15.42,BRITISH GAS,BRI040
EFDC,YB110,SUPERVISION/MANAGEMENT SPECIAL,ELECTRICITY,1120,23-Sep-20,179181,18.72,BRITISH GAS,BRI040
EFDC,YB110,SUPERVISION/MANAGEMENT SPECIAL,ELECTRICITY,1120,23-Sep-20,179181,13.76,BRITISH GAS,BRI040
EFDC,YB110,SUPERVISION/MANAGEMENT SPECIAL,ELECTRICITY,1120,23-Sep-20,179181,18.61,BRITISH GAS,BRI040
EFDC,YB110,SUPERVISION/MANAGEMENT SPECIAL,ELECTRICITY,1120,23-Sep-20,179181,22.94,BRITISH GAS,BRI040
EFDC,YB110,SUPERVISION/MANAGEMENT SPECIAL,ELECTRICITY,1120,23-Sep-20,179181,25.11,BRITISH GAS,BRI040
EFDC,YB110,SUPERVISION/MANAGEMENT SPECIAL,ELECTRICITY,1120,23-Sep-20,179181,16.58,BRITISH GAS,BRI040
EFDC,YB110,SUPERVISION/MANAGEMENT SPECIAL,ELECTRICITY,1120,23-Sep-20,179181,15.66,BRITISH GAS,BRI040
EFDC,YB110,SUPERVISION/MANAGEMENT SPECIAL,ELECTRICITY,1120,23-Sep-20,179181,15.01,BRITISH GAS,BRI040
EFDC,YB110,SUPERVISION/MANAGEMENT SPECIAL,ELECTRICITY,1120,23-Sep-20,179181,13.82,BRITISH GAS,BRI040
EFDC,YB110,SUPERVISION/MANAGEMENT SPECIAL,ELECTRICITY,1120,23-Sep-20,179181,13.19,BRITISH GAS,BRI040
EFDC,YB110,SUPERVISION/MANAGEMENT SPECIAL,ELECTRICITY,1120,23-Sep-20,179181,13.90,BRITISH GAS,BRI040
EFDC,YB110,SUPERVISION/MANAGEMENT SPECIAL,ELECTRICITY,1120,23-Sep-20,179181,30.29,BRITISH GAS,BRI040
EFDC,YB110,SUPERVISION/MANAGEMENT SPECIAL,ELECTRICITY,1120,23-Sep-20,179181,25.49,BRITISH GAS,BRI040
EFDC,YB110,SUPERVISION/MANAGEMENT SPECIAL,ELECTRICITY,1120,23-Sep-20,179181,23.09,BRITISH GAS,BRI040
EFDC,YB110,SUPERVISION/MANAGEMENT SPECIAL,ELECTRICITY,1120,23-Sep-20,179181,26.75,BRITISH GAS,BRI040
EFDC,YB110,SUPERVISION/MANAGEMENT SPECIAL,ELECTRICITY,1120,23-Sep-20,179181,25.18,BRITISH GAS,BRI040
EFDC,YB110,SUPERVISION/MANAGEMENT SPECIAL,ELECTRICITY,1120,23-Sep-20,179181,17.10,BRITISH GAS,BRI040
EFDC,YB110,SUPERVISION/MANAGEMENT SPECIAL,ELECTRICITY,1120,23-Sep-20,179181,52.65,BRITISH GAS,BRI040
EFDC,YB110,SUPERVISION/MANAGEMENT SPECIAL,ELECTRICITY,1120,23-Sep-20,179181,17.29,BRITISH GAS,BRI040
EFDC,YB110,SUPERVISION/MANAGEMENT SPECIAL,ELECTRICITY,1120,23-Sep-20,179181,19.31,BRITISH GAS,BRI040
EFDC,YB110,SUPERVISION/MANAGEMENT SPECIAL,ELECTRICITY,1120,23-Sep-20,179181,9.88,BRITISH GAS,BRI040
EFDC,YB110,SUPERVISION/MANAGEMENT SPECIAL,ELECTRICITY,1120,23-Sep-20,179181,-13.40,BRITISH GAS,BRI040
EFDC,YB110,SUPERVISION/MANAGEMENT SPECIAL,ELECTRICITY,1120,23-Sep-20,179181,12.22,BRITISH GAS,BRI040
EFDC,YB110,SUPERVISION/MANAGEMENT SPECIAL,ELECTRICITY,1120,23-Sep-20,179181,18.38,BRITISH GAS,BRI040
EFDC,YB110,SUPERVISION/MANAGEMENT SPECIAL,ELECTRICITY,1120,23-Sep-20,179181,13.02,BRITISH GAS,BRI040
EFDC,YB110,SUPERVISION/MANAGEMENT SPECIAL,ELECTRICITY,1120,23-Sep-20,179181,29.31,BRITISH GAS,BRI040
EFDC,YB110,SUPERVISION/MANAGEMENT SPECIAL,ELECTRICITY,1120,23-Sep-20,179181,13.57,BRITISH GAS,BRI040
EFDC,YB110,SUPERVISION/MANAGEMENT SPECIAL,ELECTRICITY,1120,23-Sep-20,179181,14.28,BRITISH GAS,BRI040
EFDC,YB110,SUPERVISION/MANAGEMENT SPECIAL,ELECTRICITY,1120,23-Sep-20,179181,16.26,BRITISH GAS,BRI040
EFDC,YB110,SUPERVISION/MANAGEMENT SPECIAL,ELECTRICITY,1120,23-Sep-20,179181,13.80,BRITISH GAS,BRI040
EFDC,YB110,SUPERVISION/MANAGEMENT SPECIAL,ELECTRICITY,1120,23-Sep-20,179181,11.81,BRITISH GAS,BRI040
EFDC,YB110,SUPERVISION/MANAGEMENT SPECIAL,ELECTRICITY,1120,23-Sep-20,179181,-21.41,BRITISH GAS,BRI040
EFDC,YB110,SUPERVISION/MANAGEMENT SPECIAL,ELECTRICITY,1120,23-Sep-20,179181,-11.40,BRITISH GAS,BRI040
EFDC,YB110,SUPERVISION/MANAGEMENT SPECIAL,ELECTRICITY,1120,23-Sep-20,179181,-19.03,BRITISH GAS,BRI040
EFDC,YB110,SUPERVISION/MANAGEMENT SPECIAL,ELECTRICITY,1120,23-Sep-20,179181,-13.65,BRITISH GAS,BRI040
EFDC,YB110,SUPERVISION/MANAGEMENT SPECIAL,ELECTRICITY,1120,23-Sep-20,179181,15.20,BRITISH GAS,BRI040
EFDC,YB110,SUPERVISION/MANAGEMENT SPECIAL,ELECTRICITY,1120,23-Sep-20,179181,-22.29,BRITISH GAS,BRI040
EFDC,YB110,SUPERVISION/MANAGEMENT SPECIAL,ELECTRICITY,1120,23-Sep-20,179181,-10.50,BRITISH GAS,BRI040
EFDC,YB110,SUPERVISION/MANAGEMENT SPECIAL,ELECTRICITY,1120,23-Sep-20,179181,192.98,BRITISH GAS,BRI040
EFDC,YB110,SUPERVISION/MANAGEMENT SPECIAL,ELECTRICITY,1120,23-Sep-20,179181,36.97,BRITISH GAS,BRI040
EFDC,YB110,SUPERVISION/MANAGEMENT SPECIAL,ELECTRICITY,1120,23-Sep-20,179181,36.24,BRITISH GAS,BRI040
EFDC,YB110,SUPERVISION/MANAGEMENT SPECIAL,ELECTRICITY,1120,23-Sep-20,179181,36.01,BRITISH GAS,BRI040
EFDC,YB110,SUPERVISION/MANAGEMENT SPECIAL,ELECTRICITY,1120,23-Sep-20,179181,-12.02,BRITISH GAS,BRI040
EFDC,YB110,SUPERVISION/MANAGEMENT SPECIAL,ELECTRICITY,1120,23-Sep-20,179181,-27.92,BRITISH GAS,BRI040
EFDC,YB110,SUPERVISION/MANAGEMENT SPECIAL,ELECTRICITY,1120,23-Sep-20,179181,-12.02,BRITISH GAS,BRI040
EFDC,YB110,SUPERVISION/MANAGEMENT SPECIAL,ELECTRICITY,1120,23-Sep-20,179181,-21.66,BRITISH GAS,BRI040
EFDC,YB110,SUPERVISION/MANAGEMENT SPECIAL,ELECTRICITY,1120,23-Sep-20,179181,-16.66,BRITISH GAS,BRI040
EFDC,YB110,SUPERVISION/MANAGEMENT SPECIAL,ELECTRICITY,1120,23-Sep-20,179181,-16.44,BRITISH GAS,BRI040
EFDC,YB110,SUPERVISION/MANAGEMENT SPECIAL,ELECTRICITY,1120,23-Sep-20,179181,-77.12,BRITISH GAS,BRI040
EFDC,YB110,SUPERVISION/MANAGEMENT SPECIAL,ELECTRICITY,1120,23-Sep-20,179181,-16.72,BRITISH GAS,BRI040
EFDC,YB110,SUPERVISION/MANAGEMENT SPECIAL,ELECTRICITY,1120,23-Sep-20,179181,12.96,BRITISH GAS,BRI040
EFDC,YB110,SUPERVISION/MANAGEMENT SPECIAL,ELECTRICITY,1120,23-Sep-20,179181,9.68,BRITISH GAS,BRI040
EFDC,YB110,SUPERVISION/MANAGEMENT SPECIAL,ELECTRICITY,1120,23-Sep-20,179181,48.09,BRITISH GAS,BRI040
EFDC,YB110,SUPERVISION/MANAGEMENT SPECIAL,ELECTRICITY,1120,23-Sep-20,179181,12.43,BRITISH GAS,BRI040
EFDC,YB110,SUPERVISION/MANAGEMENT SPECIAL,ELECTRICITY,1120,23-Sep-20,179181,9.64,BRITISH GAS,BRI040
EFDC,YB110,SUPERVISION/MANAGEMENT SPECIAL,ELECTRICITY,1120,23-Sep-20,179181,87.24,BRITISH GAS,BRI040
EFDC,YB110,SUPERVISION/MANAGEMENT SPECIAL,ELECTRICITY,1120,23-Sep-20,179181,14.65,BRITISH GAS,BRI040
EFDC,YB110,SUPERVISION/MANAGEMENT SPECIAL,ELECTRICITY,1120,23-Sep-20,179181,26.88,BRITISH GAS,BRI040
EFDC,YB110,SUPERVISION/MANAGEMENT SPECIAL,ELECTRICITY,1120,23-Sep-20,179181,15.93,BRITISH GAS,BRI040
EFDC,YB110,SUPERVISION/MANAGEMENT SPECIAL,ELECTRICITY,1120,23-Sep-20,179181,42.65,BRITISH GAS,BRI040
EFDC,YB110,SUPERVISION/MANAGEMENT SPECIAL,ELECTRICITY,1120,23-Sep-20,179181,17.89,BRITISH GAS,BRI040
EFDC,YB110,SUPERVISION/MANAGEMENT SPECIAL,ELECTRICITY,1120,23-Sep-20,179181,9.92,BRITISH GAS,BRI040
EFDC,YB110,SUPERVISION/MANAGEMENT SPECIAL,ELECTRICITY,1120,23-Sep-20,179181,11.37,BRITISH GAS,BRI040
EFDC,YB110,SUPERVISION/MANAGEMENT SPECIAL,ELECTRICITY,1120,23-Sep-20,179181,12.19,BRITISH GAS,BRI040
EFDC,YB110,SUPERVISION/MANAGEMENT SPECIAL,ELECTRICITY,1120,23-Sep-20,179181,19.01,BRITISH GAS,BRI040
EFDC,YB110,SUPERVISION/MANAGEMENT SPECIAL,ELECTRICITY,1120,23-Sep-20,179181,10.75,BRITISH GAS,BRI040
EFDC,YB110,SUPERVISION/MANAGEMENT SPECIAL,ELECTRICITY,1120,23-Sep-20,179181,10.37,BRITISH GAS,BRI040
EFDC,YB110,SUPERVISION/MANAGEMENT SPECIAL,ELECTRICITY,1120,23-Sep-20,179181,131.28,BRITISH GAS,BRI040
EFDC,YB110,SUPERVISION/MANAGEMENT SPECIAL,ELECTRICITY,1120,23-Sep-20,179181,6.79,BRITISH GAS,BRI040
EFDC,YB110,SUPERVISION/MANAGEMENT SPECIAL,ELECTRICITY,1120,23-Sep-20,179181,13.57,BRITISH GAS,BRI040
EFDC,YB110,SUPERVISION/MANAGEMENT SPECIAL,ELECTRICITY,1120,23-Sep-20,179181,14.62,BRITISH GAS,BRI040
EFDC,YB110,SUPERVISION/MANAGEMENT SPECIAL,ELECTRICITY,1120,23-Sep-20,179181,14.03,BRITISH GAS,BRI040
EFDC,YB110,SUPERVISION/MANAGEMENT SPECIAL,ELECTRICITY,1120,23-Sep-20,179181,16.11,BRITISH GAS,BRI040
EFDC,YB110,SUPERVISION/MANAGEMENT SPECIAL,ELECTRICITY,1120,23-Sep-20,179181,15.28,BRITISH GAS,BRI040
EFDC,YB110,SUPERVISION/MANAGEMENT SPECIAL,ELECTRICITY,1120,23-Sep-20,179181,22.62,BRITISH GAS,BRI040
EFDC,YB110,SUPERVISION/MANAGEMENT SPECIAL,ELECTRICITY,1120,23-Sep-20,179181,11.86,BRITISH GAS,BRI040
EFDC,YB110,SUPERVISION/MANAGEMENT SPECIAL,ELECTRICITY,1120,23-Sep-20,179181,15.78,BRITISH GAS,BRI040
EFDC,YB110,SUPERVISION/MANAGEMENT SPECIAL,ELECTRICITY,1120,23-Sep-20,179181,13.79,BRITISH GAS,BRI040
EFDC,YB110,SUPERVISION/MANAGEMENT SPECIAL,ELECTRICITY,1120,23-Sep-20,179181,10.65,BRITISH GAS,BRI040
EFDC,YB110,SUPERVISION/MANAGEMENT SPECIAL,ELECTRICITY,1120,23-Sep-20,179181,18.41,BRITISH GAS,BRI040
EFDC,YB110,SUPERVISION/MANAGEMENT SPECIAL,ELECTRICITY,1120,23-Sep-20,179181,46.07,BRITISH GAS,BRI040
EFDC,YB110,SUPERVISION/MANAGEMENT SPECIAL,ELECTRICITY,1120,23-Sep-20,179181,24.38,BRITISH GAS,BRI040
EFDC,YB110,SUPERVISION/MANAGEMENT SPECIAL,ELECTRICITY,1120,23-Sep-20,179181,41.25,BRITISH GAS,BRI040
EFDC,YB110,SUPERVISION/MANAGEMENT SPECIAL,ELECTRICITY,1120,23-Sep-20,179181,14.38,BRITISH GAS,BRI040
EFDC,YB110,SUPERVISION/MANAGEMENT SPECIAL,ELECTRICITY,1120,23-Sep-20,179181,12.39,BRITISH GAS,BRI040
EFDC,YB110,SUPERVISION/MANAGEMENT SPECIAL,ELECTRICITY,1120,23-Sep-20,179181,14.83,BRITISH GAS,BRI040
EFDC,YB110,SUPERVISION/MANAGEMENT SPECIAL,ELECTRICITY,1120,23-Sep-20,179181,10.01,BRITISH GAS,BRI040
EFDC,YB110,SUPERVISION/MANAGEMENT SPECIAL,ELECTRICITY,1120,23-Sep-20,179181,7.50,BRITISH GAS,BRI040
EFDC,YB110,SUPERVISION/MANAGEMENT SPECIAL,ELECTRICITY,1120,23-Sep-20,179181,8.52,BRITISH GAS,BRI040
EFDC,YB110,SUPERVISION/MANAGEMENT SPECIAL,ELECTRICITY,1120,23-Sep-20,179181,8.52,BRITISH GAS,BRI040
EFDC,YB110,SUPERVISION/MANAGEMENT SPECIAL,ELECTRICITY,1120,23-Sep-20,179181,11.46,BRITISH GAS,BRI040
EFDC,YB110,SUPERVISION/MANAGEMENT SPECIAL,ELECTRICITY,1120,23-Sep-20,179181,15.55,BRITISH GAS,BRI040
EFDC,YB110,SUPERVISION/MANAGEMENT SPECIAL,ELECTRICITY,1120,23-Sep-20,179181,11.55,BRITISH GAS,BRI040
EFDC,YB110,SUPERVISION/MANAGEMENT SPECIAL,ELECTRICITY,1120,23-Sep-20,179181,10.34,BRITISH GAS,BRI040
EFDC,YB110,SUPERVISION/MANAGEMENT SPECIAL,ELECTRICITY,1120,23-Sep-20,179181,25.09,BRITISH GAS,BRI040
EFDC,YB110,SUPERVISION/MANAGEMENT SPECIAL,ELECTRICITY,1120,23-Sep-20,179181,26.15,BRITISH GAS,BRI040
EFDC,YB110,SUPERVISION/MANAGEMENT SPECIAL,ELECTRICITY,1120,23-Sep-20,179181,19.51,BRITISH GAS,BRI040
EFDC,YB110,SUPERVISION/MANAGEMENT SPECIAL,ELECTRICITY,1120,23-Sep-20,179181,31.02,BRITISH GAS,BRI040
EFDC,YB110,SUPERVISION/MANAGEMENT SPECIAL,ELECTRICITY,1120,23-Sep-20,179181,44.04,BRITISH GAS,BRI040
EFDC,YB110,SUPERVISION/MANAGEMENT SPECIAL,ELECTRICITY,1120,23-Sep-20,179181,14.66,BRITISH GAS,BRI040
EFDC,YB110,SUPERVISION/MANAGEMENT SPECIAL,ELECTRICITY,1120,23-Sep-20,179181,22.38,BRITISH GAS,BRI040
EFDC,YB110,SUPERVISION/MANAGEMENT SPECIAL,ELECTRICITY,1120,23-Sep-20,179181,16.56,BRITISH GAS,BRI040
EFDC,YB110,SUPERVISION/MANAGEMENT SPECIAL,ELECTRICITY,1120,23-Sep-20,179181,23.20,BRITISH GAS,BRI040
EFDC,YB110,SUPERVISION/MANAGEMENT SPECIAL,ELECTRICITY,1120,23-Sep-20,179181,15.75,BRITISH GAS,BRI040
EFDC,YB110,SUPERVISION/MANAGEMENT SPECIAL,ELECTRICITY,1120,23-Sep-20,179181,16.87,BRITISH GAS,BRI040
EFDC,YB110,SUPERVISION/MANAGEMENT SPECIAL,ELECTRICITY,1120,23-Sep-20,179181,13.60,BRITISH GAS,BRI040
EFDC,YB110,SUPERVISION/MANAGEMENT SPECIAL,ELECTRICITY,1120,23-Sep-20,179181,18.53,BRITISH GAS,BRI040
EFDC,YB110,SUPERVISION/MANAGEMENT SPECIAL,ELECTRICITY,1120,23-Sep-20,179181,23.03,BRITISH GAS,BRI040
EFDC,YB110,SUPERVISION/MANAGEMENT SPECIAL,ELECTRICITY,1120,23-Sep-20,179181,11.83,BRITISH GAS,BRI040
EFDC,YB110,SUPERVISION/MANAGEMENT SPECIAL,ELECTRICITY,1120,23-Sep-20,179181,11.65,BRITISH GAS,BRI040
EFDC,YB110,SUPERVISION/MANAGEMENT SPECIAL,ELECTRICITY,1120,23-Sep-20,179181,27.16,BRITISH GAS,BRI040
EFDC,YB110,SUPERVISION/MANAGEMENT SPECIAL,ELECTRICITY,1120,23-Sep-20,179181,17.65,BRITISH GAS,BRI040
EFDC,YB110,SUPERVISION/MANAGEMENT SPECIAL,ELECTRICITY,1120,23-Sep-20,179181,8.99,BRITISH GAS,BRI040
EFDC,YB110,SUPERVISION/MANAGEMENT SPECIAL,ELECTRICITY,1120,23-Sep-20,179181,27.67,BRITISH GAS,BRI040
EFDC,YB110,SUPERVISION/MANAGEMENT SPECIAL,ELECTRICITY,1120,23-Sep-20,179181,17.63,BRITISH GAS,BRI040
EFDC,YB110,SUPERVISION/MANAGEMENT SPECIAL,ELECTRICITY,1120,23-Sep-20,179181,7.38,BRITISH GAS,BRI040
EFDC,YB110,SUPERVISION/MANAGEMENT SPECIAL,ELECTRICITY,1120,23-Sep-20,179181,7.89,BRITISH GAS,BRI040
EFDC,YB110,SUPERVISION/MANAGEMENT SPECIAL,ELECTRICITY,1120,23-Sep-20,179181,12.76,BRITISH GAS,BRI040
EFDC,YB110,SUPERVISION/MANAGEMENT SPECIAL,ELECTRICITY,1120,23-Sep-20,179181,14.65,BRITISH GAS,BRI040
EFDC,YB110,SUPERVISION/MANAGEMENT SPECIAL,ELECTRICITY,1120,23-Sep-20,179181,81.34,BRITISH GAS,BRI040
EFDC,YB110,SUPERVISION/MANAGEMENT SPECIAL,ELECTRICITY,1120,23-Sep-20,179181,6.87,BRITISH GAS,BRI040
EFDC,YB110,SUPERVISION/MANAGEMENT SPECIAL,ELECTRICITY,1120,23-Sep-20,179181,42.07,BRITISH GAS,BRI040
EFDC,YB110,SUPERVISION/MANAGEMENT SPECIAL,ELECTRICITY,1120,23-Sep-20,179181,34.65,BRITISH GAS,BRI040
EFDC,YB110,SUPERVISION/MANAGEMENT SPECIAL,ELECTRICITY,1120,23-Sep-20,179181,12.90,BRITISH GAS,BRI040
EFDC,YB110,SUPERVISION/MANAGEMENT SPECIAL,ELECTRICITY,1120,23-Sep-20,179181,15.39,BRITISH GAS,BRI040
EFDC,YB110,SUPERVISION/MANAGEMENT SPECIAL,ELECTRICITY,1120,23-Sep-20,179181,7.38,BRITISH GAS,BRI040
EFDC,YB110,SUPERVISION/MANAGEMENT SPECIAL,ELECTRICITY,1120,23-Sep-20,179181,67.77,BRITISH GAS,BRI040
EFDC,YB110,SUPERVISION/MANAGEMENT SPECIAL,ELECTRICITY,1120,23-Sep-20,179181,41.23,BRITISH GAS,BRI040
EFDC,YB110,SUPERVISION/MANAGEMENT SPECIAL,ELECTRICITY,1120,23-Sep-20,179181,28.75,BRITISH GAS,BRI040
EFDC,YB110,SUPERVISION/MANAGEMENT SPECIAL,ELECTRICITY,1120,23-Sep-20,179181,6.87,BRITISH GAS,BRI040
EFDC,YB110,SUPERVISION/MANAGEMENT SPECIAL,ELECTRICITY,1120,23-Sep-20,179181,6.87,BRITISH GAS,BRI040
EFDC,YB110,SUPERVISION/MANAGEMENT SPECIAL,ELECTRICITY,1120,23-Sep-20,179181,29.80,BRITISH GAS,BRI040
EFDC,YB110,SUPERVISION/MANAGEMENT SPECIAL,ELECTRICITY,1120,23-Sep-20,179181,16.77,BRITISH GAS,BRI040
EFDC,YB110,SUPERVISION/MANAGEMENT SPECIAL,ELECTRICITY,1120,23-Sep-20,179181,14.53,BRITISH GAS,BRI040
EFDC,YB110,SUPERVISION/MANAGEMENT SPECIAL,ELECTRICITY,1120,23-Sep-20,179181,14.40,BRITISH GAS,BRI040
EFDC,YB110,SUPERVISION/MANAGEMENT SPECIAL,ELECTRICITY,1120,23-Sep-20,179181,10.02,BRITISH GAS,BRI040
EFDC,YB110,SUPERVISION/MANAGEMENT SPECIAL,ELECTRICITY,1120,23-Sep-20,179181,10.41,BRITISH GAS,BRI040
EFDC,YB110,SUPERVISION/MANAGEMENT SPECIAL,ELECTRICITY,1120,23-Sep-20,179181,27.59,BRITISH GAS,BRI040
EFDC,YB110,SUPERVISION/MANAGEMENT SPECIAL,ELECTRICITY,1120,23-Sep-20,179181,79.06,BRITISH GAS,BRI040
EFDC,YB110,SUPERVISION/MANAGEMENT SPECIAL,ELECTRICITY,1120,23-Sep-20,179181,7.51,BRITISH GAS,BRI040
EFDC,YB110,SUPERVISION/MANAGEMENT SPECIAL,ELECTRICITY,1120,23-Sep-20,179181,29.32,BRITISH GAS,BRI040
EFDC,YB110,SUPERVISION/MANAGEMENT SPECIAL,ELECTRICITY,1120,23-Sep-20,179181,11.52,BRITISH GAS,BRI040
EFDC,YB110,SUPERVISION/MANAGEMENT SPECIAL,ELECTRICITY,1120,23-Sep-20,179181,6.87,BRITISH GAS,BRI040
EFDC,YB110,SUPERVISION/MANAGEMENT SPECIAL,ELECTRICITY,1120,23-Sep-20,179181,8.64,BRITISH GAS,BRI040
EFDC,YB110,SUPERVISION/MANAGEMENT SPECIAL,ELECTRICITY,1120,23-Sep-20,179181,9.43,BRITISH GAS,BRI040
EFDC,YB110,SUPERVISION/MANAGEMENT SPECIAL,ELECTRICITY,1120,23-Sep-20,179181,8.34,BRITISH GAS,BRI040
EFDC,YB110,SUPERVISION/MANAGEMENT SPECIAL,ELECTRICITY,1120,23-Sep-20,179181,12.51,BRITISH GAS,BRI040
EFDC,YB110,SUPERVISION/MANAGEMENT SPECIAL,ELECTRICITY,1120,23-Sep-20,179181,64.88,BRITISH GAS,BRI040
EFDC,YB110,SUPERVISION/MANAGEMENT SPECIAL,ELECTRICITY,1120,23-Sep-20,179181,15.51,BRITISH GAS,BRI040
EFDC,YB110,SUPERVISION/MANAGEMENT SPECIAL,ELECTRICITY,1120,23-Sep-20,179181,13.55,BRITISH GAS,BRI040
EFDC,YB110,SUPERVISION/MANAGEMENT SPECIAL,ELECTRICITY,1120,23-Sep-20,179181,15.17,BRITISH GAS,BRI040
EFDC,YB110,SUPERVISION/MANAGEMENT SPECIAL,ELECTRICITY,1120,23-Sep-20,179181,11.39,BRITISH GAS,BRI040
EFDC,YB110,SUPERVISION/MANAGEMENT SPECIAL,ELECTRICITY,1120,23-Sep-20,179181,13.09,BRITISH GAS,BRI040
EFDC,YB110,SUPERVISION/MANAGEMENT SPECIAL,ELECTRICITY,1120,23-Sep-20,179181,12.11,BRITISH GAS,BRI040
EFDC,YB110,SUPERVISION/MANAGEMENT SPECIAL,ELECTRICITY,1120,23-Sep-20,179181,9.54,BRITISH GAS,BRI040
EFDC,YB110,SUPERVISION/MANAGEMENT SPECIAL,ELECTRICITY,1120,23-Sep-20,179181,11.80,BRITISH GAS,BRI040
EFDC,YB110,SUPERVISION/MANAGEMENT SPECIAL,ELECTRICITY,1120,23-Sep-20,179181,12.23,BRITISH GAS,BRI040
EFDC,YB110,SUPERVISION/MANAGEMENT SPECIAL,ELECTRICITY,1120,23-Sep-20,179181,15.75,BRITISH GAS,BRI040
EFDC,YB110,SUPERVISION/MANAGEMENT SPECIAL,ELECTRICITY,1120,23-Sep-20,179181,17.35,BRITISH GAS,BRI040
EFDC,YB110,SUPERVISION/MANAGEMENT SPECIAL,ELECTRICITY,1120,23-Sep-20,179181,16.06,BRITISH GAS,BRI040
EFDC,YB110,SUPERVISION/MANAGEMENT SPECIAL,ELECTRICITY,1120,23-Sep-20,179181,11.91,BRITISH GAS,BRI040
EFDC,YB110,SUPERVISION/MANAGEMENT SPECIAL,ELECTRICITY,1120,23-Sep-20,179181,13.41,BRITISH GAS,BRI040
EFDC,YB110,SUPERVISION/MANAGEMENT SPECIAL,ELECTRICITY,1120,23-Sep-20,179181,13.48,BRITISH GAS,BRI040
EFDC,YB110,SUPERVISION/MANAGEMENT SPECIAL,ELECTRICITY,1120,23-Sep-20,179181,19.54,BRITISH GAS,BRI040
EFDC,YB110,SUPERVISION/MANAGEMENT SPECIAL,ELECTRICITY,1120,23-Sep-20,179181,17.34,BRITISH GAS,BRI040
EFDC,YB110,SUPERVISION/MANAGEMENT SPECIAL,ELECTRICITY,1120,23-Sep-20,179181,8.84,BRITISH GAS,BRI040
EFDC,YB110,SUPERVISION/MANAGEMENT SPECIAL,ELECTRICITY,1120,23-Sep-20,179181,9.24,BRITISH GAS,BRI040
EFDC,YB110,SUPERVISION/MANAGEMENT SPECIAL,ELECTRICITY,1120,23-Sep-20,179181,15.89,BRITISH GAS,BRI040
EFDC,YB110,SUPERVISION/MANAGEMENT SPECIAL,ELECTRICITY,1120,23-Sep-20,179181,17.83,BRITISH GAS,BRI040
EFDC,YB110,SUPERVISION/MANAGEMENT SPECIAL,ELECTRICITY,1120,23-Sep-20,179181,28.73,BRITISH GAS,BRI040
EFDC,YB110,SUPERVISION/MANAGEMENT SPECIAL,ELECTRICITY,1120,23-Sep-20,179181,12.52,BRITISH GAS,BRI040
EFDC,YB110,SUPERVISION/MANAGEMENT SPECIAL,ELECTRICITY,1120,23-Sep-20,179181,12.11,BRITISH GAS,BRI040
EFDC,YB110,SUPERVISION/MANAGEMENT SPECIAL,ELECTRICITY,1120,23-Sep-20,179181,11.96,BRITISH GAS,BRI040
EFDC,YB110,SUPERVISION/MANAGEMENT SPECIAL,ELECTRICITY,1120,23-Sep-20,179181,17.34,BRITISH GAS,BRI040
EFDC,YB110,SUPERVISION/MANAGEMENT SPECIAL,ELECTRICITY,1120,23-Sep-20,179181,11.50,BRITISH GAS,BRI040
EFDC,YB110,SUPERVISION/MANAGEMENT SPECIAL,ELECTRICITY,1120,23-Sep-20,179181,10.79,BRITISH GAS,BRI040
EFDC,YB110,SUPERVISION/MANAGEMENT SPECIAL,ELECTRICITY,1120,23-Sep-20,179181,12.98,BRITISH GAS,BRI040
EFDC,YB110,SUPERVISION/MANAGEMENT SPECIAL,ELECTRICITY,1120,23-Sep-20,179181,16.83,BRITISH GAS,BRI040
EFDC,YB110,SUPERVISION/MANAGEMENT SPECIAL,ELECTRICITY,1120,23-Sep-20,179181,131.42,BRITISH GAS,BRI040
EFDC,YB110,SUPERVISION/MANAGEMENT SPECIAL,ELECTRICITY,1120,23-Sep-20,179181,11.11,BRITISH GAS,BRI040
EFDC,YB110,SUPERVISION/MANAGEMENT SPECIAL,ELECTRICITY,1120,23-Sep-20,179181,18.64,BRITISH GAS,BRI040
EFDC,YB110,SUPERVISION/MANAGEMENT SPECIAL,ELECTRICITY,1120,23-Sep-20,179181,10.86,BRITISH GAS,BRI040
EFDC,YB110,SUPERVISION/MANAGEMENT SPECIAL,ELECTRICITY,1120,23-Sep-20,179181,34.07,BRITISH GAS,BRI040
EFDC,YB110,SUPERVISION/MANAGEMENT SPECIAL,ELECTRICITY,1120,23-Sep-20,179181,41.10,BRITISH GAS,BRI040
EFDC,YB110,SUPERVISION/MANAGEMENT SPECIAL,ELECTRICITY,1120,23-Sep-20,179181,42.12,BRITISH GAS,BRI040
EFDC,YB110,SUPERVISION/MANAGEMENT SPECIAL,ELECTRICITY,1120,23-Sep-20,179181,514.61,BRITISH GAS,BRI040
EFDC,YB110,SUPERVISION/MANAGEMENT SPECIAL,ELECTRICITY,1120,23-Sep-20,179181,40.31,BRITISH GAS,BRI040
EFDC,YB110,SUPERVISION/MANAGEMENT SPECIAL,ELECTRICITY,1120,23-Sep-20,179181,52.02,BRITISH GAS,BRI040
EFDC,YB110,SUPERVISION/MANAGEMENT SPECIAL,ELECTRICITY,1120,23-Sep-20,179181,39.49,BRITISH GAS,BRI040
EFDC,YB110,SUPERVISION/MANAGEMENT SPECIAL,ELECTRICITY,1120,23-Sep-20,179181,14.51,BRITISH GAS,BRI040
EFDC,YB110,SUPERVISION/MANAGEMENT SPECIAL,ELECTRICITY,1120,23-Sep-20,179181,46.18,BRITISH GAS,BRI040
EFDC,YB110,SUPERVISION/MANAGEMENT SPECIAL,ELECTRICITY,1120,23-Sep-20,179181,41.26,BRITISH GAS,BRI040
EFDC,YB110,SUPERVISION/MANAGEMENT SPECIAL,ELECTRICITY,1120,23-Sep-20,179181,18.38,BRITISH GAS,BRI040
EFDC,YB110,SUPERVISION/MANAGEMENT SPECIAL,ELECTRICITY,1120,23-Sep-20,179181,16.45,BRITISH GAS,BRI040
EFDC,YB110,SUPERVISION/MANAGEMENT SPECIAL,ELECTRICITY,1120,23-Sep-20,179181,11.63,BRITISH GAS,BRI040
EFDC,YB110,SUPERVISION/MANAGEMENT SPECIAL,ELECTRICITY,1120,23-Sep-20,179181,22.59,BRITISH GAS,BRI040
EFDC,YB110,SUPERVISION/MANAGEMENT SPECIAL,ELECTRICITY,1120,23-Sep-20,179181,13.01,BRITISH GAS,BRI040
EFDC,YB110,SUPERVISION/MANAGEMENT SPECIAL,ELECTRICITY,1120,23-Sep-20,179181,11.01,BRITISH GAS,BRI040
EFDC,YB110,SUPERVISION/MANAGEMENT SPECIAL,ELECTRICITY,1120,23-Sep-20,179181,14.11,BRITISH GAS,BRI040
EFDC,YB110,SUPERVISION/MANAGEMENT SPECIAL,ELECTRICITY,1120,23-Sep-20,179181,13.97,BRITISH GAS,BRI040
EFDC,YB110,SUPERVISION/MANAGEMENT SPECIAL,ELECTRICITY,1120,23-Sep-20,179181,51.79,BRITISH GAS,BRI040
EFDC,YB110,SUPERVISION/MANAGEMENT SPECIAL,ELECTRICITY,1120,23-Sep-20,179181,12.85,BRITISH GAS,BRI040
EFDC,YB110,SUPERVISION/MANAGEMENT SPECIAL,ELECTRICITY,1120,23-Sep-20,179181,11.40,BRITISH GAS,BRI040
EFDC,YB110,SUPERVISION/MANAGEMENT SPECIAL,ELECTRICITY,1120,23-Sep-20,179181,22.17,BRITISH GAS,BRI040
EFDC,YB110,SUPERVISION/MANAGEMENT SPECIAL,ELECTRICITY,1120,23-Sep-20,179181,14.37,BRITISH GAS,BRI040
EFDC,YB110,SUPERVISION/MANAGEMENT SPECIAL,ELECTRICITY,1120,23-Sep-20,179181,31.58,BRITISH GAS,BRI040
EFDC,YB110,SUPERVISION/MANAGEMENT SPECIAL,ELECTRICITY,1120,23-Sep-20,179181,72.91,BRITISH GAS,BRI040
EFDC,32200,OTHER SUPPORT SERVICES,EQUIPMENT - HIRED,3020,23-Sep-20,179210,794.60,CANON (UK) LTD,CAN004
EFDC,32200,OTHER SUPPORT SERVICES,EQUIPMENT - HIRED,3020,23-Sep-20,179209,2491.54,CANON (UK) LTD,CAN004
EFDC,BAL01,EFDC BALANCE SHEET,BUSY BEES,Z606,23-Sep-20,179148,922.75,COMPUTERSHAREVOUCHER SERVICES,BUS009
EFDC,32121,OTHER SUPPORT SERVICES,EMPLOYEES - OTHER PAYMENTS,0191,23-Sep-20,179148,59.98,COMPUTERSHAREVOUCHER SERVICES,BUS009
EFDC,CH110,"MUSEUM, HERITAGE & CULTURE",BANKING AND CASH COLLECTION,3440,23-Sep-20,178405,16.75,CONTRACT SECURITY SERVICES LTD,CON033
EFDC,TO100,LAND & PROPERTY,BANKING AND CASH COLLECTION,3440,23-Sep-20,178405,67.00,CONTRACT SECURITY SERVICES LTD,CON033
EFDC,33020,OTHER ACTIVITIES,BANKING AND CASH COLLECTION,3440,23-Sep-20,178405,217.75,CONTRACT SECURITY SERVICES LTD,CON033
EFDC,33020,OTHER ACTIVITIES,BANKING AND CASH COLLECTION,3440,23-Sep-20,178405,234.50,CONTRACT SECURITY SERVICES LTD,CON033
EFDC,34110,HOUSING PROP SUPPORT SERVICES,BANKING AND CASH COLLECTION,3440,23-Sep-20,178405,16.75,CONTRACT SECURITY SERVICES LTD,CON033
EFDC,YD100,"RENTS, RATES TAXES & INSURANCE",GAS,1110,23-Sep-20,179188,1724.16,CORONA ENERGY RETAIL 4 LTD,COR015
EFDC,YA110,SUPERVISION/MANAGEMENT GENERAL,PROFESSIONAL FEES,3420,23-Sep-20,179228,850.00,DERRICK WADE WATERS,DER001
EFDC,YA110,SUPERVISION/MANAGEMENT GENERAL,CONSULTANTS FEES,3490,23-Sep-20,179227,1000.00,DERRICK WADE WATERS,DER001
EFDC,HI122,HIGHWAYS,TREE  MAINTENANCE,1070,23-Sep-20,178156,1387.50,D F CLARK CONTRACTORS LTD,DFC001
EFDC,35400,CONTRACT & TECH SUPPORT SERVIC,VEHICLE HIRE,2620,23-Sep-20,178858,739.05,ERNEST DOE & SONS LTD,ERN001
EFDC,35500,CONTRACT & TECH SUPPORT SERVIC,VEHICLE HIRE,2620,23-Sep-20,178858,739.04,ERNEST DOE & SONS LTD,ERN001
EFDC,26200,OTHER SUPPORT SERVICES,FIXED PLANT MAINTENANCE,1020,23-Sep-20,179296,601.00,GENERATED POWER SERVICES LTD,GEN002
EFDC,36650,HRA SUPPORT SERVICES,AGENCY STAFF,0120,23-Sep-20,178503,2500.00,HAYS SPECIALIST RECRUITMENT LTD,HAY011
EFDC,33060,OTHER ACTIVITIES,AGENCY STAFF,0120,23-Sep-20,178494,3096.00,HAYS SPECIALIST RECRUITMENT LTD,HAY011
EFDC,36650,HRA SUPPORT SERVICES,AGENCY STAFF,0120,23-Sep-20,178904,2500.00,HAYS SPECIALIST RECRUITMENT LTD,HAY011
EFDC,33060,OTHER ACTIVITIES,AGENCY STAFF,0120,23-Sep-20,178500,3870.00,HAYS SPECIALIST RECRUITMENT LTD,HAY011
EFDC,33080,OTHER ACTIVITIES,AGENCY STAFF,0120,23-Sep-20,179316,1246.04,HAYS SPECIALIST RECRUITMENT LTD,HAY011
EFDC,31140,CHIEF EXECUTIVE SUPPORT SERVIC,RECRUITMENT EXPENSES,0320,23-Sep-20,179317,3000.00,HAYS SPECIALIST RECRUITMENT LTD,HAY011
EFDC,33060,OTHER ACTIVITIES,AGENCY STAFF,0120,23-Sep-20,178501,1563.30,HAYS SPECIALIST RECRUITMENT LTD,HAY011
EFDC,32060,OTHER SUPPORT SERVICES,AGENCY STAFF,0120,23-Sep-20,179339,1628.00,LAW ABSOLUTE LIMITED,LAW009
EFDC,33080,OTHER ACTIVITIES,ANNUAL SUPPORT /  LICENSES,3872,23-Sep-20,178515,608.52,INSIGHT DIRECT (UK) LTD,INS006
EFDC,33080,OTHER ACTIVITIES,ANNUAL SUPPORT /  LICENSES,3872,23-Sep-20,178515,1500.00,INSIGHT DIRECT (UK) LTD,INS006
EFDC,32115,OTHER SUPPORT SERVICES,TRAINING EXPENSES,0310,23-Sep-20,178167,1750.00,INSTITUTE OF REVENUES RATING & VALUATION,INS008
EFDC,32115,OTHER SUPPORT SERVICES,TRAINING EXPENSES,0310,23-Sep-20,178167,437.50,INSTITUTE OF REVENUES RATING & VALUATION,INS008
EFDC,32115,OTHER SUPPORT SERVICES,TRAINING EXPENSES,0310,23-Sep-20,178168,237.50,INSTITUTE OF REVENUES RATING & VALUATION,INS008
EFDC,32115,OTHER SUPPORT SERVICES,TRAINING EXPENSES,0310,23-Sep-20,178167,237.50,INSTITUTE OF REVENUES RATING & VALUATION,INS008
EFDC,32115,OTHER SUPPORT SERVICES,TRAINING EXPENSES,0310,23-Sep-20,178167,950.00,INSTITUTE OF REVENUES RATING & VALUATION,INS008
EFDC,32115,OTHER SUPPORT SERVICES,TRAINING EXPENSES,0310,23-Sep-20,178168,950.00,INSTITUTE OF REVENUES RATING & VALUATION,INS008
EFDC,37600,PLANNING SUPPORT SERVICES,AGENCY STAFF,0120,23-Sep-20,179200,680.57,ADECCO UK LTD,ADE002
EFDC,26200,OTHER SUPPORT SERVICES,BUILDING MAINTENANCE,1010,23-Sep-20,177860,507.37,MITIE SECURITY LTD,MIT004
EFDC,CH110,"MUSEUM, HERITAGE & CULTURE",MATERIALS,3080,23-Sep-20,178921,245.00,DANNELLS LIMITED,MAR031
EFDC,CH110,"MUSEUM, HERITAGE & CULTURE",PRINTING - EXTERNAL,3390,23-Sep-20,178921,212.00,DANNELLS LIMITED,MAR031
EFDC,CH110,"MUSEUM, HERITAGE & CULTURE",MATERIALS,3080,23-Sep-20,178921,300.00,DANNELLS LIMITED,MAR031
EFDC,CH110,"MUSEUM, HERITAGE & CULTURE",MATERIALS,3080,23-Sep-20,178921,20.00,DANNELLS LIMITED,MAR031
EFDC,CH110,"MUSEUM, HERITAGE & CULTURE",MATERIALS,3080,23-Sep-20,178921,70.00,DANNELLS LIMITED,MAR031
EFDC,CH110,"MUSEUM, HERITAGE & CULTURE",MATERIALS,3080,23-Sep-20,178921,98.00,DANNELLS LIMITED,MAR031
EFDC,33080,OTHER ACTIVITIES,CONSULTANTS FEES,3490,23-Sep-20,178556,3500.00,NORTHGATE PUBLIC SERVICES (UK) LTD,NOR018
EFDC,26200,OTHER SUPPORT SERVICES,BUILDING MAINTENANCE,1010,23-Sep-20,179350,220.55,G A & D PERRY BUILDING CONTRACTORS,PER005
EFDC,26200,OTHER SUPPORT SERVICES,BUILDING MAINTENANCE,1010,23-Sep-20,179350,400.00,G A & D PERRY BUILDING CONTRACTORS,PER005
EFDC,RM300,PLANNED & CYCLICAL MAINTENANCE,BUILDING MAINTENANCE,1010,23-Sep-20,179365,1545.54,SCCI ALPHATRACK LTD,SCC003
EFDC,YB120,SUPERVISION/MANAGEMENT SPECIAL,FUEL,2330,23-Sep-20,178993,73.37,SHELL U.K. OIL PRODUCTS LIMITED,SHE007
EFDC,EI131,LOCAL PLAN IMPLEMENTATION,FUEL,2330,23-Sep-20,178588,74.29,SHELL U.K. OIL PRODUCTS LIMITED,SHE007
EFDC,YB120,SUPERVISION/MANAGEMENT SPECIAL,FUEL,2330,23-Sep-20,178992,134.29,SHELL U.K. OIL PRODUCTS LIMITED,SHE007
EFDC,35400,CONTRACT & TECH SUPPORT SERVIC,FUEL,2330,23-Sep-20,178588,1718.81,SHELL U.K. OIL PRODUCTS LIMITED,SHE007
EFDC,35500,CONTRACT & TECH SUPPORT SERVIC,FUEL,2330,23-Sep-20,178588,842.92,SHELL U.K. OIL PRODUCTS LIMITED,SHE007
EFDC,EH155,ENVIRONMENTAL HEALTH,FUEL,2330,23-Sep-20,178993,41.51,SHELL U.K. OIL PRODUCTS LIMITED,SHE007
EFDC,78001,HRA SUPPORT SERVICES,FUEL,2330,23-Sep-20,178993,1148.63,SHELL U.K. OIL PRODUCTS LIMITED,SHE007
EFDC,78001,HRA SUPPORT SERVICES,FUEL,2330,23-Sep-20,178992,1765.36,SHELL U.K. OIL PRODUCTS LIMITED,SHE007
EFDC,HI124,HIGHWAYS,OTHER MAINTENANCE,1050,23-Sep-20,178592,696.00,SIGNWAY SUPPLIES (DATCHET) LTD,SIG009
EFDC,35009,CONTRACT & TECH SUPPORT SERVIC,EQUIPMENT - MAINTENANCE,3030,23-Sep-20,179364,1225.50,RVTV SECURITY LTD,RVT001
EFDC,EH143,OTHER ACTIVITIES,PROFESSIONAL FEES,3420,23-Sep-20,179376,1375.00,STUART POULTON LTD,STU003
EFDC,40120,CHIEF EXECUTIVE SUPPORT SERVIC,CONSULTANTS FEES,3490,23-Sep-20,179197,5000.00,SWIVEL CREATIONS LTD,SWI008
EFDC,32060,OTHER SUPPORT SERVICES,BOOKS & PUBLICATIONS,3350,23-Sep-20,179173,18079.00,THOMSON REUTERS (PROFESSIONAL) UK LTD,THO010
EFDC,32115,OTHER SUPPORT SERVICES,TRAINING EXPENSES,0310,23-Sep-20,178201,1100.00,TRAINING & COACHING SOLUTIONS LTD,TRA029
EFDC,32060,OTHER SUPPORT SERVICES,AGENCY STAFF,0120,23-Sep-20,179385,726.00,VENN GROUP LTD,VEN004
EFDC,CM100,CORPORATE ACTIVITIES,CONSULTANTS FEES,3490,23-Sep-20,178204,10146.00,VINE HR LTD,VIN003
EFDC,RS400,"COMMUNITY, HEALTH & WELLBEING",ACTIVITIES,3372,23-Sep-20,179163,9987.00,VOLUNTARY ACTION EPPING FOREST,VOL004
EFDC,32220,OTHER SUPPORT SERVICES,BUILDING MAINTENANCE,1010,23-Sep-20,179299,3768.06,GRACELANDS COMPLETE MAINTENANCE SERVICES LTD,GRA007
EFDC,CAPHR,HRA CAPITAL,WORKS,A040,23-Sep-20,179308,23890.51,GRACELANDS COMPLETE MAINTENANCE SERVICES LTD,GRA007
EFDC,RM100,RESPONSIVE & VOID REPAIRS,BUILDING MAINTENANCE,1010,23-Sep-20,179307,745.97,GRACELANDS COMPLETE MAINTENANCE SERVICES LTD,GRA007
EFDC,RM100,RESPONSIVE & VOID REPAIRS,BUILDING MAINTENANCE,1010,23-Sep-20,179309,715.63,GRACELANDS COMPLETE MAINTENANCE SERVICES LTD,GRA007
EFDC,RM100,RESPONSIVE & VOID REPAIRS,BUILDING MAINTENANCE,1010,23-Sep-20,179306,800.00,GRACELANDS COMPLETE MAINTENANCE SERVICES LTD,GRA007
EFDC,RM100,RESPONSIVE & VOID REPAIRS,BUILDING MAINTENANCE,1010,23-Sep-20,179303,640.00,GRACELANDS COMPLETE MAINTENANCE SERVICES LTD,GRA007
EFDC,RM100,RESPONSIVE & VOID REPAIRS,BUILDING MAINTENANCE,1010,23-Sep-20,179309,0.00,GRACELANDS COMPLETE MAINTENANCE SERVICES LTD,GRA007
EFDC,RM100,RESPONSIVE & VOID REPAIRS,BUILDING MAINTENANCE,1010,23-Sep-20,179307,0.00,GRACELANDS COMPLETE MAINTENANCE SERVICES LTD,GRA007
EFDC,36500,HRA SUPPORT SERVICES,AGENCY STAFF,0120,23-Sep-20,179344,818.57,MORGAN HUNT UK LTD,MOR001
EFDC,YB120,SUPERVISION/MANAGEMENT SPECIAL,PROTECTIVE CLOTHING,3210,23-Sep-20,178835,65.97,CHARLOTTE STIFFELL LTD,CHA006
EFDC,YB120,SUPERVISION/MANAGEMENT SPECIAL,PROTECTIVE CLOTHING,3210,23-Sep-20,178835,65.97,CHARLOTTE STIFFELL LTD,CHA006
EFDC,YB120,SUPERVISION/MANAGEMENT SPECIAL,PROTECTIVE CLOTHING,3210,23-Sep-20,178835,32.97,CHARLOTTE STIFFELL LTD,CHA006
EFDC,YB120,SUPERVISION/MANAGEMENT SPECIAL,PROTECTIVE CLOTHING,3210,23-Sep-20,178835,32.97,CHARLOTTE STIFFELL LTD,CHA006
EFDC,YB120,SUPERVISION/MANAGEMENT SPECIAL,PROTECTIVE CLOTHING,3210,23-Sep-20,178835,65.97,CHARLOTTE STIFFELL LTD,CHA006
EFDC,YB120,SUPERVISION/MANAGEMENT SPECIAL,PROTECTIVE CLOTHING,3210,23-Sep-20,178835,43.98,CHARLOTTE STIFFELL LTD,CHA006
EFDC,YB120,SUPERVISION/MANAGEMENT SPECIAL,PROTECTIVE CLOTHING,3210,23-Sep-20,178835,32.97,CHARLOTTE STIFFELL LTD,CHA006
EFDC,YB120,SUPERVISION/MANAGEMENT SPECIAL,PROTECTIVE CLOTHING,3210,23-Sep-20,178835,38.97,CHARLOTTE STIFFELL LTD,CHA006
EFDC,YB120,SUPERVISION/MANAGEMENT SPECIAL,PROTECTIVE CLOTHING,3210,23-Sep-20,178835,38.97,CHARLOTTE STIFFELL LTD,CHA006
EFDC,YB120,SUPERVISION/MANAGEMENT SPECIAL,PROTECTIVE CLOTHING,3210,23-Sep-20,178835,32.97,CHARLOTTE STIFFELL LTD,CHA006
EFDC,YB120,SUPERVISION/MANAGEMENT SPECIAL,PROTECTIVE CLOTHING,3210,23-Sep-20,178835,32.97,CHARLOTTE STIFFELL LTD,CHA006
EFDC,YB120,SUPERVISION/MANAGEMENT SPECIAL,PROTECTIVE CLOTHING,3210,23-Sep-20,178835,32.97,CHARLOTTE STIFFELL LTD,CHA006
EFDC,YB120,SUPERVISION/MANAGEMENT SPECIAL,PROTECTIVE CLOTHING,3210,23-Sep-20,178835,32.97,CHARLOTTE STIFFELL LTD,CHA006
EFDC,YB120,SUPERVISION/MANAGEMENT SPECIAL,PROTECTIVE CLOTHING,3210,23-Sep-20,178835,14.00,CHARLOTTE STIFFELL LTD,CHA006
EFDC,YB120,SUPERVISION/MANAGEMENT SPECIAL,PROTECTIVE CLOTHING,3210,23-Sep-20,178835,14.00,CHARLOTTE STIFFELL LTD,CHA006
EFDC,YB120,SUPERVISION/MANAGEMENT SPECIAL,PROTECTIVE CLOTHING,3210,23-Sep-20,178835,43.98,CHARLOTTE STIFFELL LTD,CHA006
EFDC,YB120,SUPERVISION/MANAGEMENT SPECIAL,PROTECTIVE CLOTHING,3210,23-Sep-20,178835,38.97,CHARLOTTE STIFFELL LTD,CHA006
EFDC,YB120,SUPERVISION/MANAGEMENT SPECIAL,PROTECTIVE CLOTHING,3210,23-Sep-20,178835,65.97,CHARLOTTE STIFFELL LTD,CHA006
EFDC,YB120,SUPERVISION/MANAGEMENT SPECIAL,PROTECTIVE CLOTHING,3210,23-Sep-20,178835,32.97,CHARLOTTE STIFFELL LTD,CHA006
EFDC,BAL01,EFDC BALANCE SHEET,TUSKER CAR SCHEME,Z631,23-Sep-20,179195,1706.04,TUSKERDIRECT LTD,TUS002
EFDC,BAL01,EFDC BALANCE SHEET,TUSKER CAR SCHEME,Z631,23-Sep-20,179195,2502.10,TUSKERDIRECT LTD,TUS002
EFDC,BAL01,EFDC BALANCE SHEET,TUSKER CAR SCHEME,Z631,23-Sep-20,179195,-1692.95,TUSKERDIRECT LTD,TUS002
EFDC,BAL01,EFDC BALANCE SHEET,TUSKER CAR SCHEME,Z631,23-Sep-20,179195,527.65,TUSKERDIRECT LTD,TUS002
EFDC,BAL01,EFDC BALANCE SHEET,TUSKER CAR SCHEME,Z631,23-Sep-20,179195,615.00,TUSKERDIRECT LTD,TUS002
EFDC,32121,OTHER SUPPORT SERVICES,RECRUITMENT EXPENSES,0320,23-Sep-20,179373,936.00,SOLACE IN BUSINESS LTD,SOL003
EFDC,32121,OTHER SUPPORT SERVICES,RECRUITMENT EXPENSES,0320,23-Sep-20,179373,80.00,SOLACE IN BUSINESS LTD,SOL003
EFDC,32121,OTHER SUPPORT SERVICES,RECRUITMENT EXPENSES,0320,23-Sep-20,179373,3000.00,SOLACE IN BUSINESS LTD,SOL003
EFDC,36900,HRA SUPPORT SERVICES,AGENCY STAFF,0120,23-Sep-20,179335,1093.50,JAMES ANDREWS RECRUITMENT SOLUTIONS LTD,JAM001
EFDC,36900,HRA SUPPORT SERVICES,AGENCY STAFF,0120,23-Sep-20,179332,957.00,JAMES ANDREWS RECRUITMENT SOLUTIONS LTD,JAM001
EFDC,36900,HRA SUPPORT SERVICES,AGENCY STAFF,0120,23-Sep-20,179331,993.56,JAMES ANDREWS RECRUITMENT SOLUTIONS LTD,JAM001
EFDC,36900,HRA SUPPORT SERVICES,AGENCY STAFF,0120,23-Sep-20,179334,1073.00,JAMES ANDREWS RECRUITMENT SOLUTIONS LTD,JAM001
EFDC,36500,HRA SUPPORT SERVICES,AGENCY STAFF,0120,23-Sep-20,179333,792.00,JAMES ANDREWS RECRUITMENT SOLUTIONS LTD,JAM001
EFDC,CAPGF,GENERAL FUND CAPITAL,WORKS,J040,23-Sep-20,179223,11698.00,DAC BEACHCROFT LLP,DAC001
EFDC,CH110,"MUSEUM, HERITAGE & CULTURE",RENTS / HIRE OF HALL,1210,23-Sep-20,179298,1200.00,GRANGEWOOD INVESTMENTS LTD,GRA006
EFDC,PP111,LOCAL PLAN IMPLEMENTATION,CONSULTANTS FEES,3490,23-Sep-20,179202,9450.83,AECOM INFRASTRUCTURE & ENVIRONMENT UK LTD,AEC002
EFDC,PP111,LOCAL PLAN IMPLEMENTATION,CONSULTANTS FEES,3490,23-Sep-20,179201,13600.00,AECOM INFRASTRUCTURE & ENVIRONMENT UK LTD,AEC002
EFDC,35500,CONTRACT & TECH SUPPORT SERVIC,AGENCY STAFF,0120,23-Sep-20,179328,780.30,HL SERVICES (LONDON) LTD,HLS001
EFDC,35500,CONTRACT & TECH SUPPORT SERVIC,AGENCY STAFF,0120,23-Sep-20,179329,566.10,HL SERVICES (LONDON) LTD,HLS001
EFDC,CAPHR,HRA CAPITAL,ARCHITECTS FEES,E160,23-Sep-20,179141,742.90,ECD ARCHITECTS LTD,ECD001
EFDC,CAPHR,HRA CAPITAL,ARCHITECTS FEES,E160,23-Sep-20,179142,698.63,ECD ARCHITECTS LTD,ECD001
EFDC,CAPHR,HRA CAPITAL,ARCHITECTS FEES,E160,23-Sep-20,179140,829.25,ECD ARCHITECTS LTD,ECD001
EFDC,CAPHR,HRA CAPITAL,ARCHITECTS FEES,E160,23-Sep-20,179046,26453.05,ECD ARCHITECTS LTD,ECD001
EFDC,CAPHR,HRA CAPITAL,ARCHITECTS FEES,E160,23-Sep-20,179045,5933.75,ECD ARCHITECTS LTD,ECD001
EFDC,CAPHR,HRA CAPITAL,ARCHITECTS FEES,E160,23-Sep-20,179044,1938.75,ECD ARCHITECTS LTD,ECD001
EFDC,CAPHR,HRA CAPITAL,ARCHITECTS FEES,E160,23-Sep-20,179043,1000.56,ECD ARCHITECTS LTD,ECD001
EFDC,32220,OTHER SUPPORT SERVICES,AGENCY STAFF,0120,23-Sep-20,179211,5236.85,CAPSTONE PROPERTY RECRUITMENT LTD,CAP001
EFDC,RS150,LEISURE FACILITIES,COMPENSATION PAYMENTS,3880,23-Sep-20,179355,157924.31,PLACES FOR PEOPLE LEISURE MANAGEMENT LTD,PLA005
EFDC,EH112,LAND DRAINAGE/SEWERAGE,PROFESSIONAL FEES,3420,23-Sep-20,179203,2271.44,AFFINITY WATER LTD,AFF002
EFDC,32220,OTHER SUPPORT SERVICES,PROFESSIONAL FEES,3420,23-Sep-20,178913,900.00,INGLETON  WOOD,ING001
EFDC,RM100,RESPONSIVE & VOID REPAIRS,BUILDING MAINTENANCE,1010,23-Sep-20,179291,1056.70,GC ROOFING UK LIMITED,GCR001
EFDC,RM100,RESPONSIVE & VOID REPAIRS,BUILDING MAINTENANCE,1010,23-Sep-20,179295,1585.32,GC ROOFING UK LIMITED,GCR001
EFDC,RM100,RESPONSIVE & VOID REPAIRS,BUILDING MAINTENANCE,1010,23-Sep-20,179145,3643.25,GC ROOFING UK LIMITED,GCR001
EFDC,CM105,CORPORATE ACTIVITIES,SUBSCRIPTIONS,3730,23-Sep-20,179232,1311.00,DISTRICT COUNCIL'S NETWORK,DIS022
EFDC,37600,PLANNING SUPPORT SERVICES,AGENCY STAFF,0120,23-Sep-20,179268,1200.00,G2 RECRUITMENT SOLUTIONS,G2R001
EFDC,36500,HRA SUPPORT SERVICES,AGENCY STAFF,0120,23-Sep-20,178892,1414.50,G2 RECRUITMENT SOLUTIONS,G2R001
EFDC,37600,PLANNING SUPPORT SERVICES,AGENCY STAFF,0120,23-Sep-20,178466,1200.00,G2 RECRUITMENT SOLUTIONS,G2R001
EFDC,32060,OTHER SUPPORT SERVICES,AGENCY STAFF,0120,23-Sep-20,179366,1660.32,SELLICK PARTNERSHIP LIMITED,SEL022
EFDC,32060,OTHER SUPPORT SERVICES,AGENCY STAFF,0120,23-Sep-20,179367,1660.32,SELLICK PARTNERSHIP LIMITED,SEL022
EFDC,57100,HRA SUPPORT SERVICES,AGENCY STAFF,0120,23-Sep-20,179313,3550.00,GREENACRE RECRUITMENT LTD,GRE029
EFDC,57100,HRA SUPPORT SERVICES,AGENCY STAFF,0120,23-Sep-20,179314,3550.00,GREENACRE RECRUITMENT LTD,GRE029
EFDC,57100,HRA SUPPORT SERVICES,AGENCY STAFF,0120,23-Sep-20,179310,3550.00,GREENACRE RECRUITMENT LTD,GRE029
EFDC,57100,HRA SUPPORT SERVICES,AGENCY STAFF,0120,23-Sep-20,179312,3550.00,GREENACRE RECRUITMENT LTD,GRE029
EFDC,DC110,PLANNING REGULATORY SERVICES,PROFESSIONAL FEES,3420,23-Sep-20,178571,600.00,PEYTO LAW,PEY001
EFDC,37600,PLANNING SUPPORT SERVICES,AGENCY STAFF,0120,23-Sep-20,178952,1330.00,PARK AVENUE RECRUITMENT LTD,PAR088
EFDC,CM103,OTHER ACTIVITIES,PROFESSIONAL FEES,3420,23-Sep-20,178145,2000.00,BISSET ADAMS LIMITED,BIS007
EFDC,33080,OTHER ACTIVITIES,FIXED NETWORK LINE COSTS,3520,23-Sep-20,179406,3844.17,WAVENET LIMITED,WAV001
EFDC,33080,OTHER ACTIVITIES,FIXED NETWORK LINE COSTS,3520,23-Sep-20,179406,5.00,WAVENET LIMITED,WAV001
EFDC,33080,OTHER ACTIVITIES,FIXED NETWORK LINE COSTS,3520,23-Sep-20,179406,1755.00,WAVENET LIMITED,WAV001
EFDC,CM103,OTHER ACTIVITIES,LEGAL EXPENSES,3680,23-Sep-20,179349,30147.60,PENNINGTONS MANCHES COOPER LLP,PEN023
EFDC,RM500,OTHER ITEMS,CONSULTANTS FEES,3490,23-Sep-20,179164,712.50,BRIAR CONSULTING ENGINEERS LTD,BRI021
EFDC,32220,OTHER SUPPORT SERVICES,PROFESSIONAL FEES,3420,23-Sep-20,179212,59000.00,CARTER JONAS,CAR020
EFDC,CH110,"MUSEUM, HERITAGE & CULTURE",PROFESSIONAL FEES,3420,23-Sep-20,179375,1750.00,STOCKDALE LLP,STO009
EFDC,TO100,LAND & PROPERTY,VEHICLE HIRE,2620,23-Sep-20,179233,844.60,ENTERPRISE RENT-A-CAR UK LIMITED,ENT031
EFDC,TO100,LAND & PROPERTY,VEHICLE HIRE,2620,23-Sep-20,179234,922.52,ENTERPRISE RENT-A-CAR UK LIMITED,ENT031
EFDC,CH110,"MUSEUM, HERITAGE & CULTURE",RENTS / HIRE OF HALL,1210,23-Sep-20,179315,10000.00,HAWKINS BROWN DESIGN LTD,HAW002
EFDC,TO100,LAND & PROPERTY,VEHICLE PARTS / REPAIRS,2210,23-Sep-20,179359,4184.00,PREMIER VEHICLE MANAGEMENT,PRE040
EFDC,TO100,LAND & PROPERTY,VEHICLE PARTS / REPAIRS,2210,23-Sep-20,179358,4184.00,PREMIER VEHICLE MANAGEMENT,PRE040
EFDC,TO100,LAND & PROPERTY,VEHICLE PARTS / REPAIRS,2210,23-Sep-20,179357,4354.00,PREMIER VEHICLE MANAGEMENT,PRE040
EFDC,TO100,LAND & PROPERTY,VEHICLE PARTS / REPAIRS,2210,23-Sep-20,179356,4184.00,PREMIER VEHICLE MANAGEMENT,PRE040
EFDC,32115,OTHER SUPPORT SERVICES,TRAINING EXPENSES,0310,23-Sep-20,179347,995.00,OMNIPLEX (GROUP) LTD,OMN001
EFDC,CAPGF,GENERAL FUND CAPITAL,MANAGEMENT CONSULTANT,B130,23-Sep-20,179208,4700.00,BWB CONSULTING LTD,BWB001
EFDC,PH100,PRIVATE SECTOR HOUSING,GRANTS GENERAL,3720,22-Sep-20,37862,2583.00,STANNAH LIFT SERVICES LTD,STA002
EFDC,PH100,PRIVATE SECTOR HOUSING,GRANTS GENERAL,3720,22-Sep-20,37863,5443.00,STANNAH LIFT SERVICES LTD,STA002
EFDC,BAL01,EFDC BALANCE SHEET,SUNDRY DEBTORS (OTHER),Z208,22-Sep-20,37839,850.00,MR SAMUEL OMOMOH,4967P
EFDC,05240,LEASEHOLDERS,CASH RECEIPTS,7790,22-Sep-20,37843,600.00,L&D PARTNERSHIP,8174P
EFDC,05240,LEASEHOLDERS,CASH RECEIPTS,7790,22-Sep-20,37854,791.76,BURNEY REALTY LTD,8315P
EFDC,LT140,LOCAL TAXATION,GRANTS GENERAL,3720,22-Sep-20,37849,7500.00,CFS FASHION LTD,10039P
EFDC,LT140,LOCAL TAXATION,GRANTS GENERAL,3720,22-Sep-20,37855,7500.00,GINGER ROSE,10041P
EFDC,LT140,LOCAL TAXATION,GRANTS GENERAL,3720,22-Sep-20,37857,7500.00,TAPPIN LTD,10042P
EFDC,LT140,LOCAL TAXATION,GRANTS GENERAL,3720,22-Sep-20,37859,7500.00,DOUG HUNT SOUND & LIGHT LTD,10044P
EFDC,LT140,LOCAL TAXATION,GRANTS GENERAL,3720,22-Sep-20,37853,5000.00,VALLEY DENTAL PRACTICE,9626P
EFDC,LT140,LOCAL TAXATION,GRANTS GENERAL,3720,22-Sep-20,37852,5000.00,PAZAR FOOD LTD,9771P
EFDC,BAL01,EFDC BALANCE SHEET,SUNDRY DEBTORS (OTHER),Z208,22-Sep-20,37840,840.00,NICKOLDS PROPERTY MANAGEMENT,9996P
EFDC,LT140,LOCAL TAXATION,GRANTS GENERAL,3720,22-Sep-20,37851,2500.00,R K PURAWAL,9751P
EFDC,BAL01,EFDC BALANCE SHEET,SUNDRY DEBTORS (OTHER),Z208,22-Sep-20,37841,500.00,MR LEE STIMPSON,10032P
EFDC,BAL01,EFDC BALANCE SHEET,DEPOSITS - PAID,Z223,22-Sep-20,37841,350.00,MR LEE STIMPSON,10032P
EFDC,05240,LEASEHOLDERS,CASH RECEIPTS,7790,22-Sep-20,37842,932.32,MISS L DUGGINS,10033P
EFDC,05240,LEASEHOLDERS,CASH RECEIPTS,7790,22-Sep-20,37845,762.09,MR L MOSTOWSKI,10035P
EFDC,05240,LEASEHOLDERS,CASH RECEIPTS,7790,22-Sep-20,37846,944.19,L M SHELTON POA,10036P
EFDC,05240,LEASEHOLDERS,CASH RECEIPTS,7790,22-Sep-20,37847,1319.99,MR E GREEN,10037P
EFDC,BAL01,EFDC BALANCE SHEET,SALARIES - UNIONS,Z605,18-Sep-20,37771,1092.61,UNISON,UNI001
EFDC,32140,OTHER SUPPORT SERVICES,COMMISSION,9320,18-Sep-20,37771,-27.32,UNISON,UNI001
EFDC,PH100,PRIVATE SECTOR HOUSING,GRANTS GENERAL,3720,18-Sep-20,37766,838.53,STANNAH LIFT SERVICES LTD,STA002
EFDC,LT140,LOCAL TAXATION,GRANTS GENERAL,3720,18-Sep-20,37734,5000.00,GBN PRIMO LTD,9851P
EFDC,LT140,LOCAL TAXATION,GRANTS GENERAL,3720,18-Sep-20,37729,5000.00,CAPITAL PHYSIO LTD,9637P
EFDC,LT140,LOCAL TAXATION,GRANTS GENERAL,3720,18-Sep-20,37755,5000.00,CSS MOTORS,9704P
EFDC,LT140,LOCAL TAXATION,GRANTS GENERAL,3720,18-Sep-20,37757,5000.00,INSIGHT BUILDING SERVICES,9633P
EFDC,LT140,LOCAL TAXATION,GRANTS GENERAL,3720,18-Sep-20,37726,5000.00,ELLIOT FOODS,9928P
EFDC,LT140,LOCAL TAXATION,GRANTS GENERAL,3720,18-Sep-20,37728,5000.00,GOODWIN MALATESTA LEGAL COSTS SERVICES LTD,9932P
EFDC,LT140,LOCAL TAXATION,GRANTS GENERAL,3720,18-Sep-20,37731,5000.00,MR G CHITTOCK,9933P
EFDC,LT140,LOCAL TAXATION,GRANTS GENERAL,3720,18-Sep-20,37743,5000.00,MR L T FROST,9923P
EFDC,LT140,LOCAL TAXATION,GRANTS GENERAL,3720,18-Sep-20,37758,5000.00,ASD MARKETS LTD,9926P
EFDC,LT140,LOCAL TAXATION,GRANTS GENERAL,3720,18-Sep-20,37722,5000.00,SHOWCASE AVI LTD,9776P
EFDC,LT140,LOCAL TAXATION,GRANTS GENERAL,3720,18-Sep-20,37745,5000.00,TURNER SITE SERVICES LTD,9777P
EFDC,LT140,LOCAL TAXATION,GRANTS GENERAL,3720,18-Sep-20,37759,5000.00,PROTECH SITE SERVICES LTD,9798P
EFDC,LT140,LOCAL TAXATION,GRANTS GENERAL,3720,18-Sep-20,37739,5000.00,ECO FURNITURE HIRE LTD,9802P
EFDC,LT140,LOCAL TAXATION,GRANTS GENERAL,3720,18-Sep-20,37737,5000.00,RONIMIX CONCRETE LTD,9782P
EFDC,LT140,LOCAL TAXATION,GRANTS GENERAL,3720,18-Sep-20,37749,5000.00,SMART BUYER WHOLESALE LTD,9783P
EFDC,LT140,LOCAL TAXATION,GRANTS GENERAL,3720,18-Sep-20,37727,5000.00,D B PHILLIPS,9927P
EFDC,LT140,LOCAL TAXATION,GRANTS GENERAL,3720,18-Sep-20,37723,5000.00,CRE8 COMMERCIAL CONSTRUCTION LTD,9809P
EFDC,LT140,LOCAL TAXATION,GRANTS GENERAL,3720,18-Sep-20,37750,5000.00,TRULY SCRUMPTIOUS DAY CARE NURSERY LTD,9810P
EFDC,LT140,LOCAL TAXATION,GRANTS GENERAL,3720,18-Sep-20,37730,5000.00,BOWER RETIREMENT LTD,9839P
EFDC,LT140,LOCAL TAXATION,GRANTS GENERAL,3720,18-Sep-20,37751,5000.00,GROSVENOR GROUP (PS) LTD,9840P
EFDC,LT140,LOCAL TAXATION,GRANTS GENERAL,3720,18-Sep-20,37735,5000.00,FIDGETY FEET LTD,9841P
EFDC,LT140,LOCAL TAXATION,GRANTS GENERAL,3720,18-Sep-20,37732,5000.00,B2B EX,9625P
EFDC,LT140,LOCAL TAXATION,GRANTS GENERAL,3720,18-Sep-20,37725,5000.00,SCAFFOLDING INC LTD,9774P
EFDC,LT140,LOCAL TAXATION,GRANTS GENERAL,3720,18-Sep-20,37733,5000.00,NITRONICS LTD,9775P
EFDC,LT140,LOCAL TAXATION,GRANTS GENERAL,3720,18-Sep-20,37753,5000.00,TOTAL TRADING LTD,9715P
EFDC,LT140,LOCAL TAXATION,GRANTS GENERAL,3720,18-Sep-20,37746,5000.00,SWAN GRAPHICS LTD,9719P
EFDC,LT140,LOCAL TAXATION,GRANTS GENERAL,3720,18-Sep-20,37760,5000.00,GROUP COMPONENTS LTD,9744P
EFDC,LT140,LOCAL TAXATION,GRANTS GENERAL,3720,18-Sep-20,37738,5000.00,H&J FOODS LTD,9753P
EFDC,LT140,LOCAL TAXATION,GRANTS GENERAL,3720,18-Sep-20,37744,5000.00,OKE CATERING EQUIPMENT & VENTILATION SYSTEMS,9757P
EFDC,LT140,LOCAL TAXATION,GRANTS GENERAL,3720,18-Sep-20,37742,5000.00,LINK365 LTD,9758P
EFDC,LT140,LOCAL TAXATION,GRANTS GENERAL,3720,18-Sep-20,37754,5000.00,PRETLOVES REMOVAL & STORAGE SERVICE LTD,9760P
EFDC,LT140,LOCAL TAXATION,GRANTS GENERAL,3720,18-Sep-20,37752,5000.00,SOLOMON MINES LTD,9938P
EFDC,LT140,LOCAL TAXATION,GRANTS GENERAL,3720,18-Sep-20,37741,5000.00,MR L WHITCOMBE,9941P
EFDC,BAL01,EFDC BALANCE SHEET,HOUSING RENT REFUNDS,Z613,18-Sep-20,37768,506.40,MR J BLOWER,10029P
EFDC,LT140,LOCAL TAXATION,GRANTS GENERAL,3720,18-Sep-20,37740,5000.00,K A BROOKS,9961P
EFDC,LT140,LOCAL TAXATION,GRANTS GENERAL,3720,18-Sep-20,37748,5000.00,NCP HALL,9962P
EFDC,LT140,LOCAL TAXATION,GRANTS GENERAL,3720,18-Sep-20,37724,5000.00,C.C. TURNER T/A CHRISTIAN KNITWEAR,9963P
EFDC,LT140,LOCAL TAXATION,GRANTS GENERAL,3720,18-Sep-20,37718,7500.00,CARTON PACKAGING 2020 LTD,10020P
EFDC,LT140,LOCAL TAXATION,GRANTS GENERAL,3720,18-Sep-20,37719,10000.00,CAPTURE INTERIORS,10021P
EFDC,LT140,LOCAL TAXATION,GRANTS GENERAL,3720,18-Sep-20,37720,7500.00,MR MARK GIBBS,10022P
EFDC,LT140,LOCAL TAXATION,GRANTS GENERAL,3720,18-Sep-20,37747,5000.00,MOHAMMED BAKHTIYAR,9647P
EFDC,LT140,LOCAL TAXATION,GRANTS GENERAL,3720,18-Sep-20,37756,5000.00,G.H. WARNER FOOTWEAR LTD,9648P
EFDC,LT140,LOCAL TAXATION,GRANTS GENERAL,3720,18-Sep-20,37736,5000.00,KEYLOGO LTD,9650P
EFDC,LT140,LOCAL TAXATION,GRANTS GENERAL,3720,18-Sep-20,37721,10000.00,ANDREW SENTINELLA,10023P
EFDC,33080,OTHER ACTIVITIES,FIXED NETWORK LINE COSTS,3520,16-Sep-20,178798,10028.12,BRITISH TELECOMMUNICATIONS PLC,BRI002
EFDC,33080,OTHER ACTIVITIES,FIXED NETWORK LINE COSTS,3520,16-Sep-20,178798,100.00,BRITISH TELECOMMUNICATIONS PLC,BRI002
EFDC,CH110,"MUSEUM, HERITAGE & CULTURE",BANKING AND CASH COLLECTION,3440,16-Sep-20,178841,54.44,CONTRACT SECURITY SERVICES LTD,CON033
EFDC,34110,HOUSING PROP SUPPORT SERVICES,BANKING AND CASH COLLECTION,3440,16-Sep-20,178841,54.44,CONTRACT SECURITY SERVICES LTD,CON033
EFDC,33020,OTHER ACTIVITIES,BANKING AND CASH COLLECTION,3440,16-Sep-20,178841,362.92,CONTRACT SECURITY SERVICES LTD,CON033
EFDC,33020,OTHER ACTIVITIES,BANKING AND CASH COLLECTION,3440,16-Sep-20,178841,725.83,CONTRACT SECURITY SERVICES LTD,CON033
EFDC,YB620,SUPERVISION/MANAGEMENT SPECIAL,BANKING AND CASH COLLECTION,3440,16-Sep-20,178841,72.58,CONTRACT SECURITY SERVICES LTD,CON033
EFDC,TO100,LAND & PROPERTY,BANKING AND CASH COLLECTION,3440,16-Sep-20,178841,72.58,CONTRACT SECURITY SERVICES LTD,CON033
EFDC,36500,HRA SUPPORT SERVICES,SUBSCRIPTIONS,3730,16-Sep-20,178874,2500.00,EXPERIAN LTD,EXP002
EFDC,WC100,WASTE MANAGEMENT,EQUIPMENT - NEW,3010,16-Sep-20,178432,700.00,FARM & COUNTRY SUPPLIES LTD,FAR003
EFDC,WC100,WASTE MANAGEMENT,EQUIPMENT - NEW,3010,16-Sep-20,178432,61.04,FARM & COUNTRY SUPPLIES LTD,FAR003
EFDC,WC100,WASTE MANAGEMENT,EQUIPMENT - NEW,3010,16-Sep-20,178432,620.00,FARM & COUNTRY SUPPLIES LTD,FAR003
EFDC,CAPGF,GENERAL FUND CAPITAL,WORKS,B040,16-Sep-20,177817,617.00,GENERATED POWER SERVICES LTD,GEN002
EFDC,36800,HRA SUPPORT SERVICES,AGENCY STAFF,0120,16-Sep-20,177830,792.00,HAYS SPECIALIST RECRUITMENT LTD,HAY011
EFDC,36800,HRA SUPPORT SERVICES,AGENCY STAFF,0120,16-Sep-20,177829,1039.50,HAYS SPECIALIST RECRUITMENT LTD,HAY011
EFDC,33060,OTHER ACTIVITIES,AGENCY STAFF,0120,16-Sep-20,177828,1563.30,HAYS SPECIALIST RECRUITMENT LTD,HAY011
EFDC,33080,OTHER ACTIVITIES,AGENCY STAFF,0120,16-Sep-20,177827,1246.04,HAYS SPECIALIST RECRUITMENT LTD,HAY011
EFDC,33060,OTHER ACTIVITIES,AGENCY STAFF,0120,16-Sep-20,177825,2360.00,HAYS SPECIALIST RECRUITMENT LTD,HAY011
EFDC,36800,HRA SUPPORT SERVICES,AGENCY STAFF,0120,16-Sep-20,177826,735.90,HAYS SPECIALIST RECRUITMENT LTD,HAY011
EFDC,36800,HRA SUPPORT SERVICES,AGENCY STAFF,0120,16-Sep-20,177824,519.60,HAYS SPECIALIST RECRUITMENT LTD,HAY011
EFDC,36800,HRA SUPPORT SERVICES,AGENCY STAFF,0120,16-Sep-20,177823,733.02,HAYS SPECIALIST RECRUITMENT LTD,HAY011
EFDC,32060,OTHER SUPPORT SERVICES,AGENCY STAFF,0120,16-Sep-20,178528,1628.00,LAW ABSOLUTE LIMITED,LAW009
EFDC,35005,CONTRACT & TECH SUPPORT SERVIC,SUBSCRIPTIONS,3730,16-Sep-20,178916,990.00,MALLARD CONSULTANCY LTD,MAL005
EFDC,27110,ACCOMMODATION,EQUIPMENT - MAINTENANCE,3030,16-Sep-20,178803,1537.46,QUADIENT UK LIMITED,NEO001
EFDC,36600,HRA SUPPORT SERVICES,PRINT OPERATIONS INTERNAL,5420,16-Sep-20,178923,1200.00,MOBILE STATIONERY PRINTING CENTRE LTD,MOB002
EFDC,34160,HOUSING PROP SUPPORT SERVICES,PUBLICITY,3360,16-Sep-20,177886,561.60,PHOENIX SOFTWARE LTD,PHO002
EFDC,51140,OTHER SUPPORT SERVICES,AGENCY STAFF,0120,16-Sep-20,178984,577.44,REED SPECIALIST RECRUITMENT LTD,REE002
EFDC,51140,OTHER SUPPORT SERVICES,AGENCY STAFF,0120,16-Sep-20,178985,577.44,REED SPECIALIST RECRUITMENT LTD,REE002
EFDC,51140,OTHER SUPPORT SERVICES,AGENCY STAFF,0120,16-Sep-20,178983,577.44,REED SPECIALIST RECRUITMENT LTD,REE002
EFDC,51140,OTHER SUPPORT SERVICES,AGENCY STAFF,0120,16-Sep-20,178982,577.44,REED SPECIALIST RECRUITMENT LTD,REE002
EFDC,51140,OTHER SUPPORT SERVICES,AGENCY STAFF,0120,16-Sep-20,178981,577.44,REED SPECIALIST RECRUITMENT LTD,REE002
EFDC,51140,OTHER SUPPORT SERVICES,AGENCY STAFF,0120,16-Sep-20,178986,577.44,REED SPECIALIST RECRUITMENT LTD,REE002
EFDC,SC100,WASTE MANAGEMENT,CLEANSING CONTRACTORS,4320,16-Sep-20,178191,450.00,REGIONAL WASTE RECYCLING (COMMERCIAL) LTD,REG002
EFDC,SC100,WASTE MANAGEMENT,CLEANSING CONTRACTORS,4320,16-Sep-20,178191,55.00,REGIONAL WASTE RECYCLING (COMMERCIAL) LTD,REG002
EFDC,SC100,WASTE MANAGEMENT,CLEANSING CONTRACTORS,4320,16-Sep-20,178191,540.00,REGIONAL WASTE RECYCLING (COMMERCIAL) LTD,REG002
EFDC,GT100,LOCAL PLAN IMPLEMENTATION,TRAINING EXPENSES,0310,16-Sep-20,179003,575.00,SOLACE GROUP LTD,SOL010
EFDC,YB200,SUPERVISION/MANAGEMENT SPECIAL,EQUIPMENT - NEW,3010,16-Sep-20,179010,4451.20,TUNSTALL RESPONSE LTD,TUN002
EFDC,78001,HRA SUPPORT SERVICES,MATERIALS,3080,16-Sep-20,179005,590.00,TRAVIS PERKINS TRADING COMPANY LTD,TRA001
EFDC,33080,OTHER ACTIVITIES,CONSULTANTS FEES,3490,16-Sep-20,179009,2520.00,TRICOSTAR SOFTWARE LTD,TRI003
EFDC,33080,OTHER ACTIVITIES,CONSULTANTS FEES,3490,16-Sep-20,179009,720.00,TRICOSTAR SOFTWARE LTD,TRI003
EFDC,33080,OTHER ACTIVITIES,CONSULTANTS FEES,3490,16-Sep-20,179009,720.00,TRICOSTAR SOFTWARE LTD,TRI003
EFDC,33080,OTHER ACTIVITIES,CONSULTANTS FEES,3490,16-Sep-20,179009,360.00,TRICOSTAR SOFTWARE LTD,TRI003
EFDC,32060,OTHER SUPPORT SERVICES,AGENCY STAFF,0120,16-Sep-20,179012,693.00,VENN GROUP LTD,VEN004
EFDC,SC100,WASTE MANAGEMENT,HIGHWAYS CONTRACTORS,4310,16-Sep-20,179014,8919.31,VEOLIA ES (UK) LTD,VER004
EFDC,RM200,RESPONSIVE & VOID REPAIRS,BUILDING MAINTENANCE,1010,16-Sep-20,178896,832.04,GRACELANDS COMPLETE MAINTENANCE SERVICES LTD,GRA007
EFDC,CAPHR,HRA CAPITAL,WORKS,A040,16-Sep-20,178899,25950.71,GRACELANDS COMPLETE MAINTENANCE SERVICES LTD,GRA007
EFDC,RM100,RESPONSIVE & VOID REPAIRS,BUILDING MAINTENANCE,1010,16-Sep-20,178900,2243.36,GRACELANDS COMPLETE MAINTENANCE SERVICES LTD,GRA007
EFDC,RM100,RESPONSIVE & VOID REPAIRS,BUILDING MAINTENANCE,1010,16-Sep-20,178900,0.00,GRACELANDS COMPLETE MAINTENANCE SERVICES LTD,GRA007
EFDC,FD100,LAND DRAINAGE/SEWERAGE,HIGHWAYS CONTRACTORS,4310,16-Sep-20,178911,1862.00,HUGH PEARL (LAND DRAINAGE) LTD,HUG001
EFDC,FD100,LAND DRAINAGE/SEWERAGE,HIGHWAYS CONTRACTORS,4310,16-Sep-20,178912,1861.89,HUGH PEARL (LAND DRAINAGE) LTD,HUG001
EFDC,33075,OTHER ACTIVITIES,AGENCY STAFF,0120,16-Sep-20,178935,812.50,MORGAN HUNT UK LTD,MOR001
EFDC,33075,OTHER ACTIVITIES,AGENCY STAFF,0120,16-Sep-20,178933,962.00,MORGAN HUNT UK LTD,MOR001
EFDC,33075,OTHER ACTIVITIES,AGENCY STAFF,0120,16-Sep-20,178932,962.00,MORGAN HUNT UK LTD,MOR001
EFDC,33075,OTHER ACTIVITIES,AGENCY STAFF,0120,16-Sep-20,178931,962.00,MORGAN HUNT UK LTD,MOR001
EFDC,33075,OTHER ACTIVITIES,AGENCY STAFF,0120,16-Sep-20,178930,962.00,MORGAN HUNT UK LTD,MOR001
EFDC,33075,OTHER ACTIVITIES,AGENCY STAFF,0120,16-Sep-20,178928,962.00,MORGAN HUNT UK LTD,MOR001
EFDC,33075,OTHER ACTIVITIES,AGENCY STAFF,0120,16-Sep-20,178927,962.00,MORGAN HUNT UK LTD,MOR001
EFDC,33075,OTHER ACTIVITIES,AGENCY STAFF,0120,16-Sep-20,178926,962.00,MORGAN HUNT UK LTD,MOR001
EFDC,33075,OTHER ACTIVITIES,AGENCY STAFF,0120,16-Sep-20,178929,962.00,MORGAN HUNT UK LTD,MOR001
EFDC,36500,HRA SUPPORT SERVICES,AGENCY STAFF,0120,16-Sep-20,178934,784.74,MORGAN HUNT UK LTD,MOR001
EFDC,EI131,LOCAL PLAN IMPLEMENTATION,PROFESSIONAL FEES,3420,16-Sep-20,179011,765.00,U VIEW DATA LIMITED,UVI001
EFDC,32121,OTHER SUPPORT SERVICES,RECRUITMENT EXPENSES,0320,16-Sep-20,179000,430.00,SOLACE IN BUSINESS LTD,SOL003
EFDC,32121,OTHER SUPPORT SERVICES,RECRUITMENT EXPENSES,0320,16-Sep-20,179000,1250.00,SOLACE IN BUSINESS LTD,SOL003
EFDC,33080,OTHER ACTIVITIES,EQUIPMENT - MAINTENANCE,3030,16-Sep-20,177782,1640.89,BOTTOMLINE TECHNOLOGIES LTD,BOT001
EFDC,33080,OTHER ACTIVITIES,EQUIPMENT - MAINTENANCE,3030,16-Sep-20,177782,1640.89,BOTTOMLINE TECHNOLOGIES LTD,BOT001
EFDC,PS100,CAR PARKING,OTHER MAINTENANCE,1050,16-Sep-20,177856,1699.50,METRIC GROUP LTD,MET005
EFDC,PS100,CAR PARKING,OTHER MAINTENANCE,1050,16-Sep-20,177855,1436.50,METRIC GROUP LTD,MET005
EFDC,RM400,PLANNED & CYCLICAL MAINTENANCE,BUILDING MAINTENANCE,1010,16-Sep-20,178595,1218.75,SMART MERCHANTS LTD,SMA002
EFDC,35500,CONTRACT & TECH SUPPORT SERVIC,AGENCY STAFF,0120,16-Sep-20,178908,566.10,HL SERVICES (LONDON) LTD,HLS001
EFDC,CAPHR,HRA CAPITAL,ARCHITECTS FEES,E160,16-Sep-20,178811,8760.95,ECD ARCHITECTS LTD,ECD001
EFDC,CAPHR,HRA CAPITAL,ARCHITECTS FEES,E160,16-Sep-20,178810,774.00,ECD ARCHITECTS LTD,ECD001
EFDC,32220,OTHER SUPPORT SERVICES,AGENCY STAFF,0120,16-Sep-20,178383,5914.56,CAPSTONE PROPERTY RECRUITMENT LTD,CAP001
EFDC,32220,OTHER SUPPORT SERVICES,AGENCY STAFF,0120,16-Sep-20,178833,4867.19,CAPSTONE PROPERTY RECRUITMENT LTD,CAP001
EFDC,CH110,"MUSEUM, HERITAGE & CULTURE",CLEANING,1630,16-Sep-20,178824,662.97,ATLAS CONTRACTORS LTD,ATL001
EFDC,CH110,"MUSEUM, HERITAGE & CULTURE",CLEANING,1630,16-Sep-20,178824,17.41,ATLAS CONTRACTORS LTD,ATL001
EFDC,CH110,"MUSEUM, HERITAGE & CULTURE",CLEANING,1630,16-Sep-20,178825,662.97,ATLAS CONTRACTORS LTD,ATL001
EFDC,CH110,"MUSEUM, HERITAGE & CULTURE",CLEANING,1630,16-Sep-20,178825,17.41,ATLAS CONTRACTORS LTD,ATL001
EFDC,23130,ACCOMMODATION,CLEANING,1630,16-Sep-20,178825,3.51,ATLAS CONTRACTORS LTD,ATL001
EFDC,23130,ACCOMMODATION,CLEANING,1630,16-Sep-20,178824,366.94,ATLAS CONTRACTORS LTD,ATL001
EFDC,23130,ACCOMMODATION,CLEANING,1630,16-Sep-20,178824,3.51,ATLAS CONTRACTORS LTD,ATL001
EFDC,27060,ACCOMMODATION,CLEANING,1630,16-Sep-20,178825,667.27,ATLAS CONTRACTORS LTD,ATL001
EFDC,23130,ACCOMMODATION,CLEANING,1630,16-Sep-20,178825,366.94,ATLAS CONTRACTORS LTD,ATL001
EFDC,27050,ACCOMMODATION,CLEANING,1630,16-Sep-20,178824,385.73,ATLAS CONTRACTORS LTD,ATL001
EFDC,23130,ACCOMMODATION,CLEANING,1630,16-Sep-20,178825,284.66,ATLAS CONTRACTORS LTD,ATL001
EFDC,23130,ACCOMMODATION,CLEANING,1630,16-Sep-20,178824,284.66,ATLAS CONTRACTORS LTD,ATL001
EFDC,27060,ACCOMMODATION,CLEANING,1630,16-Sep-20,178824,667.27,ATLAS CONTRACTORS LTD,ATL001
EFDC,23110,ACCOMMODATION,CLEANING,1630,16-Sep-20,178824,1679.01,ATLAS CONTRACTORS LTD,ATL001
EFDC,23110,ACCOMMODATION,CLEANING,1630,16-Sep-20,178825,1679.01,ATLAS CONTRACTORS LTD,ATL001
EFDC,23110,ACCOMMODATION,CLEANING,1630,16-Sep-20,178825,76.00,ATLAS CONTRACTORS LTD,ATL001
EFDC,27050,ACCOMMODATION,CLEANING,1630,16-Sep-20,178825,385.73,ATLAS CONTRACTORS LTD,ATL001
EFDC,27050,ACCOMMODATION,CLEANING,1630,16-Sep-20,178825,10031.35,ATLAS CONTRACTORS LTD,ATL001
EFDC,27060,ACCOMMODATION,CLEANING,1630,16-Sep-20,178824,33.69,ATLAS CONTRACTORS LTD,ATL001
EFDC,27060,ACCOMMODATION,CLEANING,1630,16-Sep-20,178825,33.69,ATLAS CONTRACTORS LTD,ATL001
EFDC,27050,ACCOMMODATION,CLEANING,1630,16-Sep-20,178824,10031.35,ATLAS CONTRACTORS LTD,ATL001
EFDC,23110,ACCOMMODATION,CLEANING,1630,16-Sep-20,178824,76.00,ATLAS CONTRACTORS LTD,ATL001
EFDC,23140,ACCOMMODATION,CLEANSING CONTRACTORS,4320,16-Sep-20,178825,580.33,ATLAS CONTRACTORS LTD,ATL001
EFDC,23140,ACCOMMODATION,CLEANSING CONTRACTORS,4320,16-Sep-20,178824,580.33,ATLAS CONTRACTORS LTD,ATL001
EFDC,33080,OTHER ACTIVITIES,EQUIPMENT - HIRED,3020,16-Sep-20,179016,1363.29,XEROX FINANCE LTD,XER001
EFDC,CAPGF,GENERAL FUND CAPITAL,CONSULTANCY FEES,B200,16-Sep-20,178961,2270.00,PLACES FOR PEOPLE LEISURE MANAGEMENT LTD,PLA005
EFDC,32115,OTHER SUPPORT SERVICES,CONSULTANTS FEES,3490,16-Sep-20,178844,595.00,THE CTG GROUP LIMITED,CTG001
EFDC,36500,HRA SUPPORT SERVICES,AGENCY STAFF,0120,16-Sep-20,178467,1640.00,G2 RECRUITMENT SOLUTIONS,G2R001
EFDC,36500,HRA SUPPORT SERVICES,AGENCY STAFF,0120,16-Sep-20,178890,1640.00,G2 RECRUITMENT SOLUTIONS,G2R001
EFDC,CAPHR,HRA CAPITAL,LEGAL FEES,A140,16-Sep-20,178830,700.00,BIRKETTS LLP,BIR001
EFDC,BAL01,EFDC BALANCE SHEET,SAINSBURYS CAR PARKS,Z627,16-Sep-20,178359,16101.10,CUSHMAN & WAKEFIELD,CUS005
EFDC,BAL01,EFDC BALANCE SHEET,SAINSBURYS CAR PARKS,Z627,16-Sep-20,178359,96911.50,CUSHMAN & WAKEFIELD,CUS005
EFDC,PP111,LOCAL PLAN IMPLEMENTATION,CONSULTANTS FEES,3490,16-Sep-20,178888,2500.00,FRAME PROJECTS LIMITED,FRA001
EFDC,32220,OTHER SUPPORT SERVICES,LEGAL EXPENSES,3680,16-Sep-20,178535,1150.00,MARTIN SHEPHERD SOLICITORS LLP,MAR028
EFDC,YA180,SUPERVISION/MANAGEMENT GENERAL,CONSULTANTS FEES,3490,16-Sep-20,178823,750.00,AIREY MILLER LIMITED,AIR027
EFDC,CAPGF,GENERAL FUND CAPITAL,WORKS,B040,16-Sep-20,178849,748.50,DDM FIRE SAFETY,DDM001
EFDC,57100,HRA SUPPORT SERVICES,AGENCY STAFF,0120,16-Sep-20,178491,3550.00,GREENACRE RECRUITMENT LTD,GRE029
EFDC,78001,HRA SUPPORT SERVICES,AGENCY STAFF,0120,16-Sep-20,178603,1001.97,STRATUS RECRUITMENT (CONTRACTORS) LTD,STR023
EFDC,78001,HRA SUPPORT SERVICES,AGENCY STAFF,0120,16-Sep-20,178604,889.20,STRATUS RECRUITMENT (CONTRACTORS) LTD,STR023
EFDC,37600,PLANNING SUPPORT SERVICES,AGENCY STAFF,0120,16-Sep-20,178953,1295.00,PARK AVENUE RECRUITMENT LTD,PAR088
EFDC,37600,PLANNING SUPPORT SERVICES,AGENCY STAFF,0120,16-Sep-20,178955,892.50,PARK AVENUE RECRUITMENT LTD,PAR088
EFDC,37600,PLANNING SUPPORT SERVICES,AGENCY STAFF,0120,16-Sep-20,178954,1330.00,PARK AVENUE RECRUITMENT LTD,PAR088
EFDC,33080,OTHER ACTIVITIES,FIXED NETWORK LINE COSTS,3520,16-Sep-20,179015,3852.66,WAVENET LIMITED,WAV001
EFDC,33080,OTHER ACTIVITIES,FIXED NETWORK LINE COSTS,3520,16-Sep-20,179015,1155.00,WAVENET LIMITED,WAV001
EFDC,33080,OTHER ACTIVITIES,FIXED NETWORK LINE COSTS,3520,16-Sep-20,179015,5.00,WAVENET LIMITED,WAV001
EFDC,33080,OTHER ACTIVITIES,FIXED NETWORK LINE COSTS,3520,16-Sep-20,179015,1755.00,WAVENET LIMITED,WAV001
EFDC,YB400,SUPERVISION/MANAGEMENT SPECIAL,GROUNDS MAINTENANCE,1040,16-Sep-20,177846,1239.40,KETTERING PLAYSAFE LIMITED,KET001
EFDC,YB400,SUPERVISION/MANAGEMENT SPECIAL,GROUNDS MAINTENANCE,1040,16-Sep-20,177545,550.00,KETTERING PLAYSAFE LIMITED,KET001
EFDC,CM103,OTHER ACTIVITIES,PROFESSIONAL FEES,3420,16-Sep-20,178834,1500.00,CARTER JONAS,CAR020
EFDC,CAPGF,GENERAL FUND CAPITAL,CAPITAL SOFTWARE,K340,16-Sep-20,177810,23000.00,EXACOM SYSTEMS LTD,EXA001
EFDC,32120,OTHER SUPPORT SERVICES,EMPLOYEES - OTHER PAYMENTS,0191,16-Sep-20,178832,1140.00,BOOTS UK LIMITED,BOO004
EFDC,TO100,LAND & PROPERTY,VEHICLE PARTS / REPAIRS,2210,16-Sep-20,178967,3300.00,PREMIER VEHICLE MANAGEMENT,PRE040
EFDC,TO100,LAND & PROPERTY,VEHICLE PARTS / REPAIRS,2210,16-Sep-20,178965,4164.00,PREMIER VEHICLE MANAGEMENT,PRE040
EFDC,TO100,LAND & PROPERTY,VEHICLE PARTS / REPAIRS,2210,16-Sep-20,178966,3400.00,PREMIER VEHICLE MANAGEMENT,PRE040
EFDC,TO100,LAND & PROPERTY,VEHICLE PARTS / REPAIRS,2210,16-Sep-20,178964,4224.00,PREMIER VEHICLE MANAGEMENT,PRE040
EFDC,TO100,LAND & PROPERTY,VEHICLE PARTS / REPAIRS,2210,16-Sep-20,178969,3300.00,PREMIER VEHICLE MANAGEMENT,PRE040
EFDC,TO100,LAND & PROPERTY,VEHICLE PARTS / REPAIRS,2210,16-Sep-20,178972,4374.00,PREMIER VEHICLE MANAGEMENT,PRE040
EFDC,TO100,LAND & PROPERTY,VEHICLE PARTS / REPAIRS,2210,16-Sep-20,178970,3723.00,PREMIER VEHICLE MANAGEMENT,PRE040
EFDC,TO100,LAND & PROPERTY,VEHICLE PARTS / REPAIRS,2210,16-Sep-20,178968,3300.00,PREMIER VEHICLE MANAGEMENT,PRE040
EFDC,TO100,LAND & PROPERTY,VEHICLE PARTS / REPAIRS,2210,16-Sep-20,178971,4135.00,PREMIER VEHICLE MANAGEMENT,PRE040
EFDC,CAPGF,GENERAL FUND CAPITAL,WORKS,B040,16-Sep-20,178963,1031.31,PORTAKABIN LIMITED,POR006
EFDC,PH100,PRIVATE SECTOR HOUSING,GRANTS GENERAL,3720,15-Sep-20,37659,2488.00,STANNAH LIFT SERVICES LTD,STA002
EFDC,LT140,LOCAL TAXATION,GRANTS GENERAL,3720,15-Sep-20,37635,5000.00,SMS PROFESSIONAL CAR VALETING LTD,9854P
EFDC,PH100,PRIVATE SECTOR HOUSING,GRANTS GENERAL,3720,15-Sep-20,37658,5200.00,J H CONTRACTORS (ESSEX) LIMITED,JHC001
EFDC,LT140,LOCAL TAXATION,GRANTS GENERAL,3720,15-Sep-20,37644,5000.00,MR TERRENCE C LEEDER,9726P
EFDC,LT140,LOCAL TAXATION,GRANTS GENERAL,3720,15-Sep-20,37640,5000.00,APEX HEALTH ASSOCIATES,9728P
EFDC,LT140,LOCAL TAXATION,GRANTS GENERAL,3720,15-Sep-20,37632,5000.00,AMI(HERTS) LIMITED,9700P
EFDC,LT140,LOCAL TAXATION,GRANTS GENERAL,3720,15-Sep-20,37653,5000.00,REGENCY BLINDS MANUFACTURING LTD,9934P
EFDC,YA100,SUPERVISION/MANAGEMENT GENERAL,COMPENSATION PAYMENTS,3880,15-Sep-20,37655,6400.00,MRS DY MOURSI,9918P
EFDC,LT140,LOCAL TAXATION,GRANTS GENERAL,3720,15-Sep-20,37639,5000.00,MR/MRS LANGHAM T/A COMPUTOY,9924P
EFDC,LT140,LOCAL TAXATION,GRANTS GENERAL,3720,15-Sep-20,37642,5000.00,WALLIS MRS T/A SUE'S FLOWERS,9799P
EFDC,LT140,LOCAL TAXATION,GRANTS GENERAL,3720,15-Sep-20,37647,5000.00,WILLIAM ATTWELL & ASSOCIATES LTD,9817P
EFDC,05240,LEASEHOLDERS,CASH RECEIPTS,7790,15-Sep-20,37618,642.66,MR A ANDREOU,10000P
EFDC,05240,LEASEHOLDERS,CASH RECEIPTS,7790,15-Sep-20,37624,689.71,MS J KNIGHT,10004P
EFDC,05240,LEASEHOLDERS,CASH RECEIPTS,7790,15-Sep-20,37629,1399.89,MRS C & MR A SLATER,10009P
EFDC,BAL01,EFDC BALANCE SHEET,HOUSING RENT REFUNDS,Z613,15-Sep-20,37660,1013.03,MR S GIBSON,10013P
EFDC,BAL01,EFDC BALANCE SHEET,HOUSING RENT REFUNDS,Z613,15-Sep-20,37662,530.65,MRS P TAYLOR,10015P
EFDC,BAL01,EFDC BALANCE SHEET,HOUSING RENT REFUNDS,Z613,15-Sep-20,37664,1411.96,MS C DONOHUE,10017P
EFDC,LT140,LOCAL TAXATION,GRANTS GENERAL,3720,15-Sep-20,37646,5000.00,RODING GARAGE LTD,9772P
EFDC,LT140,LOCAL TAXATION,GRANTS GENERAL,3720,15-Sep-20,37633,5000.00,SARAH HURLEY LTD,9773P
EFDC,LT140,LOCAL TAXATION,GRANTS GENERAL,3720,15-Sep-20,37643,5000.00,SYLVIA WEIDMAN,9714P
EFDC,LT140,LOCAL TAXATION,GRANTS GENERAL,3720,15-Sep-20,37636,5000.00,SV SPORTS THERAPY,9749P
EFDC,LT140,LOCAL TAXATION,GRANTS GENERAL,3720,15-Sep-20,37638,5000.00,SV SPORTS THERAPY,9749P
EFDC,LT140,LOCAL TAXATION,GRANTS GENERAL,3720,15-Sep-20,37652,5000.00,ASHLYNS ORGANICS LTD,9761P
EFDC,LT140,LOCAL TAXATION,GRANTS GENERAL,3720,15-Sep-20,37650,5000.00,LITTLE TREASURES (LBC),9768P
EFDC,LT140,LOCAL TAXATION,GRANTS GENERAL,3720,15-Sep-20,37651,5000.00,UNITED DRAINS LTD,9939P
EFDC,LT140,LOCAL TAXATION,GRANTS GENERAL,3720,15-Sep-20,37645,5000.00,PINUP GRAPHIC DESIGN LTD,9964P
EFDC,LT140,LOCAL TAXATION,GRANTS GENERAL,3720,15-Sep-20,37626,7500.00,MRS S E HUTCHINSON,10006P
EFDC,LT140,LOCAL TAXATION,GRANTS GENERAL,3720,15-Sep-20,37628,7500.00,A J LINKLATER,10008P
EFDC,LT140,LOCAL TAXATION,GRANTS GENERAL,3720,15-Sep-20,37641,5000.00,STEVAN IGNJATOVIC,9662P
EFDC,LT140,LOCAL TAXATION,GRANTS GENERAL,3720,15-Sep-20,37649,5000.00,UPHOLSTERY SKILLS CENTRE LTD,9705P
EFDC,LT140,LOCAL TAXATION,GRANTS GENERAL,3720,15-Sep-20,37630,5000.00,M M FRAME LIMITED,9707P
EFDC,LT140,LOCAL TAXATION,GRANTS GENERAL,3720,15-Sep-20,37654,5000.00,ATKINS ELECTRICAL LTD,9634P
EFDC,LT140,LOCAL TAXATION,GRANTS GENERAL,3720,15-Sep-20,37648,5000.00,FITNESS THERAPY LTD,9645P
EFDC,LT140,LOCAL TAXATION,GRANTS GENERAL,3720,15-Sep-20,37634,5000.00,HARRIS FABRICATIONS LTD,9649P
EFDC,PH100,PRIVATE SECTOR HOUSING,GRANTS GENERAL,3720,11-Sep-20,37541,5325.00,ACCESSIBLE SOLUTIONS LIMITED,ACC002
EFDC,LT140,LOCAL TAXATION,GRANTS GENERAL,3720,11-Sep-20,37526,5000.00,STRONGERHEALTH.ME CIC,9855P
EFDC,LT140,LOCAL TAXATION,GRANTS GENERAL,3720,11-Sep-20,37513,5000.00,TAYLOR-BELLE SHOES LTD,9856P
EFDC,LT140,LOCAL TAXATION,GRANTS GENERAL,3720,11-Sep-20,37532,5000.00,NEO EVENTS,9857P
EFDC,LT140,LOCAL TAXATION,GRANTS GENERAL,3720,11-Sep-20,37506,5000.00,BLUEBELL FOREST SCHOOL LTD,9636P
EFDC,LT140,LOCAL TAXATION,GRANTS GENERAL,3720,11-Sep-20,37535,5000.00,ALTAIR AVIATION LTD,9702P
EFDC,LT140,LOCAL TAXATION,GRANTS GENERAL,3720,11-Sep-20,37521,5000.00,COX ELECTRICAL LIMITED,9703P
EFDC,LT140,LOCAL TAXATION,GRANTS GENERAL,3720,11-Sep-20,37510,5000.00,PURPLE LION DAY NURSERIES,9627P
EFDC,LT140,LOCAL TAXATION,GRANTS GENERAL,3720,11-Sep-20,37533,5000.00,P & R MINIBUS & COACH TRAVEL LTD,9628P
EFDC,LT140,LOCAL TAXATION,GRANTS GENERAL,3720,11-Sep-20,37474,5000.00,THEYDON BOIS GOLF CLUB LTD,9629P
EFDC,LT140,LOCAL TAXATION,GRANTS GENERAL,3720,11-Sep-20,37514,5000.00,THOMPSON PLANNING LTD,9630P
EFDC,LT140,LOCAL TAXATION,GRANTS GENERAL,3720,11-Sep-20,37477,5000.00,MISS J PILLAR,9631P
EFDC,LT140,LOCAL TAXATION,GRANTS GENERAL,3720,11-Sep-20,37479,5000.00,VALLEY HILL CHILDCARE LTD,9632P
EFDC,LT140,LOCAL TAXATION,GRANTS GENERAL,3720,11-Sep-20,37494,5000.00,M V MOTOR SUPPLIES,9655P
EFDC,LT140,LOCAL TAXATION,GRANTS GENERAL,3720,11-Sep-20,37527,5000.00,MADCAMS LTD,9656P
EFDC,LT140,LOCAL TAXATION,GRANTS GENERAL,3720,11-Sep-20,37504,5000.00,ALEXANDER MORGAN,9657P
EFDC,LT140,LOCAL TAXATION,GRANTS GENERAL,3720,11-Sep-20,37480,5000.00,K GATES,9930P
EFDC,LT140,LOCAL TAXATION,GRANTS GENERAL,3720,11-Sep-20,37485,5000.00,R D & L BAKER,9931P
EFDC,LT140,LOCAL TAXATION,GRANTS GENERAL,3720,11-Sep-20,37523,5000.00,WHITE STONE SCHOOL OF TRANSPORT LTD,9904P
EFDC,LT140,LOCAL TAXATION,GRANTS GENERAL,3720,11-Sep-20,37486,5000.00,MR RICHARD JOHN CHAMBERS,9915P
EFDC,LT140,LOCAL TAXATION,GRANTS GENERAL,3720,11-Sep-20,37489,5000.00,DANIEL TENNANT,9922P
EFDC,LT140,LOCAL TAXATION,GRANTS GENERAL,3720,11-Sep-20,37502,5000.00,MR D A BUSHNELL & MRS T S BUSHNELL,9925P
EFDC,LT140,LOCAL TAXATION,GRANTS GENERAL,3720,11-Sep-20,37471,5000.00,BLOSSOMS NURSERY LTD,9800P
EFDC,LT140,LOCAL TAXATION,GRANTS GENERAL,3720,11-Sep-20,37539,5000.00,MISS R GREEN,9801P
EFDC,LT140,LOCAL TAXATION,GRANTS GENERAL,3720,11-Sep-20,37470,5000.00,ESSEX BALLOONS AND EVENTS LTD,9778P
EFDC,LT140,LOCAL TAXATION,GRANTS GENERAL,3720,11-Sep-20,37478,5000.00,SARAH KAY HAIR AND BEAUTY,9779P
EFDC,LT140,LOCAL TAXATION,GRANTS GENERAL,3720,11-Sep-20,37534,5000.00,LYNCH INSULATION LTD,9780P
EFDC,LT140,LOCAL TAXATION,GRANTS GENERAL,3720,11-Sep-20,37469,5000.00,JESSICA K L BAILEY,9784P
EFDC,LT140,LOCAL TAXATION,GRANTS GENERAL,3720,11-Sep-20,37512,5000.00,MR J L KARARIA,9785P
EFDC,LT140,LOCAL TAXATION,GRANTS GENERAL,3720,11-Sep-20,37492,5000.00,FOREST GRAPHIC SOLUTIONS LTD,9807P
EFDC,LT140,LOCAL TAXATION,GRANTS GENERAL,3720,11-Sep-20,37537,5000.00,MISS R Z FOLEY,9808P
EFDC,LT140,LOCAL TAXATION,GRANTS GENERAL,3720,11-Sep-20,37511,5000.00,MRS HAYLEY CLEMENTS,9820P
EFDC,LT140,LOCAL TAXATION,GRANTS GENERAL,3720,11-Sep-20,37490,5000.00,A&M SPORTS MASSAGE,9834P
EFDC,LT140,LOCAL TAXATION,GRANTS GENERAL,3720,11-Sep-20,37522,5000.00,B-MAT SCAFFOLDING LTD,9835P
EFDC,LT140,LOCAL TAXATION,GRANTS GENERAL,3720,11-Sep-20,37520,5000.00,W1 COMMUNICATIONS LTD,9836P
EFDC,LT140,LOCAL TAXATION,GRANTS GENERAL,3720,11-Sep-20,37488,5000.00,CLEANGO-UK LTD,9837P
EFDC,LT140,LOCAL TAXATION,GRANTS GENERAL,3720,11-Sep-20,37482,5000.00,K SHETH & K VINCENT T/A STATION ROAD DENTAL P,9620P
EFDC,LT140,LOCAL TAXATION,GRANTS GENERAL,3720,11-Sep-20,37508,5000.00,EVENT PRODUCTION STUDIOS LTD,9621P
EFDC,LT140,LOCAL TAXATION,GRANTS GENERAL,3720,11-Sep-20,37473,5000.00,JOHN MARRIOTT,9622P
EFDC,LT140,LOCAL TAXATION,GRANTS GENERAL,3720,11-Sep-20,37475,5000.00,THREE BUTTERFLIES NURSERY,9623P
EFDC,LT140,LOCAL TAXATION,GRANTS GENERAL,3720,11-Sep-20,37496,5000.00,DARREN KANTOR,9624P
EFDC,LT140,LOCAL TAXATION,GRANTS GENERAL,3720,11-Sep-20,37505,5000.00,FORKLIFT TRAINING SOLUTIONS LTD,9769P
EFDC,LT140,LOCAL TAXATION,GRANTS GENERAL,3720,11-Sep-20,37476,5000.00,J TICHONOVAS,9770P
EFDC,LT140,LOCAL TAXATION,GRANTS GENERAL,3720,11-Sep-20,37517,5000.00,MEGA INFLATABLES LTD,9720P
EFDC,LT140,LOCAL TAXATION,GRANTS GENERAL,3720,11-Sep-20,37498,5000.00,PAIGER LTD,9746P
EFDC,LT140,LOCAL TAXATION,GRANTS GENERAL,3720,11-Sep-20,37497,5000.00,PARAGON OFFICE SUPPLIES LTD,9747P
EFDC,LT140,LOCAL TAXATION,GRANTS GENERAL,3720,11-Sep-20,37531,5000.00,PNL FINISHERS LTD,9748P
EFDC,LT140,LOCAL TAXATION,GRANTS GENERAL,3720,11-Sep-20,37536,5000.00,P MUNSON AUTOMOTIVES LTD,9750P
EFDC,LT140,LOCAL TAXATION,GRANTS GENERAL,3720,11-Sep-20,37484,5000.00,L A RUSSELL,9755P
EFDC,LT140,LOCAL TAXATION,GRANTS GENERAL,3720,11-Sep-20,37487,5000.00,EPPING HAIR LOSS CLINIC LTD,9767P
EFDC,LT140,LOCAL TAXATION,GRANTS GENERAL,3720,11-Sep-20,37524,5000.00,WHITE STONE COMMERCIAL VEHICLES SERVICES LTD,9936P
EFDC,LT140,LOCAL TAXATION,GRANTS GENERAL,3720,11-Sep-20,37530,5000.00,MUNIB ISLAM,9937P
EFDC,LT140,LOCAL TAXATION,GRANTS GENERAL,3720,11-Sep-20,37495,5000.00,INSPIRING SHUTTERS & BLINDS,9956P
EFDC,LT140,LOCAL TAXATION,GRANTS GENERAL,3720,11-Sep-20,37503,5000.00,JONATHAN HOWARD & DELLA HOWARD,9957P
EFDC,LT140,LOCAL TAXATION,GRANTS GENERAL,3720,11-Sep-20,37516,5000.00,M E SMITH,9958P
EFDC,LT140,LOCAL TAXATION,GRANTS GENERAL,3720,11-Sep-20,37472,5000.00,MR J KESSLER,9959P
EFDC,LT140,LOCAL TAXATION,GRANTS GENERAL,3720,11-Sep-20,37509,5000.00,MR G M BUTLER,9960P
EFDC,LT140,LOCAL TAXATION,GRANTS GENERAL,3720,11-Sep-20,37529,5000.00,CHANDELIER CLEANING & RESTORATION,9659P
EFDC,LT140,LOCAL TAXATION,GRANTS GENERAL,3720,11-Sep-20,37493,5000.00,COSMIC AUDIO LTD,9660P
EFDC,LT140,LOCAL TAXATION,GRANTS GENERAL,3720,11-Sep-20,37519,5000.00,DDC LTD,9661P
EFDC,LT140,LOCAL TAXATION,GRANTS GENERAL,3720,11-Sep-20,37501,5000.00,DLT ENTERTAINMENT (LONDON) LTD,9663P
EFDC,LT140,LOCAL TAXATION,GRANTS GENERAL,3720,11-Sep-20,37481,5000.00,KELLYS TRAVEL LTD,9697P
EFDC,LT140,LOCAL TAXATION,GRANTS GENERAL,3720,11-Sep-20,37538,5000.00,ABBEY MOTORIST CENTRE,9698P
EFDC,LT140,LOCAL TAXATION,GRANTS GENERAL,3720,11-Sep-20,37499,5000.00,ALLOT LIMITED,9699P
EFDC,LT140,LOCAL TAXATION,GRANTS GENERAL,3720,11-Sep-20,37528,5000.00,MK1 SCAFFOLDING LIMITED,9706P
EFDC,LT140,LOCAL TAXATION,GRANTS GENERAL,3720,11-Sep-20,37540,5000.00,NEWTEC FABRICATION LIMITED,9708P
EFDC,LT140,LOCAL TAXATION,GRANTS GENERAL,3720,11-Sep-20,37483,5000.00,MR K RAI,9709P
EFDC,LT140,LOCAL TAXATION,GRANTS GENERAL,3720,11-Sep-20,37507,5000.00,THE PRINT UNIT LIMITED,9710P
EFDC,LT140,LOCAL TAXATION,GRANTS GENERAL,3720,11-Sep-20,37525,5000.00,THE CANINE FIRST AID COMPANY,9712P
EFDC,LT140,LOCAL TAXATION,GRANTS GENERAL,3720,11-Sep-20,37515,5000.00,MISS J G WILSON,9652P
EFDC,LT140,LOCAL TAXATION,GRANTS GENERAL,3720,11-Sep-20,37500,5000.00,MR RG&DR STEVENS T/A BROOKSIDE,9729P
EFDC,LT140,LOCAL TAXATION,GRANTS GENERAL,3720,11-Sep-20,37518,5000.00,LOBSTERNET LTD,9730P
EFDC,LT140,LOCAL TAXATION,GRANTS GENERAL,3720,11-Sep-20,37491,5000.00,MB PSYCHOTHERAPY,9731P
EFDC,YA100,SUPERVISION/MANAGEMENT GENERAL,SUBSCRIPTIONS,3730,09-Sep-20,178373,2500.00,ASSOC. OF RETAINED COUNCIL HOUSING LTD,ASS020
EFDC,RM100,RESPONSIVE & VOID REPAIRS,BUILDING MAINTENANCE,1010,09-Sep-20,178391,2495.65,OPENVIEW SECURITY SOLUTIONS LTD,CAR003
EFDC,RM100,RESPONSIVE & VOID REPAIRS,BUILDING MAINTENANCE,1010,09-Sep-20,178395,2495.65,OPENVIEW SECURITY SOLUTIONS LTD,CAR003
EFDC,RM100,RESPONSIVE & VOID REPAIRS,BUILDING MAINTENANCE,1010,09-Sep-20,178387,575.92,OPENVIEW SECURITY SOLUTIONS LTD,CAR003
EFDC,RM100,RESPONSIVE & VOID REPAIRS,BUILDING MAINTENANCE,1010,09-Sep-20,178392,2495.65,OPENVIEW SECURITY SOLUTIONS LTD,CAR003
EFDC,RM100,RESPONSIVE & VOID REPAIRS,BUILDING MAINTENANCE,1010,09-Sep-20,178394,2495.65,OPENVIEW SECURITY SOLUTIONS LTD,CAR003
EFDC,RM100,RESPONSIVE & VOID REPAIRS,BUILDING MAINTENANCE,1010,09-Sep-20,178393,2495.65,OPENVIEW SECURITY SOLUTIONS LTD,CAR003
EFDC,CAPGF,GENERAL FUND CAPITAL,WORKS,B040,09-Sep-20,178396,680.00,CARE VENDING SERVICES LTD,CAR017
EFDC,CAPGF,GENERAL FUND CAPITAL,WORKS,B040,09-Sep-20,178396,160.00,CARE VENDING SERVICES LTD,CAR017
EFDC,CAPGF,GENERAL FUND CAPITAL,WORKS,B040,09-Sep-20,178396,480.00,CARE VENDING SERVICES LTD,CAR017
EFDC,32180,OTHER SUPPORT SERVICES,PROTECTIVE CLOTHING,3210,09-Sep-20,177787,39.99,CHELMSFORD SAFETY SUPPLIES LTD,CHE020
EFDC,27050,ACCOMMODATION,CLEANING MATERIALS,1610,09-Sep-20,177787,170.00,CHELMSFORD SAFETY SUPPLIES LTD,CHE020
EFDC,27050,ACCOMMODATION,CLEANING MATERIALS,1610,09-Sep-20,177787,170.00,CHELMSFORD SAFETY SUPPLIES LTD,CHE020
EFDC,27050,ACCOMMODATION,CLEANING MATERIALS,1610,09-Sep-20,177787,150.00,CHELMSFORD SAFETY SUPPLIES LTD,CHE020
EFDC,27050,ACCOMMODATION,CLEANING MATERIALS,1610,09-Sep-20,177787,358.68,CHELMSFORD SAFETY SUPPLIES LTD,CHE020
EFDC,TO100,LAND & PROPERTY,BANKING AND CASH COLLECTION,3440,09-Sep-20,178404,72.58,CONTRACT SECURITY SERVICES LTD,CON033
EFDC,34110,HOUSING PROP SUPPORT SERVICES,BANKING AND CASH COLLECTION,3440,09-Sep-20,178404,54.44,CONTRACT SECURITY SERVICES LTD,CON033
EFDC,CH110,"MUSEUM, HERITAGE & CULTURE",BANKING AND CASH COLLECTION,3440,09-Sep-20,178404,54.44,CONTRACT SECURITY SERVICES LTD,CON033
EFDC,33020,OTHER ACTIVITIES,BANKING AND CASH COLLECTION,3440,09-Sep-20,178404,362.92,CONTRACT SECURITY SERVICES LTD,CON033
EFDC,33020,OTHER ACTIVITIES,BANKING AND CASH COLLECTION,3440,09-Sep-20,178404,725.83,CONTRACT SECURITY SERVICES LTD,CON033
EFDC,YB620,SUPERVISION/MANAGEMENT SPECIAL,BANKING AND CASH COLLECTION,3440,09-Sep-20,178404,72.58,CONTRACT SECURITY SERVICES LTD,CON033
EFDC,HL100,HOMELESSNESS,PROFESSIONAL FEES,3420,09-Sep-20,177798,1167.54,L&Q LIVING,EAS014
EFDC,35500,CONTRACT & TECH SUPPORT SERVIC,VEHICLE HIRE,2620,09-Sep-20,177805,354.81,ERNEST DOE & SONS LTD,ERN001
EFDC,35400,CONTRACT & TECH SUPPORT SERVIC,VEHICLE HIRE,2620,09-Sep-20,177805,354.81,ERNEST DOE & SONS LTD,ERN001
EFDC,RM100,RESPONSIVE & VOID REPAIRS,BUILDING MAINTENANCE,1010,09-Sep-20,178431,1389.64,EXTERIOR PLAS LTD,EXT001
EFDC,CAPHR,HRA CAPITAL,CAPITAL HSEBLD COMPENSAT PYMT,E048,09-Sep-20,178319,3400.00,FLOWLINE (BUILDERS) LTD,FLO003
EFDC,33060,OTHER ACTIVITIES,AGENCY STAFF,0120,09-Sep-20,177531,2360.00,HAYS SPECIALIST RECRUITMENT LTD,HAY011
EFDC,33060,OTHER ACTIVITIES,AGENCY STAFF,0120,09-Sep-20,177532,3870.00,HAYS SPECIALIST RECRUITMENT LTD,HAY011
EFDC,33060,OTHER ACTIVITIES,AGENCY STAFF,0120,09-Sep-20,177207,1563.30,HAYS SPECIALIST RECRUITMENT LTD,HAY011
EFDC,33080,OTHER ACTIVITIES,AGENCY STAFF,0120,09-Sep-20,177530,1246.04,HAYS SPECIALIST RECRUITMENT LTD,HAY011
EFDC,32060,OTHER SUPPORT SERVICES,AGENCY STAFF,0120,09-Sep-20,178172,1628.00,LAW ABSOLUTE LIMITED,LAW009
EFDC,43310,CONTRACT & TECH SUPPORT SERVIC,AGENCY STAFF,0120,09-Sep-20,178364,613.50,ADECCO UK LTD,ADE002
EFDC,37600,PLANNING SUPPORT SERVICES,AGENCY STAFF,0120,09-Sep-20,178365,865.13,ADECCO UK LTD,ADE002
EFDC,37500,PLANNING SUPPORT SERVICES,AGENCY STAFF,0120,09-Sep-20,178361,587.30,ADECCO UK LTD,ADE002
EFDC,37500,PLANNING SUPPORT SERVICES,AGENCY STAFF,0120,09-Sep-20,178362,587.30,ADECCO UK LTD,ADE002
EFDC,37500,PLANNING SUPPORT SERVICES,AGENCY STAFF,0120,09-Sep-20,178363,587.30,ADECCO UK LTD,ADE002
EFDC,37500,PLANNING SUPPORT SERVICES,AGENCY STAFF,0120,09-Sep-20,178366,587.30,ADECCO UK LTD,ADE002
EFDC,37500,PLANNING SUPPORT SERVICES,AGENCY STAFF,0120,09-Sep-20,178367,587.30,ADECCO UK LTD,ADE002
EFDC,26200,OTHER SUPPORT SERVICES,BUILDING MAINTENANCE,1010,09-Sep-20,177565,610.00,QUADIENT UK LIMITED,NEO001
EFDC,32200,OTHER SUPPORT SERVICES,EQUIPMENT - MAINTENANCE,3030,09-Sep-20,178331,1229.33,QUADIENT UK LIMITED,NEO001
EFDC,33080,OTHER ACTIVITIES,MOBILE PHONE LINE COSTS,3580,09-Sep-20,178309,6828.69,O2 (UK) LTD,OTW002
EFDC,32180,OTHER SUPPORT SERVICES,EQUIPMENT - NEW,3010,09-Sep-20,178558,870.00,O2 (UK) LTD,OTW002
EFDC,33080,OTHER ACTIVITIES,EQUIPMENT - NEW,3010,09-Sep-20,178557,2440.00,O2 (UK) LTD,OTW002
EFDC,36900,HRA SUPPORT SERVICES,PRINTING - EXTERNAL,3390,09-Sep-20,177562,1440.69,MOBILE STATIONERY PRINTING CENTRE LTD,MOB002
EFDC,26200,OTHER SUPPORT SERVICES,FIXED PLANT MAINTENANCE,1020,09-Sep-20,178568,806.00,PERT AIR CONDITIONING LTD,PER001
EFDC,CAPHR,HRA CAPITAL,WORKS,A040,09-Sep-20,177443,299.24,PYRODEC LTD,PYR001
EFDC,CAPHR,HRA CAPITAL,WORKS,A040,09-Sep-20,177442,299.24,PYRODEC LTD,PYR001
EFDC,CAPHR,HRA CAPITAL,WORKS,A040,09-Sep-20,177443,420.00,PYRODEC LTD,PYR001
EFDC,CAPHR,HRA CAPITAL,WORKS,A040,09-Sep-20,177442,420.00,PYRODEC LTD,PYR001
EFDC,CAPHR,HRA CAPITAL,WORKS,A040,09-Sep-20,177444,299.24,PYRODEC LTD,PYR001
EFDC,CAPHR,HRA CAPITAL,WORKS,A040,09-Sep-20,177444,420.00,PYRODEC LTD,PYR001
EFDC,CAPHR,HRA CAPITAL,WORKS,A040,09-Sep-20,177441,125.00,PYRODEC LTD,PYR001
EFDC,CAPHR,HRA CAPITAL,WORKS,A040,09-Sep-20,177440,420.00,PYRODEC LTD,PYR001
EFDC,CAPHR,HRA CAPITAL,WORKS,A040,09-Sep-20,177439,299.24,PYRODEC LTD,PYR001
EFDC,CAPHR,HRA CAPITAL,WORKS,A040,09-Sep-20,177441,299.24,PYRODEC LTD,PYR001
EFDC,CAPHR,HRA CAPITAL,WORKS,A040,09-Sep-20,177441,55.00,PYRODEC LTD,PYR001
EFDC,CAPHR,HRA CAPITAL,WORKS,A040,09-Sep-20,177439,420.00,PYRODEC LTD,PYR001
EFDC,CAPHR,HRA CAPITAL,WORKS,A040,09-Sep-20,177441,420.00,PYRODEC LTD,PYR001
EFDC,CAPHR,HRA CAPITAL,WORKS,A040,09-Sep-20,177440,299.24,PYRODEC LTD,PYR001
EFDC,51140,OTHER SUPPORT SERVICES,AGENCY STAFF,0120,09-Sep-20,178583,577.44,REED SPECIALIST RECRUITMENT LTD,REE002
EFDC,51140,OTHER SUPPORT SERVICES,AGENCY STAFF,0120,09-Sep-20,178582,605.52,REED SPECIALIST RECRUITMENT LTD,REE002
EFDC,51140,OTHER SUPPORT SERVICES,AGENCY STAFF,0120,09-Sep-20,178584,605.52,REED SPECIALIST RECRUITMENT LTD,REE002
EFDC,51140,OTHER SUPPORT SERVICES,AGENCY STAFF,0120,09-Sep-20,178581,605.52,REED SPECIALIST RECRUITMENT LTD,REE002
EFDC,32115,OTHER SUPPORT SERVICES,TRAINING EXPENSES,0310,09-Sep-20,177914,1050.00,SOLACE GROUP LTD,SOL010
EFDC,32115,OTHER SUPPORT SERVICES,TRAINING EXPENSES,0310,09-Sep-20,177914,72.00,SOLACE GROUP LTD,SOL010
EFDC,GT100,LOCAL PLAN IMPLEMENTATION,TRAINING EXPENSES,0310,09-Sep-20,177602,575.00,SOLACE GROUP LTD,SOL010
EFDC,YB500,SUPERVISION/MANAGEMENT SPECIAL,WINDOW CLEANING,1620,09-Sep-20,177603,274.00,STREAK-FREE WINDOW CLEANERS,STR012
EFDC,YB500,SUPERVISION/MANAGEMENT SPECIAL,WINDOW CLEANING,1620,09-Sep-20,177603,274.00,STREAK-FREE WINDOW CLEANERS,STR012
EFDC,CAPHR,HRA CAPITAL,WORKS,A040,09-Sep-20,178612,21700.32,VSN ENTERPRISES LTD,VSN001
EFDC,CAPHR,HRA CAPITAL,WORKS,A040,09-Sep-20,178612,14200.00,VSN ENTERPRISES LTD,VSN001
EFDC,RM200,RESPONSIVE & VOID REPAIRS,BUILDING MAINTENANCE,1010,09-Sep-20,178347,1518.06,GRACELANDS COMPLETE MAINTENANCE SERVICES LTD,GRA007
EFDC,RM300,PLANNED & CYCLICAL MAINTENANCE,BUILDING MAINTENANCE,1010,09-Sep-20,178480,36346.82,GRACELANDS COMPLETE MAINTENANCE SERVICES LTD,GRA007
EFDC,RM200,RESPONSIVE & VOID REPAIRS,BUILDING MAINTENANCE,1010,09-Sep-20,178476,930.00,GRACELANDS COMPLETE MAINTENANCE SERVICES LTD,GRA007
EFDC,RM300,PLANNED & CYCLICAL MAINTENANCE,BUILDING MAINTENANCE,1010,09-Sep-20,178481,35960.83,GRACELANDS COMPLETE MAINTENANCE SERVICES LTD,GRA007
EFDC,RM200,RESPONSIVE & VOID REPAIRS,BUILDING MAINTENANCE,1010,09-Sep-20,178486,4142.74,GRACELANDS COMPLETE MAINTENANCE SERVICES LTD,GRA007
EFDC,RM200,RESPONSIVE & VOID REPAIRS,BUILDING MAINTENANCE,1010,09-Sep-20,178490,4236.35,GRACELANDS COMPLETE MAINTENANCE SERVICES LTD,GRA007
EFDC,RM100,RESPONSIVE & VOID REPAIRS,BUILDING MAINTENANCE,1010,09-Sep-20,178487,1200.00,GRACELANDS COMPLETE MAINTENANCE SERVICES LTD,GRA007
EFDC,RM100,RESPONSIVE & VOID REPAIRS,BUILDING MAINTENANCE,1010,09-Sep-20,178483,800.00,GRACELANDS COMPLETE MAINTENANCE SERVICES LTD,GRA007
EFDC,CAPHR,HRA CAPITAL,VOIDS WORKS,A045,09-Sep-20,178346,10606.81,GRACELANDS COMPLETE MAINTENANCE SERVICES LTD,GRA007
EFDC,CAPHR,HRA CAPITAL,WORKS,A040,09-Sep-20,178478,52697.91,GRACELANDS COMPLETE MAINTENANCE SERVICES LTD,GRA007
EFDC,FD100,LAND DRAINAGE/SEWERAGE,HIGHWAYS CONTRACTORS,4310,09-Sep-20,178514,2227.14,HUGH PEARL (LAND DRAINAGE) LTD,HUG001
EFDC,33055,OTHER ACTIVITIES,AGENCY STAFF,0120,09-Sep-20,178548,1001.96,MORGAN HUNT UK LTD,MOR001
EFDC,33055,OTHER ACTIVITIES,AGENCY STAFF,0120,09-Sep-20,178543,1001.96,MORGAN HUNT UK LTD,MOR001
EFDC,36650,HRA SUPPORT SERVICES,AGENCY STAFF,0120,09-Sep-20,178546,1254.96,MORGAN HUNT UK LTD,MOR001
EFDC,36650,HRA SUPPORT SERVICES,AGENCY STAFF,0120,09-Sep-20,178545,1254.96,MORGAN HUNT UK LTD,MOR001
EFDC,36500,HRA SUPPORT SERVICES,AGENCY STAFF,0120,09-Sep-20,178544,974.16,MORGAN HUNT UK LTD,MOR001
EFDC,36500,HRA SUPPORT SERVICES,AGENCY STAFF,0120,09-Sep-20,178549,974.16,MORGAN HUNT UK LTD,MOR001
EFDC,36650,HRA SUPPORT SERVICES,AGENCY STAFF,0120,09-Sep-20,178550,1254.96,MORGAN HUNT UK LTD,MOR001
EFDC,36650,HRA SUPPORT SERVICES,AGENCY STAFF,0120,09-Sep-20,178547,1254.96,MORGAN HUNT UK LTD,MOR001
EFDC,78001,HRA SUPPORT SERVICES,MATERIALS,3080,09-Sep-20,178408,1160.00,CRANBROOK ELECTRICS,CRA001
EFDC,EI131,LOCAL PLAN IMPLEMENTATION,GRANTS GENERAL,3720,09-Sep-20,177807,8399.36,ESSEX WILDLIFE TRUST LTD,ESS025
EFDC,32121,OTHER SUPPORT SERVICES,RECRUITMENT EXPENSES,0320,09-Sep-20,178601,1312.00,SOLACE IN BUSINESS LTD,SOL003
EFDC,50100,CHIEF EXECUTIVE SUPPORT SERVIC,RECRUITMENT EXPENSES,0320,09-Sep-20,178600,1598.20,SOLACE IN BUSINESS LTD,SOL003
EFDC,36900,HRA SUPPORT SERVICES,AGENCY STAFF,0120,09-Sep-20,178518,1026.00,JAMES ANDREWS RECRUITMENT SOLUTIONS LTD,JAM001
EFDC,36500,HRA SUPPORT SERVICES,AGENCY STAFF,0120,09-Sep-20,178517,792.00,JAMES ANDREWS RECRUITMENT SOLUTIONS LTD,JAM001
EFDC,36900,HRA SUPPORT SERVICES,AGENCY STAFF,0120,09-Sep-20,178519,1044.00,JAMES ANDREWS RECRUITMENT SOLUTIONS LTD,JAM001
EFDC,36900,HRA SUPPORT SERVICES,AGENCY STAFF,0120,09-Sep-20,178521,1059.75,JAMES ANDREWS RECRUITMENT SOLUTIONS LTD,JAM001
EFDC,36500,HRA SUPPORT SERVICES,AGENCY STAFF,0120,09-Sep-20,178520,792.00,JAMES ANDREWS RECRUITMENT SOLUTIONS LTD,JAM001
EFDC,CAPHR,HRA CAPITAL,VOIDS WORKS,A045,09-Sep-20,178618,920.00,WOODS BUILDING SERVICES LTD,WOO001
EFDC,CAPHR,HRA CAPITAL,VOIDS WORKS,A045,09-Sep-20,178615,594.00,WOODS BUILDING SERVICES LTD,WOO001
EFDC,36500,HRA SUPPORT SERVICES,AGENCY STAFF,0120,09-Sep-20,178560,913.80,THE OYSTER PARTNERSHIP LTD,OYS001
EFDC,CH110,"MUSEUM, HERITAGE & CULTURE",RENTS / HIRE OF HALL,1210,09-Sep-20,178475,1200.00,GRANGEWOOD INVESTMENTS LTD,GRA006
EFDC,35500,CONTRACT & TECH SUPPORT SERVIC,AGENCY STAFF,0120,09-Sep-20,178512,780.30,HL SERVICES (LONDON) LTD,HLS001
EFDC,35500,CONTRACT & TECH SUPPORT SERVIC,AGENCY STAFF,0120,09-Sep-20,178511,566.10,HL SERVICES (LONDON) LTD,HLS001
EFDC,27050,ACCOMMODATION,ELECTRICITY,1120,09-Sep-20,178321,6047.00,EDF ENERGY,EDF001
EFDC,23110,ACCOMMODATION,ELECTRICITY,1120,09-Sep-20,178320,1206.85,EDF ENERGY,EDF001
EFDC,RS302,NORTH WEALD CENTRE,ELECTRICITY,1120,09-Sep-20,178323,5483.50,EDF ENERGY,EDF001
EFDC,CAPHR,HRA CAPITAL,ARCHITECTS FEES,E160,09-Sep-20,178313,936.10,ECD ARCHITECTS LTD,ECD001
EFDC,YA200,SUPERVISION/MANAGEMENT GENERAL,MATERIALS,3080,09-Sep-20,177572,89.00,NSP (NORMANTON SCREEN PRINT),NSP001
EFDC,YA200,SUPERVISION/MANAGEMENT GENERAL,MATERIALS,3080,09-Sep-20,177572,14.95,NSP (NORMANTON SCREEN PRINT),NSP001
EFDC,YA200,SUPERVISION/MANAGEMENT GENERAL,MATERIALS,3080,09-Sep-20,177572,99.00,NSP (NORMANTON SCREEN PRINT),NSP001
EFDC,YA200,SUPERVISION/MANAGEMENT GENERAL,MATERIALS,3080,09-Sep-20,177572,139.00,NSP (NORMANTON SCREEN PRINT),NSP001
EFDC,YA200,SUPERVISION/MANAGEMENT GENERAL,MATERIALS,3080,09-Sep-20,177572,64.50,NSP (NORMANTON SCREEN PRINT),NSP001
EFDC,YA200,SUPERVISION/MANAGEMENT GENERAL,MATERIALS,3080,09-Sep-20,177572,99.00,NSP (NORMANTON SCREEN PRINT),NSP001
EFDC,YA200,SUPERVISION/MANAGEMENT GENERAL,MATERIALS,3080,09-Sep-20,177572,139.00,NSP (NORMANTON SCREEN PRINT),NSP001
EFDC,YA200,SUPERVISION/MANAGEMENT GENERAL,MATERIALS,3080,09-Sep-20,177572,54.50,NSP (NORMANTON SCREEN PRINT),NSP001
EFDC,YA200,SUPERVISION/MANAGEMENT GENERAL,MATERIALS,3080,09-Sep-20,177572,74.50,NSP (NORMANTON SCREEN PRINT),NSP001
EFDC,26200,OTHER SUPPORT SERVICES,BUILDING MAINTENANCE,1010,09-Sep-20,178370,740.00,M J ANDERSON MAINTENANCE CONTRACTORS LTD,AND003
EFDC,26200,OTHER SUPPORT SERVICES,BUILDING MAINTENANCE,1010,09-Sep-20,178371,680.00,M J ANDERSON MAINTENANCE CONTRACTORS LTD,AND003
EFDC,26200,OTHER SUPPORT SERVICES,BUILDING MAINTENANCE,1010,09-Sep-20,178371,37.51,M J ANDERSON MAINTENANCE CONTRACTORS LTD,AND003
EFDC,32220,OTHER SUPPORT SERVICES,AGENCY STAFF,0120,09-Sep-20,178384,924.15,CAPSTONE PROPERTY RECRUITMENT LTD,CAP001
EFDC,UO140,LAND & PROPERTY,PROFESSIONAL FEES,3420,09-Sep-20,174310,1929.62,SAVILLS (UK) LTD,SAV002
EFDC,UO140,LAND & PROPERTY,PROFESSIONAL FEES,3420,09-Sep-20,174309,1031.11,SAVILLS (UK) LTD,SAV002
EFDC,UO140,LAND & PROPERTY,PROFESSIONAL FEES,3420,09-Sep-20,174305,639.94,SAVILLS (UK) LTD,SAV002
EFDC,UO140,LAND & PROPERTY,PROFESSIONAL FEES,3420,09-Sep-20,174307,615.54,SAVILLS (UK) LTD,SAV002
EFDC,UO140,LAND & PROPERTY,PROFESSIONAL FEES,3420,09-Sep-20,174308,1031.11,SAVILLS (UK) LTD,SAV002
EFDC,UO140,LAND & PROPERTY,PREMISES,1030,09-Sep-20,178353,764.89,SAVILLS (UK) LTD,SAV002
EFDC,UO140,LAND & PROPERTY,PREMISES,1030,09-Sep-20,178355,3315.00,SAVILLS (UK) LTD,SAV002
EFDC,UO140,LAND & PROPERTY,PREMISES,1030,09-Sep-20,178349,9321.45,SAVILLS (UK) LTD,SAV002
EFDC,UO140,LAND & PROPERTY,PROFESSIONAL FEES,3420,09-Sep-20,174304,1288.97,SAVILLS (UK) LTD,SAV002
EFDC,YB200,SUPERVISION/MANAGEMENT SPECIAL,REMOVAL EXPENSES,3830,09-Sep-20,178537,590.00,MCKELLAR & SONS REMOVAL & STORAGE LTD,MCK004
EFDC,PP113,LOCAL PLAN IMPLEMENTATION,CONSULTANTS FEES,3490,09-Sep-20,178559,6259.07,OVE ARUP & PARTNERS LTD,OVE002
EFDC,RS150,LEISURE FACILITIES,COMPENSATION PAYMENTS,3880,09-Sep-20,178574,191691.14,PLACES FOR PEOPLE LEISURE MANAGEMENT LTD,PLA005
EFDC,RS150,LEISURE FACILITIES,COMPENSATION PAYMENTS,3880,09-Sep-20,178575,97493.88,PLACES FOR PEOPLE LEISURE MANAGEMENT LTD,PLA005
EFDC,37600,PLANNING SUPPORT SERVICES,AGENCY STAFF,0120,09-Sep-20,178611,7500.00,VIVID RESOURCING LTD,VIV002
EFDC,26200,OTHER SUPPORT SERVICES,BUILDING MAINTENANCE,1010,09-Sep-20,177795,35.89,DEBA UK LTD,DEB002
EFDC,26200,OTHER SUPPORT SERVICES,BUILDING MAINTENANCE,1010,09-Sep-20,177795,71.57,DEBA UK LTD,DEB002
EFDC,26200,OTHER SUPPORT SERVICES,BUILDING MAINTENANCE,1010,09-Sep-20,177795,40.98,DEBA UK LTD,DEB002
EFDC,26200,OTHER SUPPORT SERVICES,BUILDING MAINTENANCE,1010,09-Sep-20,177795,35.89,DEBA UK LTD,DEB002
EFDC,26200,OTHER SUPPORT SERVICES,BUILDING MAINTENANCE,1010,09-Sep-20,177795,71.77,DEBA UK LTD,DEB002
EFDC,26200,OTHER SUPPORT SERVICES,FIXED PLANT MAINTENANCE,1020,09-Sep-20,177795,273.33,DEBA UK LTD,DEB002
EFDC,RM400,PLANNED & CYCLICAL MAINTENANCE,BUILDING MAINTENANCE,1010,09-Sep-20,177795,684.68,DEBA UK LTD,DEB002
EFDC,26200,OTHER SUPPORT SERVICES,BUILDING MAINTENANCE,1010,09-Sep-20,177795,35.89,DEBA UK LTD,DEB002
EFDC,CAPGF,GENERAL FUND CAPITAL,EQUIPMENT ACQUISITION,C330,09-Sep-20,178631,615.00,XEROX (UK) LTD,XER002
EFDC,PS100,CAR PARKING,PARKING CONTRACTOR,4350,09-Sep-20,177571,18593.53,NSL LIMITED,NSL001
EFDC,YD100,"RENTS, RATES TAXES & INSURANCE",WATER CHARGES,1410,09-Sep-20,178299,233.22,CASTLE WATER LTD,CAS001
EFDC,27050,ACCOMMODATION,WATER CHARGES,1410,09-Sep-20,178216,474.72,CASTLE WATER LTD,CAS001
EFDC,27050,ACCOMMODATION,WATER CHARGES,1410,09-Sep-20,178216,333.08,CASTLE WATER LTD,CAS001
EFDC,YD100,"RENTS, RATES TAXES & INSURANCE",WATER CHARGES,1410,09-Sep-20,178299,342.05,CASTLE WATER LTD,CAS001
EFDC,GT100,LOCAL PLAN IMPLEMENTATION,CONSULTANTS FEES,3490,09-Sep-20,178551,6600.00,NEWINGTON COMMUNICATIONS LTD,NEW025
EFDC,GT100,LOCAL PLAN IMPLEMENTATION,CONSULTANTS FEES,3490,09-Sep-20,178552,6600.00,NEWINGTON COMMUNICATIONS LTD,NEW025
EFDC,36500,HRA SUPPORT SERVICES,AGENCY STAFF,0120,09-Sep-20,177814,1640.00,G2 RECRUITMENT SOLUTIONS,G2R001
EFDC,37600,PLANNING SUPPORT SERVICES,AGENCY STAFF,0120,09-Sep-20,177504,1200.00,G2 RECRUITMENT SOLUTIONS,G2R001
EFDC,DC110,PLANNING REGULATORY SERVICES,PROFESSIONAL FEES,3420,09-Sep-20,178356,1935.00,BIRKETTS LLP,BIR001
EFDC,GT100,LOCAL PLAN IMPLEMENTATION,TRAINING EXPENSES,0310,09-Sep-20,178379,2000.00,BLOOM PROCUREMENT SERVICES LTD,BLO001
EFDC,CAPHR,HRA CAPITAL,MANAGEMENT CONSULTANT,E130,09-Sep-20,178314,262.50,AIREY MILLER LIMITED,AIR027
EFDC,CAPHR,HRA CAPITAL,MANAGEMENT CONSULTANT,E130,09-Sep-20,178314,262.50,AIREY MILLER LIMITED,AIR027
EFDC,CAPHR,HRA CAPITAL,MANAGEMENT CONSULTANT,E130,09-Sep-20,178314,262.50,AIREY MILLER LIMITED,AIR027
EFDC,CAPHR,HRA CAPITAL,MANAGEMENT CONSULTANT,E130,09-Sep-20,178314,262.50,AIREY MILLER LIMITED,AIR027
EFDC,CAPHR,HRA CAPITAL,MANAGEMENT CONSULTANT,E130,09-Sep-20,178314,262.50,AIREY MILLER LIMITED,AIR027
EFDC,26200,OTHER SUPPORT SERVICES,BUILDING MAINTENANCE,1010,09-Sep-20,178423,60.00,DDM FIRE SAFETY,DDM001
EFDC,26200,OTHER SUPPORT SERVICES,BUILDING MAINTENANCE,1010,09-Sep-20,178423,72.00,DDM FIRE SAFETY,DDM001
EFDC,26200,OTHER SUPPORT SERVICES,BUILDING MAINTENANCE,1010,09-Sep-20,178423,121.00,DDM FIRE SAFETY,DDM001
EFDC,26200,OTHER SUPPORT SERVICES,BUILDING MAINTENANCE,1010,09-Sep-20,178423,52.50,DDM FIRE SAFETY,DDM001
EFDC,26200,OTHER SUPPORT SERVICES,BUILDING MAINTENANCE,1010,09-Sep-20,178423,35.00,DDM FIRE SAFETY,DDM001
EFDC,26200,OTHER SUPPORT SERVICES,BUILDING MAINTENANCE,1010,09-Sep-20,178423,112.50,DDM FIRE SAFETY,DDM001
EFDC,26200,OTHER SUPPORT SERVICES,BUILDING MAINTENANCE,1010,09-Sep-20,178423,34.50,DDM FIRE SAFETY,DDM001
EFDC,26200,OTHER SUPPORT SERVICES,BUILDING MAINTENANCE,1010,09-Sep-20,178423,35.00,DDM FIRE SAFETY,DDM001
EFDC,26200,OTHER SUPPORT SERVICES,BUILDING MAINTENANCE,1010,09-Sep-20,178423,55.00,DDM FIRE SAFETY,DDM001
EFDC,26200,OTHER SUPPORT SERVICES,FIXED PLANT MAINTENANCE,1020,09-Sep-20,178423,290.00,DDM FIRE SAFETY,DDM001
EFDC,RM400,PLANNED & CYCLICAL MAINTENANCE,BUILDING MAINTENANCE,1010,09-Sep-20,178423,1264.00,DDM FIRE SAFETY,DDM001
EFDC,78001,HRA SUPPORT SERVICES,AGENCY STAFF,0120,09-Sep-20,177606,1745.49,STRATUS RECRUITMENT (CONTRACTORS) LTD,STR023
EFDC,78001,HRA SUPPORT SERVICES,AGENCY STAFF,0120,09-Sep-20,178605,1016.24,STRATUS RECRUITMENT (CONTRACTORS) LTD,STR023
EFDC,33080,OTHER ACTIVITIES,FIXED NETWORK LINE COSTS,3520,09-Sep-20,178613,1755.00,WAVENET LIMITED,WAV001
EFDC,33080,OTHER ACTIVITIES,FIXED NETWORK LINE COSTS,3520,09-Sep-20,178613,5024.09,WAVENET LIMITED,WAV001
EFDC,33080,OTHER ACTIVITIES,FIXED NETWORK LINE COSTS,3520,09-Sep-20,178613,5.00,WAVENET LIMITED,WAV001
EFDC,33080,OTHER ACTIVITIES,FIXED NETWORK LINE COSTS,3520,09-Sep-20,178307,772.38,WAVENET LIMITED,WAV001
EFDC,33080,OTHER ACTIVITIES,FIXED NETWORK LINE COSTS,3520,09-Sep-20,178613,1155.00,WAVENET LIMITED,WAV001
EFDC,DC110,PLANNING REGULATORY SERVICES,PROFESSIONAL FEES,3420,09-Sep-20,177915,3900.00,CHARLES T F STREETEN,STR030
EFDC,40120,CHIEF EXECUTIVE SUPPORT SERVIC,SUBSCRIPTIONS,3730,09-Sep-20,177483,1200.00,DIGITAL UNITE LIMITED,DIG012
EFDC,35500,CONTRACT & TECH SUPPORT SERVIC,AGENCY STAFF,0120,09-Sep-20,177865,536.50,NEXO RECRUITMENT,NEX002
EFDC,CAPGF,GENERAL FUND CAPITAL,WORKS,B040,09-Sep-20,178516,572300.00,ISG FIT OUT LTD,ISG001
EFDC,TO100,LAND & PROPERTY,VEHICLE PARTS / REPAIRS,2210,09-Sep-20,178579,4034.00,PREMIER VEHICLE MANAGEMENT,PRE040
EFDC,TO100,LAND & PROPERTY,VEHICLE PARTS / REPAIRS,2210,09-Sep-20,178580,3450.00,PREMIER VEHICLE MANAGEMENT,PRE040
EFDC,TO100,LAND & PROPERTY,VEHICLE PARTS / REPAIRS,2210,09-Sep-20,178577,4234.00,PREMIER VEHICLE MANAGEMENT,PRE040
EFDC,TO100,LAND & PROPERTY,VEHICLE PARTS / REPAIRS,2210,09-Sep-20,178578,4324.00,PREMIER VEHICLE MANAGEMENT,PRE040
EFDC,34160,HOUSING PROP SUPPORT SERVICES,PUBLICITY,3360,09-Sep-20,177290,2764.00,OMNIPLEX (GROUP) LTD,OMN001
EFDC,34160,HOUSING PROP SUPPORT SERVICES,PUBLICITY,3360,09-Sep-20,177290,480.00,OMNIPLEX (GROUP) LTD,OMN001
EFDC,YA180,SUPERVISION/MANAGEMENT GENERAL,CONSULTANTS FEES,3490,09-Sep-20,177857,1000.00,METAPLAN LTD,MET011
EFDC,CAPGF,GENERAL FUND CAPITAL,CONSULTANCY FEES,B200,09-Sep-20,178607,10000.00,THREEDAY GROUP LTD,THR003
EFDC,40120,CHIEF EXECUTIVE SUPPORT SERVIC,CONSULTANTS FEES,3490,09-Sep-20,178400,1120.00,CIVIC COMPUTING LIMITED,CIV001
EFDC,40120,CHIEF EXECUTIVE SUPPORT SERVIC,CONSULTANTS FEES,3490,09-Sep-20,178400,1680.00,CIVIC COMPUTING LIMITED,CIV001
EFDC,40120,CHIEF EXECUTIVE SUPPORT SERVIC,CONSULTANTS FEES,3490,09-Sep-20,178400,5670.00,CIVIC COMPUTING LIMITED,CIV001
EFDC,BAL01,EFDC BALANCE SHEET,HOUSING RENT REFUNDS,Z613,08-Sep-20,37410,741.14,MR R BOXALL,6009P
EFDC,LT140,LOCAL TAXATION,GRANTS GENERAL,3720,08-Sep-20,37415,5000.00,EXPERIENCE MEGASTORE LTD,9852P
EFDC,LT140,LOCAL TAXATION,GRANTS GENERAL,3720,08-Sep-20,37414,5000.00,JOHN MILES TYRE AND EXHAUST CENTRE,9853P
EFDC,LT140,LOCAL TAXATION,GRANTS GENERAL,3720,08-Sep-20,37403,7500.00,MRS KIM KNIGHT,9997P
EFDC,LT140,LOCAL TAXATION,GRANTS GENERAL,3720,08-Sep-20,37404,10000.00,PRODUCT TRADE SERVICES LTD,9998P
EFDC,LT140,LOCAL TAXATION,GRANTS GENERAL,3720,08-Sep-20,37429,5000.00,BR SEARCH LTD,9701P
EFDC,LT140,LOCAL TAXATION,GRANTS GENERAL,3720,08-Sep-20,37430,5000.00,N&C CATERING LTD,9653P
EFDC,LT140,LOCAL TAXATION,GRANTS GENERAL,3720,08-Sep-20,37362,10000.00,CAPITOL FACILITIES & SUPPORT SERVICES LTD,9976P
EFDC,LT140,LOCAL TAXATION,GRANTS GENERAL,3720,08-Sep-20,37408,5000.00,ALL SAINTS PRE-SCHOOL CHIGWELL LTD,9796P
EFDC,LT140,LOCAL TAXATION,GRANTS GENERAL,3720,08-Sep-20,37406,5000.00,MS AIDA L LEAL,9797P
EFDC,LT140,LOCAL TAXATION,GRANTS GENERAL,3720,08-Sep-20,37409,5000.00,AMIR GHORBANI RIVERSIDE PIZZA,9781P
EFDC,LT140,LOCAL TAXATION,GRANTS GENERAL,3720,08-Sep-20,37413,5000.00,A J HODSON T/A PROMOTE YOUR EVENT,9823P
EFDC,LT140,LOCAL TAXATION,GRANTS GENERAL,3720,08-Sep-20,37427,5000.00,MATCHING LTD,9838P
EFDC,LT140,LOCAL TAXATION,GRANTS GENERAL,3720,08-Sep-20,37423,5000.00,WOODLAND LEATHER LTD,9619P
EFDC,BAL01,EFDC BALANCE SHEET,SALARY OVERPAYMENTS/ADVANCES,Z610,08-Sep-20,37397,5000.00,G HOUGHTON,9991P
EFDC,BAL01,EFDC BALANCE SHEET,SUNDRY DEBTORS (OTHER),Z208,08-Sep-20,37402,840.00,NICKOLDS PROPERTY MANAGEMENT,9996P
EFDC,LT140,LOCAL TAXATION,GRANTS GENERAL,3720,08-Sep-20,37425,5000.00,BEDISH ARTISAN FOODS LTD,9739P
EFDC,LT140,LOCAL TAXATION,GRANTS GENERAL,3720,08-Sep-20,37416,5000.00,L GOOSE/A WORTH T/A LITTLE BRIDGES,9742P
EFDC,LT140,LOCAL TAXATION,GRANTS GENERAL,3720,08-Sep-20,37424,5000.00,MONTAGUE CAPITAL INVESTMENTS LTD,9743P
EFDC,LT140,LOCAL TAXATION,GRANTS GENERAL,3720,08-Sep-20,37422,5000.00,THE GATEHOUSE CAFE LTD,9752P
EFDC,LT140,LOCAL TAXATION,GRANTS GENERAL,3720,08-Sep-20,37426,5000.00,BEKS FOOD,9935P
EFDC,LT140,LOCAL TAXATION,GRANTS GENERAL,3720,08-Sep-20,37412,5000.00,24/7 TRADES LTD,9940P
EFDC,LT140,LOCAL TAXATION,GRANTS GENERAL,3720,08-Sep-20,37417,5000.00,HEADSTART SPORTSWEAR LTD,9664P
EFDC,LT140,LOCAL TAXATION,GRANTS GENERAL,3720,08-Sep-20,37407,5000.00,THE ONLINE SPORTS SHOP,9711P
EFDC,LT140,LOCAL TAXATION,GRANTS GENERAL,3720,08-Sep-20,37405,5000.00,USA FASHIONS ( UK ) LTD,9617P
EFDC,LT140,LOCAL TAXATION,GRANTS GENERAL,3720,08-Sep-20,37411,5000.00,MRS AMY LOUISE HARRIS,9618P
EFDC,LT140,LOCAL TAXATION,GRANTS GENERAL,3720,08-Sep-20,37428,5000.00,BEN BROOK,9646P
EFDC,PH100,PRIVATE SECTOR HOUSING,GRANTS GENERAL,3720,04-Sep-20,37368,6783.00,STANNAH LIFT SERVICES LTD,STA002
EFDC,PH100,PRIVATE SECTOR HOUSING,GRANTS GENERAL,3720,04-Sep-20,37367,6352.00,STANNAH LIFT SERVICES LTD,STA002
EFDC,LT140,LOCAL TAXATION,GRANTS GENERAL,3720,04-Sep-20,37357,7500.00,GEMINI OFFICE SOLUTIONS,9971P
EFDC,LT140,LOCAL TAXATION,GRANTS GENERAL,3720,04-Sep-20,37358,7500.00,TOMER BEN IBGHEI,9972P
EFDC,LT140,LOCAL TAXATION,GRANTS GENERAL,3720,04-Sep-20,37359,7500.00,HOST & NAME LTD,9973P
EFDC,LT140,LOCAL TAXATION,GRANTS GENERAL,3720,04-Sep-20,37360,7500.00,KENNARD WELLS OFFICES,9974P
EFDC,LT140,LOCAL TAXATION,GRANTS GENERAL,3720,04-Sep-20,37361,7500.00,ADEN OMOL,9975P
EFDC,LT140,LOCAL TAXATION,GRANTS GENERAL,3720,04-Sep-20,37363,10000.00,EVENT INC LTD,9977P
EFDC,LT140,LOCAL TAXATION,GRANTS GENERAL,3720,04-Sep-20,37364,10000.00,JPS STEEL FABRICATIONS LTD,9978P
EFDC,CAPHR,HRA CAPITAL,CAPITAL HSEBLD COMPENSAT PYMT,E048,04-Sep-20,37355,801.00,PAUL GOODING,9969P
EFDC,33080,OTHER ACTIVITIES,FIXED NETWORK LINE COSTS,3520,02-Sep-20,178084,70.00,BRITISH TELECOMMUNICATIONS PLC,BRI002
EFDC,33080,OTHER ACTIVITIES,FIXED NETWORK LINE COSTS,3520,02-Sep-20,178084,3440.00,BRITISH TELECOMMUNICATIONS PLC,BRI002
EFDC,33080,OTHER ACTIVITIES,FIXED NETWORK LINE COSTS,3520,02-Sep-20,178085,1411.50,BRITISH TELECOMMUNICATIONS PLC,BRI002
EFDC,33080,OTHER ACTIVITIES,FIXED NETWORK LINE COSTS,3520,02-Sep-20,178085,70.00,BRITISH TELECOMMUNICATIONS PLC,BRI002
EFDC,YB110,SUPERVISION/MANAGEMENT SPECIAL,ELECTRICITY,1120,02-Sep-20,178213,10.91,BRITISH GAS,BRI040
EFDC,YB110,SUPERVISION/MANAGEMENT SPECIAL,ELECTRICITY,1120,02-Sep-20,178213,14.03,BRITISH GAS,BRI040
EFDC,YB110,SUPERVISION/MANAGEMENT SPECIAL,ELECTRICITY,1120,02-Sep-20,178213,13.27,BRITISH GAS,BRI040
EFDC,YB110,SUPERVISION/MANAGEMENT SPECIAL,ELECTRICITY,1120,02-Sep-20,178213,13.23,BRITISH GAS,BRI040
EFDC,YB110,SUPERVISION/MANAGEMENT SPECIAL,ELECTRICITY,1120,02-Sep-20,178213,43.76,BRITISH GAS,BRI040
EFDC,YB110,SUPERVISION/MANAGEMENT SPECIAL,ELECTRICITY,1120,02-Sep-20,178213,15.78,BRITISH GAS,BRI040
EFDC,YB110,SUPERVISION/MANAGEMENT SPECIAL,ELECTRICITY,1120,02-Sep-20,178213,16.44,BRITISH GAS,BRI040
EFDC,YB110,SUPERVISION/MANAGEMENT SPECIAL,ELECTRICITY,1120,02-Sep-20,178213,11.55,BRITISH GAS,BRI040
EFDC,YB110,SUPERVISION/MANAGEMENT SPECIAL,ELECTRICITY,1120,02-Sep-20,178213,10.83,BRITISH GAS,BRI040
EFDC,YB110,SUPERVISION/MANAGEMENT SPECIAL,ELECTRICITY,1120,02-Sep-20,178213,10.42,BRITISH GAS,BRI040
EFDC,YB110,SUPERVISION/MANAGEMENT SPECIAL,ELECTRICITY,1120,02-Sep-20,178213,7.89,BRITISH GAS,BRI040
EFDC,YB110,SUPERVISION/MANAGEMENT SPECIAL,ELECTRICITY,1120,02-Sep-20,178213,12.41,BRITISH GAS,BRI040
EFDC,YB110,SUPERVISION/MANAGEMENT SPECIAL,ELECTRICITY,1120,02-Sep-20,178213,44.99,BRITISH GAS,BRI040
EFDC,YB110,SUPERVISION/MANAGEMENT SPECIAL,ELECTRICITY,1120,02-Sep-20,178213,14.31,BRITISH GAS,BRI040
EFDC,YB110,SUPERVISION/MANAGEMENT SPECIAL,ELECTRICITY,1120,02-Sep-20,178213,31.24,BRITISH GAS,BRI040
EFDC,YB110,SUPERVISION/MANAGEMENT SPECIAL,ELECTRICITY,1120,02-Sep-20,178213,20.03,BRITISH GAS,BRI040
EFDC,YB110,SUPERVISION/MANAGEMENT SPECIAL,ELECTRICITY,1120,02-Sep-20,178213,14.29,BRITISH GAS,BRI040
EFDC,YB110,SUPERVISION/MANAGEMENT SPECIAL,ELECTRICITY,1120,02-Sep-20,178213,13.24,BRITISH GAS,BRI040
EFDC,YB110,SUPERVISION/MANAGEMENT SPECIAL,ELECTRICITY,1120,02-Sep-20,178213,13.77,BRITISH GAS,BRI040
EFDC,YB110,SUPERVISION/MANAGEMENT SPECIAL,ELECTRICITY,1120,02-Sep-20,178213,15.25,BRITISH GAS,BRI040
EFDC,YB110,SUPERVISION/MANAGEMENT SPECIAL,ELECTRICITY,1120,02-Sep-20,178213,9.22,BRITISH GAS,BRI040
EFDC,YB110,SUPERVISION/MANAGEMENT SPECIAL,ELECTRICITY,1120,02-Sep-20,178213,9.23,BRITISH GAS,BRI040
EFDC,YB110,SUPERVISION/MANAGEMENT SPECIAL,ELECTRICITY,1120,02-Sep-20,178213,14.90,BRITISH GAS,BRI040
EFDC,YB110,SUPERVISION/MANAGEMENT SPECIAL,ELECTRICITY,1120,02-Sep-20,178213,10.14,BRITISH GAS,BRI040
EFDC,YB110,SUPERVISION/MANAGEMENT SPECIAL,ELECTRICITY,1120,02-Sep-20,178213,17.03,BRITISH GAS,BRI040
EFDC,YB110,SUPERVISION/MANAGEMENT SPECIAL,ELECTRICITY,1120,02-Sep-20,178213,15.15,BRITISH GAS,BRI040
EFDC,YB110,SUPERVISION/MANAGEMENT SPECIAL,ELECTRICITY,1120,02-Sep-20,178213,11.85,BRITISH GAS,BRI040
EFDC,YB110,SUPERVISION/MANAGEMENT SPECIAL,ELECTRICITY,1120,02-Sep-20,178213,41.57,BRITISH GAS,BRI040
EFDC,YB110,SUPERVISION/MANAGEMENT SPECIAL,ELECTRICITY,1120,02-Sep-20,178213,15.56,BRITISH GAS,BRI040
EFDC,YB110,SUPERVISION/MANAGEMENT SPECIAL,ELECTRICITY,1120,02-Sep-20,178213,9.27,BRITISH GAS,BRI040
EFDC,YB110,SUPERVISION/MANAGEMENT SPECIAL,ELECTRICITY,1120,02-Sep-20,178213,16.66,BRITISH GAS,BRI040
EFDC,YB110,SUPERVISION/MANAGEMENT SPECIAL,ELECTRICITY,1120,02-Sep-20,178213,15.03,BRITISH GAS,BRI040
EFDC,YB110,SUPERVISION/MANAGEMENT SPECIAL,ELECTRICITY,1120,02-Sep-20,178213,14.78,BRITISH GAS,BRI040
EFDC,YB110,SUPERVISION/MANAGEMENT SPECIAL,ELECTRICITY,1120,02-Sep-20,178213,10.27,BRITISH GAS,BRI040
EFDC,YB110,SUPERVISION/MANAGEMENT SPECIAL,ELECTRICITY,1120,02-Sep-20,178213,15.78,BRITISH GAS,BRI040
EFDC,YB110,SUPERVISION/MANAGEMENT SPECIAL,ELECTRICITY,1120,02-Sep-20,178213,14.65,BRITISH GAS,BRI040
EFDC,YB110,SUPERVISION/MANAGEMENT SPECIAL,ELECTRICITY,1120,02-Sep-20,178213,43.57,BRITISH GAS,BRI040
EFDC,YB110,SUPERVISION/MANAGEMENT SPECIAL,ELECTRICITY,1120,02-Sep-20,178213,10.80,BRITISH GAS,BRI040
EFDC,YB110,SUPERVISION/MANAGEMENT SPECIAL,ELECTRICITY,1120,02-Sep-20,178213,13.52,BRITISH GAS,BRI040
EFDC,YB110,SUPERVISION/MANAGEMENT SPECIAL,ELECTRICITY,1120,02-Sep-20,178213,15.15,BRITISH GAS,BRI040
EFDC,YB110,SUPERVISION/MANAGEMENT SPECIAL,ELECTRICITY,1120,02-Sep-20,178213,12.52,BRITISH GAS,BRI040
EFDC,YB110,SUPERVISION/MANAGEMENT SPECIAL,ELECTRICITY,1120,02-Sep-20,178213,13.52,BRITISH GAS,BRI040
EFDC,YB110,SUPERVISION/MANAGEMENT SPECIAL,ELECTRICITY,1120,02-Sep-20,178213,15.40,BRITISH GAS,BRI040
EFDC,YB110,SUPERVISION/MANAGEMENT SPECIAL,ELECTRICITY,1120,02-Sep-20,178213,15.53,BRITISH GAS,BRI040
EFDC,YB110,SUPERVISION/MANAGEMENT SPECIAL,ELECTRICITY,1120,02-Sep-20,178213,14.52,BRITISH GAS,BRI040
EFDC,YB110,SUPERVISION/MANAGEMENT SPECIAL,ELECTRICITY,1120,02-Sep-20,178213,14.65,BRITISH GAS,BRI040
EFDC,YB110,SUPERVISION/MANAGEMENT SPECIAL,ELECTRICITY,1120,02-Sep-20,178213,16.53,BRITISH GAS,BRI040
EFDC,YB110,SUPERVISION/MANAGEMENT SPECIAL,ELECTRICITY,1120,02-Sep-20,178213,16.28,BRITISH GAS,BRI040
EFDC,YB110,SUPERVISION/MANAGEMENT SPECIAL,ELECTRICITY,1120,02-Sep-20,178213,38.32,BRITISH GAS,BRI040
EFDC,YB110,SUPERVISION/MANAGEMENT SPECIAL,ELECTRICITY,1120,02-Sep-20,178213,14.03,BRITISH GAS,BRI040
EFDC,YB110,SUPERVISION/MANAGEMENT SPECIAL,ELECTRICITY,1120,02-Sep-20,178213,13.15,BRITISH GAS,BRI040
EFDC,YB110,SUPERVISION/MANAGEMENT SPECIAL,ELECTRICITY,1120,02-Sep-20,178213,15.90,BRITISH GAS,BRI040
EFDC,YB110,SUPERVISION/MANAGEMENT SPECIAL,ELECTRICITY,1120,02-Sep-20,178213,4.50,BRITISH GAS,BRI040
EFDC,YB110,SUPERVISION/MANAGEMENT SPECIAL,ELECTRICITY,1120,02-Sep-20,178213,7.89,BRITISH GAS,BRI040
EFDC,YB110,SUPERVISION/MANAGEMENT SPECIAL,ELECTRICITY,1120,02-Sep-20,178213,7.89,BRITISH GAS,BRI040
EFDC,YB110,SUPERVISION/MANAGEMENT SPECIAL,ELECTRICITY,1120,02-Sep-20,178213,7.89,BRITISH GAS,BRI040
EFDC,YB110,SUPERVISION/MANAGEMENT SPECIAL,ELECTRICITY,1120,02-Sep-20,178213,7.89,BRITISH GAS,BRI040
EFDC,YB110,SUPERVISION/MANAGEMENT SPECIAL,ELECTRICITY,1120,02-Sep-20,178213,24.90,BRITISH GAS,BRI040
EFDC,YB110,SUPERVISION/MANAGEMENT SPECIAL,ELECTRICITY,1120,02-Sep-20,178213,3.17,BRITISH GAS,BRI040
EFDC,YB110,SUPERVISION/MANAGEMENT SPECIAL,ELECTRICITY,1120,02-Sep-20,178213,8.55,BRITISH GAS,BRI040
EFDC,YB110,SUPERVISION/MANAGEMENT SPECIAL,ELECTRICITY,1120,02-Sep-20,178213,13.48,BRITISH GAS,BRI040
EFDC,YB110,SUPERVISION/MANAGEMENT SPECIAL,ELECTRICITY,1120,02-Sep-20,178213,3.39,BRITISH GAS,BRI040
EFDC,YB110,SUPERVISION/MANAGEMENT SPECIAL,ELECTRICITY,1120,02-Sep-20,178213,16.03,BRITISH GAS,BRI040
EFDC,YB110,SUPERVISION/MANAGEMENT SPECIAL,ELECTRICITY,1120,02-Sep-20,178213,4.21,BRITISH GAS,BRI040
EFDC,YB110,SUPERVISION/MANAGEMENT SPECIAL,ELECTRICITY,1120,02-Sep-20,178213,31.19,BRITISH GAS,BRI040
EFDC,YB110,SUPERVISION/MANAGEMENT SPECIAL,ELECTRICITY,1120,02-Sep-20,178213,7.89,BRITISH GAS,BRI040
EFDC,YB110,SUPERVISION/MANAGEMENT SPECIAL,ELECTRICITY,1120,02-Sep-20,178213,19.91,BRITISH GAS,BRI040
EFDC,YB110,SUPERVISION/MANAGEMENT SPECIAL,ELECTRICITY,1120,02-Sep-20,178213,11.34,BRITISH GAS,BRI040
EFDC,YB110,SUPERVISION/MANAGEMENT SPECIAL,ELECTRICITY,1120,02-Sep-20,178213,7.89,BRITISH GAS,BRI040
EFDC,YB110,SUPERVISION/MANAGEMENT SPECIAL,ELECTRICITY,1120,02-Sep-20,178213,14.46,BRITISH GAS,BRI040
EFDC,YB110,SUPERVISION/MANAGEMENT SPECIAL,ELECTRICITY,1120,02-Sep-20,178213,15.28,BRITISH GAS,BRI040
EFDC,YB110,SUPERVISION/MANAGEMENT SPECIAL,ELECTRICITY,1120,02-Sep-20,178213,41.56,BRITISH GAS,BRI040
EFDC,YB110,SUPERVISION/MANAGEMENT SPECIAL,ELECTRICITY,1120,02-Sep-20,178213,77.12,BRITISH GAS,BRI040
EFDC,YB110,SUPERVISION/MANAGEMENT SPECIAL,ELECTRICITY,1120,02-Sep-20,178213,27.14,BRITISH GAS,BRI040
EFDC,YB110,SUPERVISION/MANAGEMENT SPECIAL,ELECTRICITY,1120,02-Sep-20,178213,53.60,BRITISH GAS,BRI040
EFDC,YB110,SUPERVISION/MANAGEMENT SPECIAL,ELECTRICITY,1120,02-Sep-20,178213,14.03,BRITISH GAS,BRI040
EFDC,YB110,SUPERVISION/MANAGEMENT SPECIAL,ELECTRICITY,1120,02-Sep-20,178213,88.41,BRITISH GAS,BRI040
EFDC,YB110,SUPERVISION/MANAGEMENT SPECIAL,ELECTRICITY,1120,02-Sep-20,178213,52.72,BRITISH GAS,BRI040
EFDC,YB110,SUPERVISION/MANAGEMENT SPECIAL,ELECTRICITY,1120,02-Sep-20,178213,11.31,BRITISH GAS,BRI040
EFDC,YB110,SUPERVISION/MANAGEMENT SPECIAL,ELECTRICITY,1120,02-Sep-20,178213,13.44,BRITISH GAS,BRI040
EFDC,YB110,SUPERVISION/MANAGEMENT SPECIAL,ELECTRICITY,1120,02-Sep-20,178213,13.22,BRITISH GAS,BRI040
EFDC,YB110,SUPERVISION/MANAGEMENT SPECIAL,ELECTRICITY,1120,02-Sep-20,178213,31.09,BRITISH GAS,BRI040
EFDC,YB110,SUPERVISION/MANAGEMENT SPECIAL,ELECTRICITY,1120,02-Sep-20,178213,16.15,BRITISH GAS,BRI040
EFDC,YB110,SUPERVISION/MANAGEMENT SPECIAL,ELECTRICITY,1120,02-Sep-20,178213,17.75,BRITISH GAS,BRI040
EFDC,YB110,SUPERVISION/MANAGEMENT SPECIAL,ELECTRICITY,1120,02-Sep-20,178213,16.72,BRITISH GAS,BRI040
EFDC,YB110,SUPERVISION/MANAGEMENT SPECIAL,ELECTRICITY,1120,02-Sep-20,178213,36.39,BRITISH GAS,BRI040
EFDC,YB110,SUPERVISION/MANAGEMENT SPECIAL,ELECTRICITY,1120,02-Sep-20,178213,12.90,BRITISH GAS,BRI040
EFDC,YB110,SUPERVISION/MANAGEMENT SPECIAL,ELECTRICITY,1120,02-Sep-20,178213,13.40,BRITISH GAS,BRI040
EFDC,YB110,SUPERVISION/MANAGEMENT SPECIAL,ELECTRICITY,1120,02-Sep-20,178213,7.89,BRITISH GAS,BRI040
EFDC,YB110,SUPERVISION/MANAGEMENT SPECIAL,ELECTRICITY,1120,02-Sep-20,178213,35.70,BRITISH GAS,BRI040
EFDC,YB110,SUPERVISION/MANAGEMENT SPECIAL,ELECTRICITY,1120,02-Sep-20,178213,12.78,BRITISH GAS,BRI040
EFDC,YB110,SUPERVISION/MANAGEMENT SPECIAL,ELECTRICITY,1120,02-Sep-20,178213,7.89,BRITISH GAS,BRI040
EFDC,YB110,SUPERVISION/MANAGEMENT SPECIAL,ELECTRICITY,1120,02-Sep-20,178213,11.15,BRITISH GAS,BRI040
EFDC,YB110,SUPERVISION/MANAGEMENT SPECIAL,ELECTRICITY,1120,02-Sep-20,178213,13.40,BRITISH GAS,BRI040
EFDC,YB110,SUPERVISION/MANAGEMENT SPECIAL,ELECTRICITY,1120,02-Sep-20,178213,13.90,BRITISH GAS,BRI040
EFDC,YB110,SUPERVISION/MANAGEMENT SPECIAL,ELECTRICITY,1120,02-Sep-20,178213,7.89,BRITISH GAS,BRI040
EFDC,YB110,SUPERVISION/MANAGEMENT SPECIAL,ELECTRICITY,1120,02-Sep-20,178213,33.49,BRITISH GAS,BRI040
EFDC,YB110,SUPERVISION/MANAGEMENT SPECIAL,ELECTRICITY,1120,02-Sep-20,178213,25.26,BRITISH GAS,BRI040
EFDC,YB110,SUPERVISION/MANAGEMENT SPECIAL,ELECTRICITY,1120,02-Sep-20,178213,13.78,BRITISH GAS,BRI040
EFDC,YB110,SUPERVISION/MANAGEMENT SPECIAL,ELECTRICITY,1120,02-Sep-20,178213,13.97,BRITISH GAS,BRI040
EFDC,YB110,SUPERVISION/MANAGEMENT SPECIAL,ELECTRICITY,1120,02-Sep-20,178213,12.32,BRITISH GAS,BRI040
EFDC,YB110,SUPERVISION/MANAGEMENT SPECIAL,ELECTRICITY,1120,02-Sep-20,178213,13.00,BRITISH GAS,BRI040
EFDC,YB110,SUPERVISION/MANAGEMENT SPECIAL,ELECTRICITY,1120,02-Sep-20,178213,29.53,BRITISH GAS,BRI040
EFDC,YB110,SUPERVISION/MANAGEMENT SPECIAL,ELECTRICITY,1120,02-Sep-20,178213,13.66,BRITISH GAS,BRI040
EFDC,YB110,SUPERVISION/MANAGEMENT SPECIAL,ELECTRICITY,1120,02-Sep-20,178213,12.26,BRITISH GAS,BRI040
EFDC,YB110,SUPERVISION/MANAGEMENT SPECIAL,ELECTRICITY,1120,02-Sep-20,178213,15.18,BRITISH GAS,BRI040
EFDC,YB110,SUPERVISION/MANAGEMENT SPECIAL,ELECTRICITY,1120,02-Sep-20,178213,12.20,BRITISH GAS,BRI040
EFDC,YB110,SUPERVISION/MANAGEMENT SPECIAL,ELECTRICITY,1120,02-Sep-20,178213,67.01,BRITISH GAS,BRI040
EFDC,YB110,SUPERVISION/MANAGEMENT SPECIAL,ELECTRICITY,1120,02-Sep-20,178213,15.16,BRITISH GAS,BRI040
EFDC,YB110,SUPERVISION/MANAGEMENT SPECIAL,ELECTRICITY,1120,02-Sep-20,178213,17.33,BRITISH GAS,BRI040
EFDC,YB110,SUPERVISION/MANAGEMENT SPECIAL,ELECTRICITY,1120,02-Sep-20,178213,15.97,BRITISH GAS,BRI040
EFDC,YB110,SUPERVISION/MANAGEMENT SPECIAL,ELECTRICITY,1120,02-Sep-20,178213,40.04,BRITISH GAS,BRI040
EFDC,YB110,SUPERVISION/MANAGEMENT SPECIAL,ELECTRICITY,1120,02-Sep-20,178213,13.88,BRITISH GAS,BRI040
EFDC,YB110,SUPERVISION/MANAGEMENT SPECIAL,ELECTRICITY,1120,02-Sep-20,178213,13.73,BRITISH GAS,BRI040
EFDC,YB110,SUPERVISION/MANAGEMENT SPECIAL,ELECTRICITY,1120,02-Sep-20,178213,15.08,BRITISH GAS,BRI040
EFDC,YB110,SUPERVISION/MANAGEMENT SPECIAL,ELECTRICITY,1120,02-Sep-20,178213,13.50,BRITISH GAS,BRI040
EFDC,YB110,SUPERVISION/MANAGEMENT SPECIAL,ELECTRICITY,1120,02-Sep-20,178213,11.56,BRITISH GAS,BRI040
EFDC,YB110,SUPERVISION/MANAGEMENT SPECIAL,ELECTRICITY,1120,02-Sep-20,178213,12.78,BRITISH GAS,BRI040
EFDC,YB110,SUPERVISION/MANAGEMENT SPECIAL,ELECTRICITY,1120,02-Sep-20,178213,9.21,BRITISH GAS,BRI040
EFDC,YB110,SUPERVISION/MANAGEMENT SPECIAL,ELECTRICITY,1120,02-Sep-20,178213,13.25,BRITISH GAS,BRI040
EFDC,YB110,SUPERVISION/MANAGEMENT SPECIAL,ELECTRICITY,1120,02-Sep-20,178213,209.01,BRITISH GAS,BRI040
EFDC,YB110,SUPERVISION/MANAGEMENT SPECIAL,ELECTRICITY,1120,02-Sep-20,178213,54.98,BRITISH GAS,BRI040
EFDC,YB110,SUPERVISION/MANAGEMENT SPECIAL,ELECTRICITY,1120,02-Sep-20,178213,21.17,BRITISH GAS,BRI040
EFDC,YB110,SUPERVISION/MANAGEMENT SPECIAL,ELECTRICITY,1120,02-Sep-20,178213,20.49,BRITISH GAS,BRI040
EFDC,YB110,SUPERVISION/MANAGEMENT SPECIAL,ELECTRICITY,1120,02-Sep-20,178213,11.16,BRITISH GAS,BRI040
EFDC,YB110,SUPERVISION/MANAGEMENT SPECIAL,ELECTRICITY,1120,02-Sep-20,178213,18.53,BRITISH GAS,BRI040
EFDC,YB110,SUPERVISION/MANAGEMENT SPECIAL,ELECTRICITY,1120,02-Sep-20,178213,12.16,BRITISH GAS,BRI040
EFDC,YB110,SUPERVISION/MANAGEMENT SPECIAL,ELECTRICITY,1120,02-Sep-20,178213,17.41,BRITISH GAS,BRI040
EFDC,YB110,SUPERVISION/MANAGEMENT SPECIAL,ELECTRICITY,1120,02-Sep-20,178213,13.48,BRITISH GAS,BRI040
EFDC,YB110,SUPERVISION/MANAGEMENT SPECIAL,ELECTRICITY,1120,02-Sep-20,178213,14.04,BRITISH GAS,BRI040
EFDC,YB110,SUPERVISION/MANAGEMENT SPECIAL,ELECTRICITY,1120,02-Sep-20,178213,12.97,BRITISH GAS,BRI040
EFDC,YB110,SUPERVISION/MANAGEMENT SPECIAL,ELECTRICITY,1120,02-Sep-20,178213,27.17,BRITISH GAS,BRI040
EFDC,YB110,SUPERVISION/MANAGEMENT SPECIAL,ELECTRICITY,1120,02-Sep-20,178213,13.95,BRITISH GAS,BRI040
EFDC,YB110,SUPERVISION/MANAGEMENT SPECIAL,ELECTRICITY,1120,02-Sep-20,178213,12.82,BRITISH GAS,BRI040
EFDC,YB110,SUPERVISION/MANAGEMENT SPECIAL,ELECTRICITY,1120,02-Sep-20,178213,23.20,BRITISH GAS,BRI040
EFDC,YB110,SUPERVISION/MANAGEMENT SPECIAL,ELECTRICITY,1120,02-Sep-20,178213,26.69,BRITISH GAS,BRI040
EFDC,YB110,SUPERVISION/MANAGEMENT SPECIAL,ELECTRICITY,1120,02-Sep-20,178213,24.47,BRITISH GAS,BRI040
EFDC,YB110,SUPERVISION/MANAGEMENT SPECIAL,ELECTRICITY,1120,02-Sep-20,178213,13.01,BRITISH GAS,BRI040
EFDC,YB110,SUPERVISION/MANAGEMENT SPECIAL,ELECTRICITY,1120,02-Sep-20,178213,21.32,BRITISH GAS,BRI040
EFDC,YB110,SUPERVISION/MANAGEMENT SPECIAL,ELECTRICITY,1120,02-Sep-20,178213,16.89,BRITISH GAS,BRI040
EFDC,YB110,SUPERVISION/MANAGEMENT SPECIAL,ELECTRICITY,1120,02-Sep-20,178213,13.73,BRITISH GAS,BRI040
EFDC,YB110,SUPERVISION/MANAGEMENT SPECIAL,ELECTRICITY,1120,02-Sep-20,178213,21.87,BRITISH GAS,BRI040
EFDC,YB110,SUPERVISION/MANAGEMENT SPECIAL,ELECTRICITY,1120,02-Sep-20,178213,12.77,BRITISH GAS,BRI040
EFDC,YB110,SUPERVISION/MANAGEMENT SPECIAL,ELECTRICITY,1120,02-Sep-20,178213,18.02,BRITISH GAS,BRI040
EFDC,YB110,SUPERVISION/MANAGEMENT SPECIAL,ELECTRICITY,1120,02-Sep-20,178213,17.68,BRITISH GAS,BRI040
EFDC,YB110,SUPERVISION/MANAGEMENT SPECIAL,ELECTRICITY,1120,02-Sep-20,178213,17.28,BRITISH GAS,BRI040
EFDC,YB110,SUPERVISION/MANAGEMENT SPECIAL,ELECTRICITY,1120,02-Sep-20,178213,23.58,BRITISH GAS,BRI040
EFDC,YB110,SUPERVISION/MANAGEMENT SPECIAL,ELECTRICITY,1120,02-Sep-20,178213,29.99,BRITISH GAS,BRI040
EFDC,YB110,SUPERVISION/MANAGEMENT SPECIAL,ELECTRICITY,1120,02-Sep-20,178213,10.84,BRITISH GAS,BRI040
EFDC,YB110,SUPERVISION/MANAGEMENT SPECIAL,ELECTRICITY,1120,02-Sep-20,178213,19.24,BRITISH GAS,BRI040
EFDC,YB110,SUPERVISION/MANAGEMENT SPECIAL,ELECTRICITY,1120,02-Sep-20,178213,10.98,BRITISH GAS,BRI040
EFDC,YB110,SUPERVISION/MANAGEMENT SPECIAL,ELECTRICITY,1120,02-Sep-20,178213,15.65,BRITISH GAS,BRI040
EFDC,YB110,SUPERVISION/MANAGEMENT SPECIAL,ELECTRICITY,1120,02-Sep-20,178213,13.23,BRITISH GAS,BRI040
EFDC,YB110,SUPERVISION/MANAGEMENT SPECIAL,ELECTRICITY,1120,02-Sep-20,178213,19.56,BRITISH GAS,BRI040
EFDC,YB110,SUPERVISION/MANAGEMENT SPECIAL,ELECTRICITY,1120,02-Sep-20,178213,26.26,BRITISH GAS,BRI040
EFDC,YB110,SUPERVISION/MANAGEMENT SPECIAL,ELECTRICITY,1120,02-Sep-20,178213,15.78,BRITISH GAS,BRI040
EFDC,YB110,SUPERVISION/MANAGEMENT SPECIAL,ELECTRICITY,1120,02-Sep-20,178213,13.92,BRITISH GAS,BRI040
EFDC,YB110,SUPERVISION/MANAGEMENT SPECIAL,ELECTRICITY,1120,02-Sep-20,178213,16.47,BRITISH GAS,BRI040
EFDC,YB110,SUPERVISION/MANAGEMENT SPECIAL,ELECTRICITY,1120,02-Sep-20,178213,11.90,BRITISH GAS,BRI040
EFDC,YB110,SUPERVISION/MANAGEMENT SPECIAL,ELECTRICITY,1120,02-Sep-20,178213,13.95,BRITISH GAS,BRI040
EFDC,YB110,SUPERVISION/MANAGEMENT SPECIAL,ELECTRICITY,1120,02-Sep-20,178213,32.15,BRITISH GAS,BRI040
EFDC,YB110,SUPERVISION/MANAGEMENT SPECIAL,ELECTRICITY,1120,02-Sep-20,178213,11.64,BRITISH GAS,BRI040
EFDC,YB110,SUPERVISION/MANAGEMENT SPECIAL,ELECTRICITY,1120,02-Sep-20,178213,15.95,BRITISH GAS,BRI040
EFDC,YB110,SUPERVISION/MANAGEMENT SPECIAL,ELECTRICITY,1120,02-Sep-20,178213,16.29,BRITISH GAS,BRI040
EFDC,YB110,SUPERVISION/MANAGEMENT SPECIAL,ELECTRICITY,1120,02-Sep-20,178213,24.68,BRITISH GAS,BRI040
EFDC,YB110,SUPERVISION/MANAGEMENT SPECIAL,ELECTRICITY,1120,02-Sep-20,178213,39.65,BRITISH GAS,BRI040
EFDC,YB110,SUPERVISION/MANAGEMENT SPECIAL,ELECTRICITY,1120,02-Sep-20,178213,7.89,BRITISH GAS,BRI040
EFDC,YB110,SUPERVISION/MANAGEMENT SPECIAL,ELECTRICITY,1120,02-Sep-20,178213,7.89,BRITISH GAS,BRI040
EFDC,YB110,SUPERVISION/MANAGEMENT SPECIAL,ELECTRICITY,1120,02-Sep-20,178213,14.72,BRITISH GAS,BRI040
EFDC,YB110,SUPERVISION/MANAGEMENT SPECIAL,ELECTRICITY,1120,02-Sep-20,178213,7.89,BRITISH GAS,BRI040
EFDC,YB110,SUPERVISION/MANAGEMENT SPECIAL,ELECTRICITY,1120,02-Sep-20,178213,18.77,BRITISH GAS,BRI040
EFDC,YB110,SUPERVISION/MANAGEMENT SPECIAL,ELECTRICITY,1120,02-Sep-20,178213,7.89,BRITISH GAS,BRI040
EFDC,YB110,SUPERVISION/MANAGEMENT SPECIAL,ELECTRICITY,1120,02-Sep-20,178213,39.67,BRITISH GAS,BRI040
EFDC,YB110,SUPERVISION/MANAGEMENT SPECIAL,ELECTRICITY,1120,02-Sep-20,178213,31.30,BRITISH GAS,BRI040
EFDC,YB110,SUPERVISION/MANAGEMENT SPECIAL,ELECTRICITY,1120,02-Sep-20,178213,28.75,BRITISH GAS,BRI040
EFDC,YB110,SUPERVISION/MANAGEMENT SPECIAL,ELECTRICITY,1120,02-Sep-20,178213,7.89,BRITISH GAS,BRI040
EFDC,YB110,SUPERVISION/MANAGEMENT SPECIAL,ELECTRICITY,1120,02-Sep-20,178213,38.07,BRITISH GAS,BRI040
EFDC,YB110,SUPERVISION/MANAGEMENT SPECIAL,ELECTRICITY,1120,02-Sep-20,178213,27.19,BRITISH GAS,BRI040
EFDC,YB110,SUPERVISION/MANAGEMENT SPECIAL,ELECTRICITY,1120,02-Sep-20,178213,10.50,BRITISH GAS,BRI040
EFDC,YB110,SUPERVISION/MANAGEMENT SPECIAL,ELECTRICITY,1120,02-Sep-20,178213,18.16,BRITISH GAS,BRI040
EFDC,YB110,SUPERVISION/MANAGEMENT SPECIAL,ELECTRICITY,1120,02-Sep-20,178213,15.90,BRITISH GAS,BRI040
EFDC,YB110,SUPERVISION/MANAGEMENT SPECIAL,ELECTRICITY,1120,02-Sep-20,178213,15.40,BRITISH GAS,BRI040
EFDC,YB110,SUPERVISION/MANAGEMENT SPECIAL,ELECTRICITY,1120,02-Sep-20,178213,22.29,BRITISH GAS,BRI040
EFDC,YB110,SUPERVISION/MANAGEMENT SPECIAL,ELECTRICITY,1120,02-Sep-20,178213,18.86,BRITISH GAS,BRI040
EFDC,YB110,SUPERVISION/MANAGEMENT SPECIAL,ELECTRICITY,1120,02-Sep-20,178213,12.47,BRITISH GAS,BRI040
EFDC,YB110,SUPERVISION/MANAGEMENT SPECIAL,ELECTRICITY,1120,02-Sep-20,178213,10.90,BRITISH GAS,BRI040
EFDC,YB110,SUPERVISION/MANAGEMENT SPECIAL,ELECTRICITY,1120,02-Sep-20,178213,22.89,BRITISH GAS,BRI040
EFDC,YB110,SUPERVISION/MANAGEMENT SPECIAL,ELECTRICITY,1120,02-Sep-20,178213,24.71,BRITISH GAS,BRI040
EFDC,YB110,SUPERVISION/MANAGEMENT SPECIAL,ELECTRICITY,1120,02-Sep-20,178213,12.91,BRITISH GAS,BRI040
EFDC,YB110,SUPERVISION/MANAGEMENT SPECIAL,ELECTRICITY,1120,02-Sep-20,178213,12.20,BRITISH GAS,BRI040
EFDC,YB110,SUPERVISION/MANAGEMENT SPECIAL,ELECTRICITY,1120,02-Sep-20,178213,17.74,BRITISH GAS,BRI040
EFDC,YB110,SUPERVISION/MANAGEMENT SPECIAL,ELECTRICITY,1120,02-Sep-20,178213,11.74,BRITISH GAS,BRI040
EFDC,YB110,SUPERVISION/MANAGEMENT SPECIAL,ELECTRICITY,1120,02-Sep-20,178213,11.04,BRITISH GAS,BRI040
EFDC,YB110,SUPERVISION/MANAGEMENT SPECIAL,ELECTRICITY,1120,02-Sep-20,178213,13.30,BRITISH GAS,BRI040
EFDC,YB110,SUPERVISION/MANAGEMENT SPECIAL,ELECTRICITY,1120,02-Sep-20,178213,12.17,BRITISH GAS,BRI040
EFDC,YB110,SUPERVISION/MANAGEMENT SPECIAL,ELECTRICITY,1120,02-Sep-20,178213,14.78,BRITISH GAS,BRI040
EFDC,YB110,SUPERVISION/MANAGEMENT SPECIAL,ELECTRICITY,1120,02-Sep-20,178213,17.89,BRITISH GAS,BRI040
EFDC,YB110,SUPERVISION/MANAGEMENT SPECIAL,ELECTRICITY,1120,02-Sep-20,178213,12.07,BRITISH GAS,BRI040
EFDC,YB110,SUPERVISION/MANAGEMENT SPECIAL,ELECTRICITY,1120,02-Sep-20,178213,11.43,BRITISH GAS,BRI040
EFDC,YB110,SUPERVISION/MANAGEMENT SPECIAL,ELECTRICITY,1120,02-Sep-20,178213,11.16,BRITISH GAS,BRI040
EFDC,YB110,SUPERVISION/MANAGEMENT SPECIAL,ELECTRICITY,1120,02-Sep-20,178213,12.26,BRITISH GAS,BRI040
EFDC,YB110,SUPERVISION/MANAGEMENT SPECIAL,ELECTRICITY,1120,02-Sep-20,178213,13.79,BRITISH GAS,BRI040
EFDC,YB110,SUPERVISION/MANAGEMENT SPECIAL,ELECTRICITY,1120,02-Sep-20,178213,15.57,BRITISH GAS,BRI040
EFDC,YB110,SUPERVISION/MANAGEMENT SPECIAL,ELECTRICITY,1120,02-Sep-20,178213,18.90,BRITISH GAS,BRI040
EFDC,YB110,SUPERVISION/MANAGEMENT SPECIAL,ELECTRICITY,1120,02-Sep-20,178213,16.02,BRITISH GAS,BRI040
EFDC,YB110,SUPERVISION/MANAGEMENT SPECIAL,ELECTRICITY,1120,02-Sep-20,178213,21.91,BRITISH GAS,BRI040
EFDC,YB110,SUPERVISION/MANAGEMENT SPECIAL,ELECTRICITY,1120,02-Sep-20,178213,12.01,BRITISH GAS,BRI040
EFDC,YB110,SUPERVISION/MANAGEMENT SPECIAL,ELECTRICITY,1120,02-Sep-20,178213,16.71,BRITISH GAS,BRI040
EFDC,YB110,SUPERVISION/MANAGEMENT SPECIAL,ELECTRICITY,1120,02-Sep-20,178213,9.48,BRITISH GAS,BRI040
EFDC,YB110,SUPERVISION/MANAGEMENT SPECIAL,ELECTRICITY,1120,02-Sep-20,178213,16.15,BRITISH GAS,BRI040
EFDC,YB110,SUPERVISION/MANAGEMENT SPECIAL,ELECTRICITY,1120,02-Sep-20,178213,17.18,BRITISH GAS,BRI040
EFDC,YB110,SUPERVISION/MANAGEMENT SPECIAL,ELECTRICITY,1120,02-Sep-20,178213,11.96,BRITISH GAS,BRI040
EFDC,YB110,SUPERVISION/MANAGEMENT SPECIAL,ELECTRICITY,1120,02-Sep-20,178213,55.28,BRITISH GAS,BRI040
EFDC,YB110,SUPERVISION/MANAGEMENT SPECIAL,ELECTRICITY,1120,02-Sep-20,178213,20.82,BRITISH GAS,BRI040
EFDC,YB110,SUPERVISION/MANAGEMENT SPECIAL,ELECTRICITY,1120,02-Sep-20,178213,65.44,BRITISH GAS,BRI040
EFDC,YB110,SUPERVISION/MANAGEMENT SPECIAL,ELECTRICITY,1120,02-Sep-20,178213,16.05,BRITISH GAS,BRI040
EFDC,YB110,SUPERVISION/MANAGEMENT SPECIAL,ELECTRICITY,1120,02-Sep-20,178213,15.90,BRITISH GAS,BRI040
EFDC,YB110,SUPERVISION/MANAGEMENT SPECIAL,ELECTRICITY,1120,02-Sep-20,178213,14.40,BRITISH GAS,BRI040
EFDC,YB110,SUPERVISION/MANAGEMENT SPECIAL,ELECTRICITY,1120,02-Sep-20,178213,15.53,BRITISH GAS,BRI040
EFDC,YB110,SUPERVISION/MANAGEMENT SPECIAL,ELECTRICITY,1120,02-Sep-20,178213,22.67,BRITISH GAS,BRI040
EFDC,YB110,SUPERVISION/MANAGEMENT SPECIAL,ELECTRICITY,1120,02-Sep-20,178213,21.66,BRITISH GAS,BRI040
EFDC,YB110,SUPERVISION/MANAGEMENT SPECIAL,ELECTRICITY,1120,02-Sep-20,178213,14.90,BRITISH GAS,BRI040
EFDC,YB110,SUPERVISION/MANAGEMENT SPECIAL,ELECTRICITY,1120,02-Sep-20,178213,13.71,BRITISH GAS,BRI040
EFDC,YB110,SUPERVISION/MANAGEMENT SPECIAL,ELECTRICITY,1120,02-Sep-20,178213,15.88,BRITISH GAS,BRI040
EFDC,YB110,SUPERVISION/MANAGEMENT SPECIAL,ELECTRICITY,1120,02-Sep-20,178213,13.40,BRITISH GAS,BRI040
EFDC,YB110,SUPERVISION/MANAGEMENT SPECIAL,ELECTRICITY,1120,02-Sep-20,178213,12.02,BRITISH GAS,BRI040
EFDC,YB110,SUPERVISION/MANAGEMENT SPECIAL,ELECTRICITY,1120,02-Sep-20,178213,10.90,BRITISH GAS,BRI040
EFDC,YB110,SUPERVISION/MANAGEMENT SPECIAL,ELECTRICITY,1120,02-Sep-20,178213,11.90,BRITISH GAS,BRI040
EFDC,YB110,SUPERVISION/MANAGEMENT SPECIAL,ELECTRICITY,1120,02-Sep-20,178213,11.65,BRITISH GAS,BRI040
EFDC,YB110,SUPERVISION/MANAGEMENT SPECIAL,ELECTRICITY,1120,02-Sep-20,178213,11.77,BRITISH GAS,BRI040
EFDC,YB110,SUPERVISION/MANAGEMENT SPECIAL,ELECTRICITY,1120,02-Sep-20,178213,13.52,BRITISH GAS,BRI040
EFDC,YB110,SUPERVISION/MANAGEMENT SPECIAL,ELECTRICITY,1120,02-Sep-20,178213,15.53,BRITISH GAS,BRI040
EFDC,YB110,SUPERVISION/MANAGEMENT SPECIAL,ELECTRICITY,1120,02-Sep-20,178213,11.27,BRITISH GAS,BRI040
EFDC,YB110,SUPERVISION/MANAGEMENT SPECIAL,ELECTRICITY,1120,02-Sep-20,178213,39.82,BRITISH GAS,BRI040
EFDC,YB110,SUPERVISION/MANAGEMENT SPECIAL,ELECTRICITY,1120,02-Sep-20,178213,13.65,BRITISH GAS,BRI040
EFDC,YB110,SUPERVISION/MANAGEMENT SPECIAL,ELECTRICITY,1120,02-Sep-20,178213,7.89,BRITISH GAS,BRI040
EFDC,YB110,SUPERVISION/MANAGEMENT SPECIAL,ELECTRICITY,1120,02-Sep-20,178213,15.06,BRITISH GAS,BRI040
EFDC,YB110,SUPERVISION/MANAGEMENT SPECIAL,ELECTRICITY,1120,02-Sep-20,178213,12.02,BRITISH GAS,BRI040
EFDC,YB110,SUPERVISION/MANAGEMENT SPECIAL,ELECTRICITY,1120,02-Sep-20,178213,14.96,BRITISH GAS,BRI040
EFDC,YB110,SUPERVISION/MANAGEMENT SPECIAL,ELECTRICITY,1120,02-Sep-20,178213,14.28,BRITISH GAS,BRI040
EFDC,YB110,SUPERVISION/MANAGEMENT SPECIAL,ELECTRICITY,1120,02-Sep-20,178213,7.52,BRITISH GAS,BRI040
EFDC,YB110,SUPERVISION/MANAGEMENT SPECIAL,ELECTRICITY,1120,02-Sep-20,178213,9.26,BRITISH GAS,BRI040
EFDC,YB110,SUPERVISION/MANAGEMENT SPECIAL,ELECTRICITY,1120,02-Sep-20,178213,33.92,BRITISH GAS,BRI040
EFDC,YB110,SUPERVISION/MANAGEMENT SPECIAL,ELECTRICITY,1120,02-Sep-20,178213,34.98,BRITISH GAS,BRI040
EFDC,YB110,SUPERVISION/MANAGEMENT SPECIAL,ELECTRICITY,1120,02-Sep-20,178213,17.02,BRITISH GAS,BRI040
EFDC,YB110,SUPERVISION/MANAGEMENT SPECIAL,ELECTRICITY,1120,02-Sep-20,178213,7.89,BRITISH GAS,BRI040
EFDC,YB110,SUPERVISION/MANAGEMENT SPECIAL,ELECTRICITY,1120,02-Sep-20,178213,15.40,BRITISH GAS,BRI040
EFDC,YB110,SUPERVISION/MANAGEMENT SPECIAL,ELECTRICITY,1120,02-Sep-20,178213,53.71,BRITISH GAS,BRI040
EFDC,YB110,SUPERVISION/MANAGEMENT SPECIAL,ELECTRICITY,1120,02-Sep-20,178213,17.19,BRITISH GAS,BRI040
EFDC,YB110,SUPERVISION/MANAGEMENT SPECIAL,ELECTRICITY,1120,02-Sep-20,178213,12.02,BRITISH GAS,BRI040
EFDC,YB110,SUPERVISION/MANAGEMENT SPECIAL,ELECTRICITY,1120,02-Sep-20,178213,16.42,BRITISH GAS,BRI040
EFDC,YB110,SUPERVISION/MANAGEMENT SPECIAL,ELECTRICITY,1120,02-Sep-20,178213,7.89,BRITISH GAS,BRI040
EFDC,YB110,SUPERVISION/MANAGEMENT SPECIAL,ELECTRICITY,1120,02-Sep-20,178213,16.03,BRITISH GAS,BRI040
EFDC,YB110,SUPERVISION/MANAGEMENT SPECIAL,ELECTRICITY,1120,02-Sep-20,178213,34.05,BRITISH GAS,BRI040
EFDC,YB110,SUPERVISION/MANAGEMENT SPECIAL,ELECTRICITY,1120,02-Sep-20,178213,11.15,BRITISH GAS,BRI040
EFDC,YB110,SUPERVISION/MANAGEMENT SPECIAL,ELECTRICITY,1120,02-Sep-20,178213,11.27,BRITISH GAS,BRI040
EFDC,YB110,SUPERVISION/MANAGEMENT SPECIAL,ELECTRICITY,1120,02-Sep-20,178213,10.77,BRITISH GAS,BRI040
EFDC,YB110,SUPERVISION/MANAGEMENT SPECIAL,ELECTRICITY,1120,02-Sep-20,178213,9.76,BRITISH GAS,BRI040
EFDC,YB110,SUPERVISION/MANAGEMENT SPECIAL,ELECTRICITY,1120,02-Sep-20,178213,24.25,BRITISH GAS,BRI040
EFDC,YB110,SUPERVISION/MANAGEMENT SPECIAL,ELECTRICITY,1120,02-Sep-20,178213,20.16,BRITISH GAS,BRI040
EFDC,YB110,SUPERVISION/MANAGEMENT SPECIAL,ELECTRICITY,1120,02-Sep-20,178213,45.41,BRITISH GAS,BRI040
EFDC,YB110,SUPERVISION/MANAGEMENT SPECIAL,ELECTRICITY,1120,02-Sep-20,178213,28.91,BRITISH GAS,BRI040
EFDC,YB110,SUPERVISION/MANAGEMENT SPECIAL,ELECTRICITY,1120,02-Sep-20,178213,16.59,BRITISH GAS,BRI040
EFDC,YB110,SUPERVISION/MANAGEMENT SPECIAL,ELECTRICITY,1120,02-Sep-20,178213,18.84,BRITISH GAS,BRI040
EFDC,YB110,SUPERVISION/MANAGEMENT SPECIAL,ELECTRICITY,1120,02-Sep-20,178213,114.13,BRITISH GAS,BRI040
EFDC,YB110,SUPERVISION/MANAGEMENT SPECIAL,ELECTRICITY,1120,02-Sep-20,178213,9.82,BRITISH GAS,BRI040
EFDC,YB110,SUPERVISION/MANAGEMENT SPECIAL,ELECTRICITY,1120,02-Sep-20,178213,7.89,BRITISH GAS,BRI040
EFDC,YB110,SUPERVISION/MANAGEMENT SPECIAL,ELECTRICITY,1120,02-Sep-20,178213,12.22,BRITISH GAS,BRI040
EFDC,YB110,SUPERVISION/MANAGEMENT SPECIAL,ELECTRICITY,1120,02-Sep-20,178213,15.29,BRITISH GAS,BRI040
EFDC,YB110,SUPERVISION/MANAGEMENT SPECIAL,ELECTRICITY,1120,02-Sep-20,178213,14.40,BRITISH GAS,BRI040
EFDC,YB110,SUPERVISION/MANAGEMENT SPECIAL,ELECTRICITY,1120,02-Sep-20,178213,12.07,BRITISH GAS,BRI040
EFDC,YB110,SUPERVISION/MANAGEMENT SPECIAL,ELECTRICITY,1120,02-Sep-20,178213,49.93,BRITISH GAS,BRI040
EFDC,YB110,SUPERVISION/MANAGEMENT SPECIAL,ELECTRICITY,1120,02-Sep-20,178213,11.40,BRITISH GAS,BRI040
EFDC,YB110,SUPERVISION/MANAGEMENT SPECIAL,ELECTRICITY,1120,02-Sep-20,178213,15.40,BRITISH GAS,BRI040
EFDC,YB110,SUPERVISION/MANAGEMENT SPECIAL,ELECTRICITY,1120,02-Sep-20,178213,21.41,BRITISH GAS,BRI040
EFDC,YB110,SUPERVISION/MANAGEMENT SPECIAL,ELECTRICITY,1120,02-Sep-20,178213,22.20,BRITISH GAS,BRI040
EFDC,YB110,SUPERVISION/MANAGEMENT SPECIAL,ELECTRICITY,1120,02-Sep-20,178213,15.75,BRITISH GAS,BRI040
EFDC,YB110,SUPERVISION/MANAGEMENT SPECIAL,ELECTRICITY,1120,02-Sep-20,178213,12.23,BRITISH GAS,BRI040
EFDC,YB110,SUPERVISION/MANAGEMENT SPECIAL,ELECTRICITY,1120,02-Sep-20,178213,13.91,BRITISH GAS,BRI040
EFDC,YB110,SUPERVISION/MANAGEMENT SPECIAL,ELECTRICITY,1120,02-Sep-20,178213,14.97,BRITISH GAS,BRI040
EFDC,YB110,SUPERVISION/MANAGEMENT SPECIAL,ELECTRICITY,1120,02-Sep-20,178213,11.15,BRITISH GAS,BRI040
EFDC,YB110,SUPERVISION/MANAGEMENT SPECIAL,ELECTRICITY,1120,02-Sep-20,178213,19.03,BRITISH GAS,BRI040
EFDC,YB110,SUPERVISION/MANAGEMENT SPECIAL,ELECTRICITY,1120,02-Sep-20,178213,17.22,BRITISH GAS,BRI040
EFDC,YB110,SUPERVISION/MANAGEMENT SPECIAL,ELECTRICITY,1120,02-Sep-20,178213,17.22,BRITISH GAS,BRI040
EFDC,YB110,SUPERVISION/MANAGEMENT SPECIAL,ELECTRICITY,1120,02-Sep-20,178213,24.29,BRITISH GAS,BRI040
EFDC,YB110,SUPERVISION/MANAGEMENT SPECIAL,ELECTRICITY,1120,02-Sep-20,178213,11.04,BRITISH GAS,BRI040
EFDC,YB110,SUPERVISION/MANAGEMENT SPECIAL,ELECTRICITY,1120,02-Sep-20,178213,13.65,BRITISH GAS,BRI040
EFDC,YB110,SUPERVISION/MANAGEMENT SPECIAL,ELECTRICITY,1120,02-Sep-20,178213,13.90,BRITISH GAS,BRI040
EFDC,YB110,SUPERVISION/MANAGEMENT SPECIAL,ELECTRICITY,1120,02-Sep-20,178213,13.90,BRITISH GAS,BRI040
EFDC,YB110,SUPERVISION/MANAGEMENT SPECIAL,ELECTRICITY,1120,02-Sep-20,178213,17.91,BRITISH GAS,BRI040
EFDC,YB110,SUPERVISION/MANAGEMENT SPECIAL,ELECTRICITY,1120,02-Sep-20,178213,84.78,BRITISH GAS,BRI040
EFDC,YB110,SUPERVISION/MANAGEMENT SPECIAL,ELECTRICITY,1120,02-Sep-20,178213,15.21,BRITISH GAS,BRI040
EFDC,YB110,SUPERVISION/MANAGEMENT SPECIAL,ELECTRICITY,1120,02-Sep-20,178213,15.22,BRITISH GAS,BRI040
EFDC,YB110,SUPERVISION/MANAGEMENT SPECIAL,ELECTRICITY,1120,02-Sep-20,178213,100.55,BRITISH GAS,BRI040
EFDC,YB110,SUPERVISION/MANAGEMENT SPECIAL,ELECTRICITY,1120,02-Sep-20,178213,17.28,BRITISH GAS,BRI040
EFDC,YB110,SUPERVISION/MANAGEMENT SPECIAL,ELECTRICITY,1120,02-Sep-20,178213,14.78,BRITISH GAS,BRI040
EFDC,YB110,SUPERVISION/MANAGEMENT SPECIAL,ELECTRICITY,1120,02-Sep-20,178213,14.28,BRITISH GAS,BRI040
EFDC,YB110,SUPERVISION/MANAGEMENT SPECIAL,ELECTRICITY,1120,02-Sep-20,178213,11.65,BRITISH GAS,BRI040
EFDC,YB110,SUPERVISION/MANAGEMENT SPECIAL,ELECTRICITY,1120,02-Sep-20,178213,13.90,BRITISH GAS,BRI040
EFDC,YB110,SUPERVISION/MANAGEMENT SPECIAL,ELECTRICITY,1120,02-Sep-20,178213,100.05,BRITISH GAS,BRI040
EFDC,YB110,SUPERVISION/MANAGEMENT SPECIAL,ELECTRICITY,1120,02-Sep-20,178213,17.41,BRITISH GAS,BRI040
EFDC,YB110,SUPERVISION/MANAGEMENT SPECIAL,ELECTRICITY,1120,02-Sep-20,178213,93.67,BRITISH GAS,BRI040
EFDC,YB110,SUPERVISION/MANAGEMENT SPECIAL,ELECTRICITY,1120,02-Sep-20,178213,78.76,BRITISH GAS,BRI040
EFDC,YB110,SUPERVISION/MANAGEMENT SPECIAL,ELECTRICITY,1120,02-Sep-20,178213,83.65,BRITISH GAS,BRI040
EFDC,YB110,SUPERVISION/MANAGEMENT SPECIAL,ELECTRICITY,1120,02-Sep-20,178213,10.35,BRITISH GAS,BRI040
EFDC,YB110,SUPERVISION/MANAGEMENT SPECIAL,ELECTRICITY,1120,02-Sep-20,178213,14.04,BRITISH GAS,BRI040
EFDC,YB110,SUPERVISION/MANAGEMENT SPECIAL,ELECTRICITY,1120,02-Sep-20,178213,14.78,BRITISH GAS,BRI040
EFDC,YB110,SUPERVISION/MANAGEMENT SPECIAL,ELECTRICITY,1120,02-Sep-20,178213,12.40,BRITISH GAS,BRI040
EFDC,YB110,SUPERVISION/MANAGEMENT SPECIAL,ELECTRICITY,1120,02-Sep-20,178213,13.66,BRITISH GAS,BRI040
EFDC,YB110,SUPERVISION/MANAGEMENT SPECIAL,ELECTRICITY,1120,02-Sep-20,178213,13.40,BRITISH GAS,BRI040
EFDC,YB110,SUPERVISION/MANAGEMENT SPECIAL,ELECTRICITY,1120,02-Sep-20,178213,14.28,BRITISH GAS,BRI040
EFDC,YB110,SUPERVISION/MANAGEMENT SPECIAL,ELECTRICITY,1120,02-Sep-20,178213,13.15,BRITISH GAS,BRI040
EFDC,YB110,SUPERVISION/MANAGEMENT SPECIAL,ELECTRICITY,1120,02-Sep-20,178213,25.69,BRITISH GAS,BRI040
EFDC,YB110,SUPERVISION/MANAGEMENT SPECIAL,ELECTRICITY,1120,02-Sep-20,178213,54.72,BRITISH GAS,BRI040
EFDC,YB110,SUPERVISION/MANAGEMENT SPECIAL,ELECTRICITY,1120,02-Sep-20,178213,16.79,BRITISH GAS,BRI040
EFDC,YB110,SUPERVISION/MANAGEMENT SPECIAL,ELECTRICITY,1120,02-Sep-20,178213,12.15,BRITISH GAS,BRI040
EFDC,YB110,SUPERVISION/MANAGEMENT SPECIAL,ELECTRICITY,1120,02-Sep-20,178213,16.91,BRITISH GAS,BRI040
EFDC,YB140,SUPERVISION/MANAGEMENT SPECIAL,ELECTRICITY,1120,02-Sep-20,178213,18.61,BRITISH GAS,BRI040
EFDC,YB140,SUPERVISION/MANAGEMENT SPECIAL,ELECTRICITY,1120,02-Sep-20,178213,25.17,BRITISH GAS,BRI040
EFDC,YB140,SUPERVISION/MANAGEMENT SPECIAL,ELECTRICITY,1120,02-Sep-20,178213,21.50,BRITISH GAS,BRI040
EFDC,YB140,SUPERVISION/MANAGEMENT SPECIAL,ELECTRICITY,1120,02-Sep-20,178213,13.63,BRITISH GAS,BRI040
EFDC,YB140,SUPERVISION/MANAGEMENT SPECIAL,ELECTRICITY,1120,02-Sep-20,178213,22.08,BRITISH GAS,BRI040
EFDC,YB140,SUPERVISION/MANAGEMENT SPECIAL,ELECTRICITY,1120,02-Sep-20,178213,20.71,BRITISH GAS,BRI040
EFDC,YB140,SUPERVISION/MANAGEMENT SPECIAL,ELECTRICITY,1120,02-Sep-20,178213,24.80,BRITISH GAS,BRI040
EFDC,YB140,SUPERVISION/MANAGEMENT SPECIAL,ELECTRICITY,1120,02-Sep-20,178213,21.65,BRITISH GAS,BRI040
EFDC,YB200,SUPERVISION/MANAGEMENT SPECIAL,ELECTRICITY,1120,02-Sep-20,178213,13.52,BRITISH GAS,BRI040
EFDC,YB300,SUPERVISION/MANAGEMENT SPECIAL,ELECTRICITY,1120,02-Sep-20,178213,29.07,BRITISH GAS,BRI040
EFDC,YB140,SUPERVISION/MANAGEMENT SPECIAL,ELECTRICITY,1120,02-Sep-20,178213,13.82,BRITISH GAS,BRI040
EFDC,YB140,SUPERVISION/MANAGEMENT SPECIAL,ELECTRICITY,1120,02-Sep-20,178213,26.74,BRITISH GAS,BRI040
EFDC,YB140,SUPERVISION/MANAGEMENT SPECIAL,ELECTRICITY,1120,02-Sep-20,178213,21.76,BRITISH GAS,BRI040
EFDC,YB140,SUPERVISION/MANAGEMENT SPECIAL,ELECTRICITY,1120,02-Sep-20,178213,23.65,BRITISH GAS,BRI040
EFDC,YB140,SUPERVISION/MANAGEMENT SPECIAL,ELECTRICITY,1120,02-Sep-20,178213,10.60,BRITISH GAS,BRI040
EFDC,YB140,SUPERVISION/MANAGEMENT SPECIAL,ELECTRICITY,1120,02-Sep-20,178213,26.22,BRITISH GAS,BRI040
EFDC,YB140,SUPERVISION/MANAGEMENT SPECIAL,ELECTRICITY,1120,02-Sep-20,178213,31.07,BRITISH GAS,BRI040
EFDC,YB110,SUPERVISION/MANAGEMENT SPECIAL,ELECTRICITY,1120,02-Sep-20,178213,14.32,BRITISH GAS,BRI040
EFDC,YB110,SUPERVISION/MANAGEMENT SPECIAL,ELECTRICITY,1120,02-Sep-20,178213,14.15,BRITISH GAS,BRI040
EFDC,YB110,SUPERVISION/MANAGEMENT SPECIAL,ELECTRICITY,1120,02-Sep-20,178213,15.66,BRITISH GAS,BRI040
EFDC,YB110,SUPERVISION/MANAGEMENT SPECIAL,ELECTRICITY,1120,02-Sep-20,178213,14.18,BRITISH GAS,BRI040
EFDC,YB110,SUPERVISION/MANAGEMENT SPECIAL,ELECTRICITY,1120,02-Sep-20,178213,14.04,BRITISH GAS,BRI040
EFDC,YB110,SUPERVISION/MANAGEMENT SPECIAL,ELECTRICITY,1120,02-Sep-20,178213,15.28,BRITISH GAS,BRI040
EFDC,YB110,SUPERVISION/MANAGEMENT SPECIAL,ELECTRICITY,1120,02-Sep-20,178213,15.24,BRITISH GAS,BRI040
EFDC,YB110,SUPERVISION/MANAGEMENT SPECIAL,ELECTRICITY,1120,02-Sep-20,178213,15.66,BRITISH GAS,BRI040
EFDC,YB110,SUPERVISION/MANAGEMENT SPECIAL,ELECTRICITY,1120,02-Sep-20,178213,16.38,BRITISH GAS,BRI040
EFDC,YB110,SUPERVISION/MANAGEMENT SPECIAL,ELECTRICITY,1120,02-Sep-20,178213,17.75,BRITISH GAS,BRI040
EFDC,YB110,SUPERVISION/MANAGEMENT SPECIAL,ELECTRICITY,1120,02-Sep-20,178213,14.45,BRITISH GAS,BRI040
EFDC,YB110,SUPERVISION/MANAGEMENT SPECIAL,ELECTRICITY,1120,02-Sep-20,178213,15.79,BRITISH GAS,BRI040
EFDC,YB110,SUPERVISION/MANAGEMENT SPECIAL,ELECTRICITY,1120,02-Sep-20,178213,16.42,BRITISH GAS,BRI040
EFDC,YB110,SUPERVISION/MANAGEMENT SPECIAL,ELECTRICITY,1120,02-Sep-20,178213,15.87,BRITISH GAS,BRI040
EFDC,YB110,SUPERVISION/MANAGEMENT SPECIAL,ELECTRICITY,1120,02-Sep-20,178213,28.45,BRITISH GAS,BRI040
EFDC,YB110,SUPERVISION/MANAGEMENT SPECIAL,ELECTRICITY,1120,02-Sep-20,178213,18.04,BRITISH GAS,BRI040
EFDC,YB110,SUPERVISION/MANAGEMENT SPECIAL,ELECTRICITY,1120,02-Sep-20,178213,98.44,BRITISH GAS,BRI040
EFDC,YB110,SUPERVISION/MANAGEMENT SPECIAL,ELECTRICITY,1120,02-Sep-20,178213,13.03,BRITISH GAS,BRI040
EFDC,YB110,SUPERVISION/MANAGEMENT SPECIAL,ELECTRICITY,1120,02-Sep-20,178213,9.20,BRITISH GAS,BRI040
EFDC,YB110,SUPERVISION/MANAGEMENT SPECIAL,ELECTRICITY,1120,02-Sep-20,178213,15.39,BRITISH GAS,BRI040
EFDC,YB110,SUPERVISION/MANAGEMENT SPECIAL,ELECTRICITY,1120,02-Sep-20,178213,16.41,BRITISH GAS,BRI040
EFDC,YB110,SUPERVISION/MANAGEMENT SPECIAL,ELECTRICITY,1120,02-Sep-20,178213,17.22,BRITISH GAS,BRI040
EFDC,YB110,SUPERVISION/MANAGEMENT SPECIAL,ELECTRICITY,1120,02-Sep-20,178213,17.29,BRITISH GAS,BRI040
EFDC,YB110,SUPERVISION/MANAGEMENT SPECIAL,ELECTRICITY,1120,02-Sep-20,178213,16.41,BRITISH GAS,BRI040
EFDC,YB110,SUPERVISION/MANAGEMENT SPECIAL,ELECTRICITY,1120,02-Sep-20,178213,15.27,BRITISH GAS,BRI040
EFDC,YB110,SUPERVISION/MANAGEMENT SPECIAL,ELECTRICITY,1120,02-Sep-20,178213,15.01,BRITISH GAS,BRI040
EFDC,YB110,SUPERVISION/MANAGEMENT SPECIAL,ELECTRICITY,1120,02-Sep-20,178213,13.58,BRITISH GAS,BRI040
EFDC,YB110,SUPERVISION/MANAGEMENT SPECIAL,ELECTRICITY,1120,02-Sep-20,178213,15.51,BRITISH GAS,BRI040
EFDC,YB110,SUPERVISION/MANAGEMENT SPECIAL,ELECTRICITY,1120,02-Sep-20,178213,12.88,BRITISH GAS,BRI040
EFDC,YB110,SUPERVISION/MANAGEMENT SPECIAL,ELECTRICITY,1120,02-Sep-20,178213,14.31,BRITISH GAS,BRI040
EFDC,YB110,SUPERVISION/MANAGEMENT SPECIAL,ELECTRICITY,1120,02-Sep-20,178213,15.05,BRITISH GAS,BRI040
EFDC,YB110,SUPERVISION/MANAGEMENT SPECIAL,ELECTRICITY,1120,02-Sep-20,178213,4.76,BRITISH GAS,BRI040
EFDC,YB110,SUPERVISION/MANAGEMENT SPECIAL,ELECTRICITY,1120,02-Sep-20,178213,13.59,BRITISH GAS,BRI040
EFDC,YB110,SUPERVISION/MANAGEMENT SPECIAL,ELECTRICITY,1120,02-Sep-20,178213,13.66,BRITISH GAS,BRI040
EFDC,YB110,SUPERVISION/MANAGEMENT SPECIAL,ELECTRICITY,1120,02-Sep-20,178213,-14.90,BRITISH GAS,BRI040
EFDC,YB110,SUPERVISION/MANAGEMENT SPECIAL,ELECTRICITY,1120,02-Sep-20,178213,7.52,BRITISH GAS,BRI040
EFDC,YB110,SUPERVISION/MANAGEMENT SPECIAL,ELECTRICITY,1120,02-Sep-20,178213,16.51,BRITISH GAS,BRI040
EFDC,YB110,SUPERVISION/MANAGEMENT SPECIAL,ELECTRICITY,1120,02-Sep-20,178213,13.96,BRITISH GAS,BRI040
EFDC,YB110,SUPERVISION/MANAGEMENT SPECIAL,ELECTRICITY,1120,02-Sep-20,178213,6.88,BRITISH GAS,BRI040
EFDC,YB110,SUPERVISION/MANAGEMENT SPECIAL,ELECTRICITY,1120,02-Sep-20,178213,16.11,BRITISH GAS,BRI040
EFDC,YB110,SUPERVISION/MANAGEMENT SPECIAL,ELECTRICITY,1120,02-Sep-20,178213,-12.88,BRITISH GAS,BRI040
EFDC,YB110,SUPERVISION/MANAGEMENT SPECIAL,ELECTRICITY,1120,02-Sep-20,178213,11.46,BRITISH GAS,BRI040
EFDC,YB110,SUPERVISION/MANAGEMENT SPECIAL,ELECTRICITY,1120,02-Sep-20,178213,24.40,BRITISH GAS,BRI040
EFDC,YB110,SUPERVISION/MANAGEMENT SPECIAL,ELECTRICITY,1120,02-Sep-20,178213,-15.33,BRITISH GAS,BRI040
EFDC,YB110,SUPERVISION/MANAGEMENT SPECIAL,ELECTRICITY,1120,02-Sep-20,178213,-15.99,BRITISH GAS,BRI040
EFDC,YB110,SUPERVISION/MANAGEMENT SPECIAL,ELECTRICITY,1120,02-Sep-20,178213,-13.35,BRITISH GAS,BRI040
EFDC,YB110,SUPERVISION/MANAGEMENT SPECIAL,ELECTRICITY,1120,02-Sep-20,178213,-13.91,BRITISH GAS,BRI040
EFDC,YB110,SUPERVISION/MANAGEMENT SPECIAL,ELECTRICITY,1120,02-Sep-20,178213,-15.33,BRITISH GAS,BRI040
EFDC,YB110,SUPERVISION/MANAGEMENT SPECIAL,ELECTRICITY,1120,02-Sep-20,178213,16.51,BRITISH GAS,BRI040
EFDC,YB110,SUPERVISION/MANAGEMENT SPECIAL,ELECTRICITY,1120,02-Sep-20,178213,19.83,BRITISH GAS,BRI040
EFDC,YB110,SUPERVISION/MANAGEMENT SPECIAL,ELECTRICITY,1120,02-Sep-20,178213,22.68,BRITISH GAS,BRI040
EFDC,YB110,SUPERVISION/MANAGEMENT SPECIAL,ELECTRICITY,1120,02-Sep-20,178213,14.42,BRITISH GAS,BRI040
EFDC,YB110,SUPERVISION/MANAGEMENT SPECIAL,ELECTRICITY,1120,02-Sep-20,178213,27.62,BRITISH GAS,BRI040
EFDC,YB110,SUPERVISION/MANAGEMENT SPECIAL,ELECTRICITY,1120,02-Sep-20,178213,17.56,BRITISH GAS,BRI040
EFDC,YB110,SUPERVISION/MANAGEMENT SPECIAL,ELECTRICITY,1120,02-Sep-20,178213,29.01,BRITISH GAS,BRI040
EFDC,YB110,SUPERVISION/MANAGEMENT SPECIAL,ELECTRICITY,1120,02-Sep-20,178213,18.59,BRITISH GAS,BRI040
EFDC,YB110,SUPERVISION/MANAGEMENT SPECIAL,ELECTRICITY,1120,02-Sep-20,178213,23.82,BRITISH GAS,BRI040
EFDC,YB110,SUPERVISION/MANAGEMENT SPECIAL,ELECTRICITY,1120,02-Sep-20,178213,20.75,BRITISH GAS,BRI040
EFDC,YB110,SUPERVISION/MANAGEMENT SPECIAL,ELECTRICITY,1120,02-Sep-20,178213,-14.07,BRITISH GAS,BRI040
EFDC,YB110,SUPERVISION/MANAGEMENT SPECIAL,ELECTRICITY,1120,02-Sep-20,178213,11.01,BRITISH GAS,BRI040
EFDC,YB110,SUPERVISION/MANAGEMENT SPECIAL,ELECTRICITY,1120,02-Sep-20,178213,13.79,BRITISH GAS,BRI040
EFDC,YB110,SUPERVISION/MANAGEMENT SPECIAL,ELECTRICITY,1120,02-Sep-20,178213,13.62,BRITISH GAS,BRI040
EFDC,YB110,SUPERVISION/MANAGEMENT SPECIAL,ELECTRICITY,1120,02-Sep-20,178213,13.93,BRITISH GAS,BRI040
EFDC,YB110,SUPERVISION/MANAGEMENT SPECIAL,ELECTRICITY,1120,02-Sep-20,178213,14.64,BRITISH GAS,BRI040
EFDC,YB110,SUPERVISION/MANAGEMENT SPECIAL,ELECTRICITY,1120,02-Sep-20,178213,13.59,BRITISH GAS,BRI040
EFDC,YB110,SUPERVISION/MANAGEMENT SPECIAL,ELECTRICITY,1120,02-Sep-20,178213,-14.50,BRITISH GAS,BRI040
EFDC,YB110,SUPERVISION/MANAGEMENT SPECIAL,ELECTRICITY,1120,02-Sep-20,178213,19.61,BRITISH GAS,BRI040
EFDC,YB110,SUPERVISION/MANAGEMENT SPECIAL,ELECTRICITY,1120,02-Sep-20,178213,13.16,BRITISH GAS,BRI040
EFDC,YB110,SUPERVISION/MANAGEMENT SPECIAL,ELECTRICITY,1120,02-Sep-20,178213,19.27,BRITISH GAS,BRI040
EFDC,YB110,SUPERVISION/MANAGEMENT SPECIAL,ELECTRICITY,1120,02-Sep-20,178213,12.58,BRITISH GAS,BRI040
EFDC,YB110,SUPERVISION/MANAGEMENT SPECIAL,ELECTRICITY,1120,02-Sep-20,178213,10.95,BRITISH GAS,BRI040
EFDC,YB110,SUPERVISION/MANAGEMENT SPECIAL,ELECTRICITY,1120,02-Sep-20,178213,55.11,BRITISH GAS,BRI040
EFDC,YB110,SUPERVISION/MANAGEMENT SPECIAL,ELECTRICITY,1120,02-Sep-20,178213,42.76,BRITISH GAS,BRI040
EFDC,YB110,SUPERVISION/MANAGEMENT SPECIAL,ELECTRICITY,1120,02-Sep-20,178213,131.15,BRITISH GAS,BRI040
EFDC,YB110,SUPERVISION/MANAGEMENT SPECIAL,ELECTRICITY,1120,02-Sep-20,178213,15.51,BRITISH GAS,BRI040
EFDC,YB110,SUPERVISION/MANAGEMENT SPECIAL,ELECTRICITY,1120,02-Sep-20,178213,-14.69,BRITISH GAS,BRI040
EFDC,YB110,SUPERVISION/MANAGEMENT SPECIAL,ELECTRICITY,1120,02-Sep-20,178213,-13.67,BRITISH GAS,BRI040
EFDC,YB110,SUPERVISION/MANAGEMENT SPECIAL,ELECTRICITY,1120,02-Sep-20,178213,-13.85,BRITISH GAS,BRI040
EFDC,YB110,SUPERVISION/MANAGEMENT SPECIAL,ELECTRICITY,1120,02-Sep-20,178213,-15.55,BRITISH GAS,BRI040
EFDC,YB110,SUPERVISION/MANAGEMENT SPECIAL,ELECTRICITY,1120,02-Sep-20,178213,-16.88,BRITISH GAS,BRI040
EFDC,YB110,SUPERVISION/MANAGEMENT SPECIAL,ELECTRICITY,1120,02-Sep-20,178213,-17.85,BRITISH GAS,BRI040
EFDC,YB110,SUPERVISION/MANAGEMENT SPECIAL,ELECTRICITY,1120,02-Sep-20,178213,-17.69,BRITISH GAS,BRI040
EFDC,YB110,SUPERVISION/MANAGEMENT SPECIAL,ELECTRICITY,1120,02-Sep-20,178213,13.79,BRITISH GAS,BRI040
EFDC,YB110,SUPERVISION/MANAGEMENT SPECIAL,ELECTRICITY,1120,02-Sep-20,178213,-16.64,BRITISH GAS,BRI040
EFDC,YB110,SUPERVISION/MANAGEMENT SPECIAL,ELECTRICITY,1120,02-Sep-20,178213,13.25,BRITISH GAS,BRI040
EFDC,YB110,SUPERVISION/MANAGEMENT SPECIAL,ELECTRICITY,1120,02-Sep-20,178213,-13.89,BRITISH GAS,BRI040
EFDC,YB110,SUPERVISION/MANAGEMENT SPECIAL,ELECTRICITY,1120,02-Sep-20,178213,12.86,BRITISH GAS,BRI040
EFDC,YB110,SUPERVISION/MANAGEMENT SPECIAL,ELECTRICITY,1120,02-Sep-20,178213,13.16,BRITISH GAS,BRI040
EFDC,YB110,SUPERVISION/MANAGEMENT SPECIAL,ELECTRICITY,1120,02-Sep-20,178213,14.35,BRITISH GAS,BRI040
